Posting date,Supplier number,Supplier name,Expense type,Department,Amount
10/10/2022,1249077,The Advocacy Project,Hired and Contracted Services,ASC Procurement and Business Intelligenc,"51,294.00"
28/11/2022,1267921,PERSONAL PAYMENTS,"Publicity, Promotions and Advertisement",Adult Social Care Business,"5,800.00"
10/10/2022,1243869,Addison Lee,HTM / Other Vehicle - Hire Charges,Adult Social Care Finance and Resources,632.69
12/12/2022,1243869,Addison Lee,HTM / Other Vehicle - Hire Charges,Adult Social Care Finance and Resources,869.29
14/10/2022,1297376,Chocolato Ltd,B*SLA - HTLC (teaching& leadership coll,Adult Social Care Finance and Resources,530
10/10/2022,1245228,Pohwer,Hired and Contracted Services,Adult Social Care Finance and Resources,"1,125.38"
11/11/2022,1245228,Pohwer,Hired and Contracted Services,Adult Social Care Finance and Resources,"1,314.33"
29/12/2022,1245228,Pohwer,Hired and Contracted Services,Adult Social Care Finance and Resources,"1,491.78"
04/10/2022,1245693,London Borough Of Hammersmith &,B*Payments to OLAs - Southampton City Co,Adult Social Care Finance and Resources,"93,129.00"
10/11/2022,1245693,London Borough Of Hammersmith &,B*Payments to OLAs - Southampton City Co,Adult Social Care Finance and Resources,"82,718.33"
17/10/2022,1243775,Royal Borough of Kensington &,B*Payments to OLAs - Southampton City Co,Adult Social Care Finance and Resources,"70,850.98"
17/10/2022,1243775,Royal Borough of Kensington &,B*Payments to OLAs - Southampton City Co,Adult Social Care Finance and Resources,"309,080.00"
02/11/2022,1243775,Royal Borough of Kensington &,B*Payments to OLAs - Southampton City Co,Adult Social Care Finance and Resources,"71,814.93"
02/11/2022,1243775,Royal Borough of Kensington &,B*Payments to OLAs - Southampton City Co,Adult Social Care Finance and Resources,"309,167.00"
16/11/2022,1298801,Redstick Solutions Ltd,Training related expenditure,Adult Social Care Finance and Resources,"2,637.60"
14/10/2022,1283543,Florence Staffing Ltd,Payments to Private Contractors,Adult Social Care Operations,955.24
17/11/2022,D000000016,PERSONAL PAYMENTS,Grant Aid and Donations,Adult Social Care Operations,"3,607.00"
25/10/2022,1283445,NHS NORTH WEST LONDON CCG,Payments to Health Authorities,Adult Social Care Operations,"483,788.00"
03/10/2022,1290804,Doro Care UK Ltd,###,Bi-Borough Director of Integrated Care,"2,016.00"
31/10/2022,1290804,Doro Care UK Ltd,###,Bi-Borough Director of Integrated Care,"2,048.00"
23/11/2022,1290804,Doro Care UK Ltd,###,Bi-Borough Director of Integrated Care,"2,056.00"
23/11/2022,1290804,Doro Care UK Ltd,###,Bi-Borough Director of Integrated Care,700
23/11/2022,1290804,Doro Care UK Ltd,###,Bi-Borough Director of Integrated Care,"18,500.00"
23/12/2022,1290804,Doro Care UK Ltd,###,Bi-Borough Director of Integrated Care,"2,192.00"
26/10/2022,1292281,The Community Housing Group Limited,Hired and Contracted Services,Bi-Borough Director of Integrated Care,"1,787.50"
15/12/2022,1292281,The Community Housing Group Limited,Hired and Contracted Services,Bi-Borough Director of Integrated Care,"5,847.50"
15/12/2022,1292281,The Community Housing Group Limited,Hired and Contracted Services,Bi-Borough Director of Integrated Care,"5,805.59"
15/12/2022,1292281,The Community Housing Group Limited,Hired and Contracted Services,Bi-Borough Director of Integrated Care,"5,829.54"
09/12/2022,1246138,Tunstall Healthcare (UK) Ltd (Use,###,Bi-Borough Director of Integrated Care,"3,897.00"
17/11/2022,1273817,GCH Alan Morkill House Ltd,Hired and Contracted Services,Bi-Borough Director of Integrated Care,"500,000.00"
22/12/2022,1273817,GCH Alan Morkill House Ltd,Hired and Contracted Services,Bi-Borough Director of Integrated Care,"600,000.00"
25/10/2022,1246561,Church Army Marylebone Project,Payments to Private Contractors,Bi-Borough Director of Integrated Care,"2,419.10"
17/11/2022,1246561,Church Army Marylebone Project,Payments to Private Contractors,Bi-Borough Director of Integrated Care,"2,499.74"
20/12/2022,1246561,Church Army Marylebone Project,Payments to Private Contractors,Bi-Borough Director of Integrated Care,"1,209.55"
16/12/2022,1260861,Old Square Chambers,Legal Costs,Bi-Borough Director of Integrated Care,"4,000.00"
17/11/2022,1245563,Sharpe Pritchard,Legal Costs,Bi-Borough Director of Integrated Care,"2,284.00"
17/11/2022,1245563,Sharpe Pritchard,Legal Costs,Bi-Borough Director of Integrated Care,510.5
25/11/2022,1245563,Sharpe Pritchard,Legal Costs,Bi-Borough Director of Integrated Care,"2,284.00"
18/10/2022,1292095,365 Care Solutions Ltd,,Bi-Borough Director of Integrated Care,"10,080.86"
18/10/2022,1292095,365 Care Solutions Ltd,,Bi-Borough Director of Integrated Care,"14,344.00"
09/11/2022,1292095,365 Care Solutions Ltd,,Bi-Borough Director of Integrated Care,"3,586.00"
22/12/2022,1292095,365 Care Solutions Ltd,,Bi-Borough Director of Integrated Care,"31,515.43"
18/10/2022,1255843,A.I. Care Services Ltd,,Bi-Borough Director of Integrated Care,"6,510.64"
18/10/2022,1255843,A.I. Care Services Ltd,,Bi-Borough Director of Integrated Care,536.96
15/11/2022,1255843,A.I. Care Services Ltd,,Bi-Borough Director of Integrated Care,"6,510.64"
15/11/2022,1255843,A.I. Care Services Ltd,,Bi-Borough Director of Integrated Care,536.96
12/12/2022,1255843,A.I. Care Services Ltd,,Bi-Borough Director of Integrated Care,569.28
12/12/2022,1255843,A.I. Care Services Ltd,,Bi-Borough Director of Integrated Care,"6,903.36"
18/10/2022,1245929,The Regard Partnership Ltd,,Bi-Borough Director of Integrated Care,"9,478.44"
18/10/2022,1245929,The Regard Partnership Ltd,,Bi-Borough Director of Integrated Care,"6,346.64"
09/11/2022,1245929,The Regard Partnership Ltd,,Bi-Borough Director of Integrated Care,"38,549.06"
09/11/2022,1245929,The Regard Partnership Ltd,,Bi-Borough Director of Integrated Care,"11,712.69"
09/11/2022,1245929,The Regard Partnership Ltd,,Bi-Borough Director of Integrated Care,"7,842.64"
07/12/2022,1245929,The Regard Partnership Ltd,,Bi-Borough Director of Integrated Care,"9,762.80"
07/12/2022,1245929,The Regard Partnership Ltd,,Bi-Borough Director of Integrated Care,"6,537.04"
07/12/2022,1245929,The Regard Partnership Ltd,,Bi-Borough Director of Integrated Care,"15,257.92"
22/12/2022,1245929,The Regard Partnership Ltd,,Bi-Borough Director of Integrated Care,"9,762.80"
22/12/2022,1245929,The Regard Partnership Ltd,,Bi-Borough Director of Integrated Care,"6,537.04"
22/12/2022,1245929,The Regard Partnership Ltd,,Bi-Borough Director of Integrated Care,"15,257.92"
18/10/2022,1271174,ASPECTS 2 LIMITED,,Bi-Borough Director of Integrated Care,"4,243.40"
18/10/2022,1271174,ASPECTS 2 LIMITED,,Bi-Borough Director of Integrated Care,"4,243.40"
09/11/2022,1271174,ASPECTS 2 LIMITED,,Bi-Borough Director of Integrated Care,"4,243.40"
09/11/2022,1271174,ASPECTS 2 LIMITED,,Bi-Borough Director of Integrated Care,"4,243.40"
07/12/2022,1271174,ASPECTS 2 LIMITED,,Bi-Borough Director of Integrated Care,"4,243.40"
07/12/2022,1271174,ASPECTS 2 LIMITED,,Bi-Borough Director of Integrated Care,"4,243.40"
22/12/2022,1271174,ASPECTS 2 LIMITED,,Bi-Borough Director of Integrated Care,"4,243.40"
22/12/2022,1271174,ASPECTS 2 LIMITED,,Bi-Borough Director of Integrated Care,"4,243.40"
18/10/2022,1243851,Accomplish Group Ltd,,Bi-Borough Director of Integrated Care,"8,877.40"
18/10/2022,1243851,Accomplish Group Ltd,,Bi-Borough Director of Integrated Care,"8,877.40"
09/11/2022,1243851,Accomplish Group Ltd,,Bi-Borough Director of Integrated Care,"8,877.40"
09/11/2022,1243851,Accomplish Group Ltd,,Bi-Borough Director of Integrated Care,"8,877.40"
07/12/2022,1243851,Accomplish Group Ltd,,Bi-Borough Director of Integrated Care,"11,207.70"
07/12/2022,1243851,Accomplish Group Ltd,,Bi-Borough Director of Integrated Care,"11,207.70"
22/12/2022,1243851,Accomplish Group Ltd,,Bi-Borough Director of Integrated Care,"9,143.72"
22/12/2022,1243851,Accomplish Group Ltd,,Bi-Borough Director of Integrated Care,"9,143.72"
18/10/2022,1243435,Acorn Village,,Bi-Borough Director of Integrated Care,"5,221.08"
09/11/2022,1243435,Acorn Village,,Bi-Borough Director of Integrated Care,"5,221.08"
07/12/2022,1243435,Acorn Village,,Bi-Borough Director of Integrated Care,"5,221.08"
22/12/2022,1243435,Acorn Village,,Bi-Borough Director of Integrated Care,"5,221.08"
09/11/2022,1298750,Ambient Support Ltd,,Bi-Borough Director of Integrated Care,"17,670.86"
18/10/2022,1243931,Ashbourne Healthcare Services,,Bi-Borough Director of Integrated Care,"3,640.00"
18/10/2022,1243931,Ashbourne Healthcare Services,,Bi-Borough Director of Integrated Care,"3,308.50"
07/11/2022,1243931,Ashbourne Healthcare Services,,Bi-Borough Director of Integrated Care,953.31
07/11/2022,1243931,Ashbourne Healthcare Services,,Bi-Borough Director of Integrated Care,725.76
07/11/2022,1243931,Ashbourne Healthcare Services,,Bi-Borough Director of Integrated Care,"1,731.66"
07/11/2022,1243931,Ashbourne Healthcare Services,,Bi-Borough Director of Integrated Care,"1,839.44"
10/11/2022,1243931,Ashbourne Healthcare Services,,Bi-Borough Director of Integrated Care,"1,636.05"
15/11/2022,1243931,Ashbourne Healthcare Services,,Bi-Borough Director of Integrated Care,"1,158.52"
15/11/2022,1243931,Ashbourne Healthcare Services,,Bi-Borough Director of Integrated Care,624
28/12/2022,1243931,Ashbourne Healthcare Services,,Bi-Borough Director of Integrated Care,"3,861.00"
18/10/2022,1243942,Aspens Charities,,Bi-Borough Director of Integrated Care,"7,000.00"
09/11/2022,1243942,Aspens Charities,,Bi-Borough Director of Integrated Care,"7,000.00"
07/12/2022,1243942,Aspens Charities,,Bi-Borough Director of Integrated Care,"7,000.00"
22/12/2022,1243942,Aspens Charities,,Bi-Borough Director of Integrated Care,"7,000.00"
18/10/2022,1243961,Autism Anglia,,Bi-Borough Director of Integrated Care,"10,644.00"
09/11/2022,1243961,Autism Anglia,,Bi-Borough Director of Integrated Care,"10,644.00"
07/12/2022,1243961,Autism Anglia,,Bi-Borough Director of Integrated Care,"10,644.00"
22/12/2022,1243961,Autism Anglia,,Bi-Borough Director of Integrated Care,"10,644.00"
18/10/2022,1243445,Broadstreet House Limited,,Bi-Borough Director of Integrated Care,"4,303.24"
09/11/2022,1243445,Broadstreet House Limited,,Bi-Borough Director of Integrated Care,"4,303.24"
07/12/2022,1243445,Broadstreet House Limited,,Bi-Borough Director of Integrated Care,"4,303.24"
22/12/2022,1243445,Broadstreet House Limited,,Bi-Borough Director of Integrated Care,"4,303.24"
18/10/2022,1246286,Brunswick Supported Living,,Bi-Borough Director of Integrated Care,"1,314.64"
18/10/2022,1246286,Brunswick Supported Living,,Bi-Borough Director of Integrated Care,"1,314.64"
09/11/2022,1246286,Brunswick Supported Living,,Bi-Borough Director of Integrated Care,"1,314.64"
09/11/2022,1246286,Brunswick Supported Living,,Bi-Borough Director of Integrated Care,"1,314.64"
07/12/2022,1246286,Brunswick Supported Living,,Bi-Borough Director of Integrated Care,"1,314.64"
07/12/2022,1246286,Brunswick Supported Living,,Bi-Borough Director of Integrated Care,"1,314.64"
22/12/2022,1246286,Brunswick Supported Living,,Bi-Borough Director of Integrated Care,"1,314.64"
22/12/2022,1246286,Brunswick Supported Living,,Bi-Borough Director of Integrated Care,"1,314.64"
18/10/2022,1273390,CHILTERN SUPPORT & HOUSING LTD,,Bi-Borough Director of Integrated Care,"16,536.72"
09/11/2022,1273390,CHILTERN SUPPORT & HOUSING LTD,,Bi-Borough Director of Integrated Care,"16,536.72"
07/12/2022,1273390,CHILTERN SUPPORT & HOUSING LTD,,Bi-Borough Director of Integrated Care,"16,536.72"
22/12/2022,1273390,CHILTERN SUPPORT & HOUSING LTD,,Bi-Borough Director of Integrated Care,"16,536.72"
18/10/2022,1244092,Cambrian Learning Disabilities Ltd,,Bi-Borough Director of Integrated Care,"6,094.00"
09/11/2022,1244092,Cambrian Learning Disabilities Ltd,,Bi-Borough Director of Integrated Care,"6,094.00"
07/12/2022,1244092,Cambrian Learning Disabilities Ltd,,Bi-Borough Director of Integrated Care,"6,094.00"
22/12/2022,1244092,Cambrian Learning Disabilities Ltd,,Bi-Borough Director of Integrated Care,"6,094.00"
18/10/2022,1246321,Camphill Village Trust,,Bi-Borough Director of Integrated Care,"3,981.08"
09/11/2022,1246321,Camphill Village Trust,,Bi-Borough Director of Integrated Care,"3,981.08"
07/12/2022,1246321,Camphill Village Trust,,Bi-Borough Director of Integrated Care,"3,981.08"
22/12/2022,1246321,Camphill Village Trust,,Bi-Borough Director of Integrated Care,"3,981.08"
18/10/2022,1246324,Candour Care Services (Broadview),,Bi-Borough Director of Integrated Care,"7,434.92"
09/11/2022,1246324,Candour Care Services (Broadview),,Bi-Borough Director of Integrated Care,"7,434.92"
07/12/2022,1246324,Candour Care Services (Broadview),,Bi-Borough Director of Integrated Care,"7,434.92"
22/12/2022,1246324,Candour Care Services (Broadview),,Bi-Borough Director of Integrated Care,"7,434.92"
18/10/2022,1246327,Canterbury Oast Trust Ltd,,Bi-Borough Director of Integrated Care,"1,346.80"
09/11/2022,1246327,Canterbury Oast Trust Ltd,,Bi-Borough Director of Integrated Care,"1,346.80"
07/12/2022,1246327,Canterbury Oast Trust Ltd,,Bi-Borough Director of Integrated Care,"1,346.80"
22/12/2022,1246327,Canterbury Oast Trust Ltd,,Bi-Borough Director of Integrated Care,"1,346.80"
03/10/2022,1251345,Care With Hope Ltd,,Bi-Borough Director of Integrated Care,"4,320.00"
18/10/2022,1246339,Caretech Community Services Ltd,,Bi-Borough Director of Integrated Care,"5,765.52"
18/10/2022,1246339,Caretech Community Services Ltd,,Bi-Borough Director of Integrated Care,987.4
18/10/2022,1246339,Caretech Community Services Ltd,,Bi-Borough Director of Integrated Care,"4,711.16"
18/10/2022,1246339,Caretech Community Services Ltd,,Bi-Borough Director of Integrated Care,"4,711.16"
09/11/2022,1246339,Caretech Community Services Ltd,,Bi-Borough Director of Integrated Care,"14,077.12"
09/11/2022,1246339,Caretech Community Services Ltd,,Bi-Borough Director of Integrated Care,"4,711.16"
09/11/2022,1246339,Caretech Community Services Ltd,,Bi-Borough Director of Integrated Care,"4,711.16"
07/12/2022,1246339,Caretech Community Services Ltd,,Bi-Borough Director of Integrated Care,"6,823.36"
07/12/2022,1246339,Caretech Community Services Ltd,,Bi-Borough Director of Integrated Care,"63,006.80"
22/12/2022,1246339,Caretech Community Services Ltd,,Bi-Borough Director of Integrated Care,"6,823.36"
22/12/2022,1246339,Caretech Community Services Ltd,,Bi-Borough Director of Integrated Care,"4,711.16"
22/12/2022,1246339,Caretech Community Services Ltd,,Bi-Borough Director of Integrated Care,"4,711.16"
07/12/2022,1246349,Caxton Youth Organisation,B*Voluntary-Spot-V Dep-Enhanced - do not u,Bi-Borough Director of Integrated Care,560
18/10/2022,1276470,Certitude (Support for Living),,Bi-Borough Director of Integrated Care,"5,372.08"
18/10/2022,1276470,Certitude (Support for Living),,Bi-Borough Director of Integrated Care,"2,302.32"
18/10/2022,1276470,Certitude (Support for Living),,Bi-Borough Director of Integrated Care,"4,489.32"
18/10/2022,1276470,Certitude (Support for Living),,Bi-Borough Director of Integrated Care,"5,819.48"
18/10/2022,1276470,Certitude (Support for Living),,Bi-Borough Director of Integrated Care,"4,256.92"
18/10/2022,1276470,Certitude (Support for Living),,Bi-Borough Director of Integrated Care,"5,819.48"
18/10/2022,1276470,Certitude (Support for Living),,Bi-Borough Director of Integrated Care,"17,243.52"
18/10/2022,1276470,Certitude (Support for Living),,Bi-Borough Director of Integrated Care,"12,988.04"
18/10/2022,1276470,Certitude (Support for Living),,Bi-Borough Director of Integrated Care,"12,278.76"
18/10/2022,1276470,Certitude (Support for Living),,Bi-Borough Director of Integrated Care,"8,587.28"
09/11/2022,1276470,Certitude (Support for Living),,Bi-Borough Director of Integrated Care,"4,256.92"
09/11/2022,1276470,Certitude (Support for Living),,Bi-Borough Director of Integrated Care,"5,819.48"
09/11/2022,1276470,Certitude (Support for Living),,Bi-Borough Director of Integrated Care,"17,243.52"
09/11/2022,1276470,Certitude (Support for Living),,Bi-Borough Director of Integrated Care,"12,988.04"
09/11/2022,1276470,Certitude (Support for Living),,Bi-Borough Director of Integrated Care,"12,278.76"
09/11/2022,1276470,Certitude (Support for Living),,Bi-Borough Director of Integrated Care,"2,302.32"
09/11/2022,1276470,Certitude (Support for Living),,Bi-Borough Director of Integrated Care,"5,372.08"
09/11/2022,1276470,Certitude (Support for Living),,Bi-Borough Director of Integrated Care,"8,587.28"
09/11/2022,1276470,Certitude (Support for Living),,Bi-Borough Director of Integrated Care,"4,489.32"
09/11/2022,1276470,Certitude (Support for Living),,Bi-Borough Director of Integrated Care,"5,819.48"
07/12/2022,1276470,Certitude (Support for Living),,Bi-Borough Director of Integrated Care,"12,278.76"
07/12/2022,1276470,Certitude (Support for Living),,Bi-Borough Director of Integrated Care,"8,587.28"
07/12/2022,1276470,Certitude (Support for Living),,Bi-Borough Director of Integrated Care,"2,302.32"
07/12/2022,1276470,Certitude (Support for Living),,Bi-Borough Director of Integrated Care,"5,372.08"
07/12/2022,1276470,Certitude (Support for Living),,Bi-Borough Director of Integrated Care,"4,489.32"
07/12/2022,1276470,Certitude (Support for Living),,Bi-Borough Director of Integrated Care,"5,819.48"
07/12/2022,1276470,Certitude (Support for Living),,Bi-Borough Director of Integrated Care,"4,256.92"
07/12/2022,1276470,Certitude (Support for Living),,Bi-Borough Director of Integrated Care,"5,819.48"
07/12/2022,1276470,Certitude (Support for Living),,Bi-Borough Director of Integrated Care,"17,243.52"
07/12/2022,1276470,Certitude (Support for Living),,Bi-Borough Director of Integrated Care,"12,988.04"
22/12/2022,1276470,Certitude (Support for Living),,Bi-Borough Director of Integrated Care,"17,243.52"
22/12/2022,1276470,Certitude (Support for Living),,Bi-Borough Director of Integrated Care,"12,988.04"
22/12/2022,1276470,Certitude (Support for Living),,Bi-Borough Director of Integrated Care,"12,278.76"
22/12/2022,1276470,Certitude (Support for Living),,Bi-Borough Director of Integrated Care,"8,587.28"
22/12/2022,1276470,Certitude (Support for Living),,Bi-Borough Director of Integrated Care,"2,302.32"
22/12/2022,1276470,Certitude (Support for Living),,Bi-Borough Director of Integrated Care,"5,372.08"
22/12/2022,1276470,Certitude (Support for Living),,Bi-Borough Director of Integrated Care,"4,489.32"
22/12/2022,1276470,Certitude (Support for Living),,Bi-Borough Director of Integrated Care,"5,819.48"
22/12/2022,1276470,Certitude (Support for Living),,Bi-Borough Director of Integrated Care,"4,256.92"
22/12/2022,1276470,Certitude (Support for Living),,Bi-Borough Director of Integrated Care,"5,819.48"
18/10/2022,1293636,Choice Support,,Bi-Borough Director of Integrated Care,"8,936.00"
18/10/2022,1293636,Choice Support,,Bi-Borough Director of Integrated Care,"4,812.00"
18/10/2022,1293636,Choice Support,,Bi-Borough Director of Integrated Care,685.52
09/11/2022,1293636,Choice Support,,Bi-Borough Director of Integrated Care,"8,936.00"
09/11/2022,1293636,Choice Support,,Bi-Borough Director of Integrated Care,685.52
09/11/2022,1293636,Choice Support,,Bi-Borough Director of Integrated Care,"4,812.00"
07/12/2022,1293636,Choice Support,,Bi-Borough Director of Integrated Care,"4,812.00"
07/12/2022,1293636,Choice Support,,Bi-Borough Director of Integrated Care,685.52
07/12/2022,1293636,Choice Support,,Bi-Borough Director of Integrated Care,"8,936.00"
22/12/2022,1293636,Choice Support,,Bi-Borough Director of Integrated Care,"8,936.00"
22/12/2022,1293636,Choice Support,,Bi-Borough Director of Integrated Care,"4,812.00"
22/12/2022,1293636,Choice Support,,Bi-Borough Director of Integrated Care,685.52
18/10/2022,1243458,Cocklebury Farmhouse Homes Ltd,,Bi-Borough Director of Integrated Care,"5,536.00"
18/10/2022,1243458,Cocklebury Farmhouse Homes Ltd,,Bi-Borough Director of Integrated Care,"6,408.00"
18/10/2022,1243458,Cocklebury Farmhouse Homes Ltd,,Bi-Borough Director of Integrated Care,"4,952.00"
18/10/2022,1243458,Cocklebury Farmhouse Homes Ltd,,Bi-Borough Director of Integrated Care,"5,568.00"
18/10/2022,1243458,Cocklebury Farmhouse Homes Ltd,,Bi-Borough Director of Integrated Care,"7,028.00"
09/11/2022,1243458,Cocklebury Farmhouse Homes Ltd,,Bi-Borough Director of Integrated Care,"6,408.00"
09/11/2022,1243458,Cocklebury Farmhouse Homes Ltd,,Bi-Borough Director of Integrated Care,"4,952.00"
09/11/2022,1243458,Cocklebury Farmhouse Homes Ltd,,Bi-Borough Director of Integrated Care,"5,568.00"
09/11/2022,1243458,Cocklebury Farmhouse Homes Ltd,,Bi-Borough Director of Integrated Care,"7,028.00"
09/11/2022,1243458,Cocklebury Farmhouse Homes Ltd,,Bi-Borough Director of Integrated Care,"5,536.00"
07/12/2022,1243458,Cocklebury Farmhouse Homes Ltd,,Bi-Borough Director of Integrated Care,"5,536.00"
07/12/2022,1243458,Cocklebury Farmhouse Homes Ltd,,Bi-Borough Director of Integrated Care,"6,408.00"
07/12/2022,1243458,Cocklebury Farmhouse Homes Ltd,,Bi-Borough Director of Integrated Care,"4,952.00"
07/12/2022,1243458,Cocklebury Farmhouse Homes Ltd,,Bi-Borough Director of Integrated Care,"5,568.00"
07/12/2022,1243458,Cocklebury Farmhouse Homes Ltd,,Bi-Borough Director of Integrated Care,"7,028.00"
22/12/2022,1243458,Cocklebury Farmhouse Homes Ltd,,Bi-Borough Director of Integrated Care,"5,536.00"
22/12/2022,1243458,Cocklebury Farmhouse Homes Ltd,,Bi-Borough Director of Integrated Care,"6,408.00"
22/12/2022,1243458,Cocklebury Farmhouse Homes Ltd,,Bi-Borough Director of Integrated Care,"4,952.00"
22/12/2022,1243458,Cocklebury Farmhouse Homes Ltd,,Bi-Borough Director of Integrated Care,"5,568.00"
22/12/2022,1243458,Cocklebury Farmhouse Homes Ltd,,Bi-Borough Director of Integrated Care,"7,028.00"
18/10/2022,1280687,Community Integrated Care,,Bi-Borough Director of Integrated Care,"10,493.84"
18/10/2022,1280687,Community Integrated Care,,Bi-Borough Director of Integrated Care,"5,858.97"
18/10/2022,1280687,Community Integrated Care,,Bi-Borough Director of Integrated Care,"10,493.84"
18/10/2022,1280687,Community Integrated Care,,Bi-Borough Director of Integrated Care,"11,407.04"
18/10/2022,1280687,Community Integrated Care,,Bi-Borough Director of Integrated Care,"21,667.44"
18/10/2022,1280687,Community Integrated Care,,Bi-Borough Director of Integrated Care,"17,261.96"
18/10/2022,1280687,Community Integrated Care,,Bi-Borough Director of Integrated Care,"10,507.28"
18/10/2022,1280687,Community Integrated Care,,Bi-Borough Director of Integrated Care,"10,244.24"
09/11/2022,1280687,Community Integrated Care,,Bi-Borough Director of Integrated Care,"10,493.84"
09/11/2022,1280687,Community Integrated Care,,Bi-Borough Director of Integrated Care,"7,655.02"
09/11/2022,1280687,Community Integrated Care,,Bi-Borough Director of Integrated Care,"7,673.04"
09/11/2022,1280687,Community Integrated Care,,Bi-Borough Director of Integrated Care,"10,507.28"
09/11/2022,1280687,Community Integrated Care,,Bi-Borough Director of Integrated Care,"10,507.28"
09/11/2022,1280687,Community Integrated Care,,Bi-Borough Director of Integrated Care,"10,493.84"
09/11/2022,1280687,Community Integrated Care,,Bi-Borough Director of Integrated Care,"6,534.56"
07/12/2022,1280687,Community Integrated Care,,Bi-Borough Director of Integrated Care,"13,089.43"
07/12/2022,1280687,Community Integrated Care,,Bi-Borough Director of Integrated Care,"10,193.75"
07/12/2022,1280687,Community Integrated Care,,Bi-Borough Director of Integrated Care,"94,575.60"
07/12/2022,1280687,Community Integrated Care,,Bi-Borough Director of Integrated Care,"10,493.84"
07/12/2022,1280687,Community Integrated Care,,Bi-Borough Director of Integrated Care,"6,397.36"
07/12/2022,1280687,Community Integrated Care,,Bi-Borough Director of Integrated Care,"13,033.21"
07/12/2022,1280687,Community Integrated Care,,Bi-Borough Director of Integrated Care,"69,153.35"
22/12/2022,1280687,Community Integrated Care,,Bi-Borough Director of Integrated Care,"6,397.36"
22/12/2022,1280687,Community Integrated Care,,Bi-Borough Director of Integrated Care,"7,903.24"
22/12/2022,1280687,Community Integrated Care,,Bi-Borough Director of Integrated Care,"10,822.08"
22/12/2022,1280687,Community Integrated Care,,Bi-Borough Director of Integrated Care,"7,064.40"
22/12/2022,1280687,Community Integrated Care,,Bi-Borough Director of Integrated Care,"10,808.64"
22/12/2022,1280687,Community Integrated Care,,Bi-Borough Director of Integrated Care,"10,822.08"
22/12/2022,1280687,Community Integrated Care,,Bi-Borough Director of Integrated Care,"10,493.84"
18/10/2022,1244212,Complete Care London,,Bi-Borough Director of Integrated Care,"3,320.00"
18/10/2022,1244212,Complete Care London,,Bi-Borough Director of Integrated Care,"4,316.00"
18/10/2022,1244212,Complete Care London,,Bi-Borough Director of Integrated Care,"2,526.00"
18/10/2022,1244212,Complete Care London,,Bi-Borough Director of Integrated Care,"2,526.00"
09/11/2022,1244212,Complete Care London,,Bi-Borough Director of Integrated Care,"3,320.00"
09/11/2022,1244212,Complete Care London,,Bi-Borough Director of Integrated Care,"4,316.00"
09/11/2022,1244212,Complete Care London,,Bi-Borough Director of Integrated Care,"2,526.00"
09/11/2022,1244212,Complete Care London,,Bi-Borough Director of Integrated Care,"2,526.00"
07/12/2022,1244212,Complete Care London,,Bi-Borough Director of Integrated Care,"2,526.00"
07/12/2022,1244212,Complete Care London,,Bi-Borough Director of Integrated Care,"2,526.00"
07/12/2022,1244212,Complete Care London,,Bi-Borough Director of Integrated Care,"3,320.00"
07/12/2022,1244212,Complete Care London,,Bi-Borough Director of Integrated Care,"4,316.00"
22/12/2022,1244212,Complete Care London,,Bi-Borough Director of Integrated Care,"2,526.00"
22/12/2022,1244212,Complete Care London,,Bi-Borough Director of Integrated Care,"2,526.00"
22/12/2022,1244212,Complete Care London,,Bi-Borough Director of Integrated Care,"3,320.00"
22/12/2022,1244212,Complete Care London,,Bi-Borough Director of Integrated Care,"4,316.00"
18/10/2022,1243470,Downing (Chertsey Road) Ltd,,Bi-Borough Director of Integrated Care,"5,971.20"
09/11/2022,1243470,Downing (Chertsey Road) Ltd,,Bi-Borough Director of Integrated Care,"5,971.20"
07/12/2022,1243470,Downing (Chertsey Road) Ltd,,Bi-Borough Director of Integrated Care,"5,971.20"
22/12/2022,1243470,Downing (Chertsey Road) Ltd,,Bi-Borough Director of Integrated Care,"5,971.20"
18/10/2022,1243474,Duckyls Farm Centre,,Bi-Borough Director of Integrated Care,"2,959.12"
09/11/2022,1243474,Duckyls Farm Centre,,Bi-Borough Director of Integrated Care,"2,959.12"
18/10/2022,1245108,Elysium Healthcare No 2 Ltd,,Bi-Borough Director of Integrated Care,"8,896.64"
09/11/2022,1245108,Elysium Healthcare No 2 Ltd,,Bi-Borough Director of Integrated Care,"8,896.64"
07/12/2022,1245108,Elysium Healthcare No 2 Ltd,,Bi-Borough Director of Integrated Care,"8,896.64"
22/12/2022,1245108,Elysium Healthcare No 2 Ltd,,Bi-Borough Director of Integrated Care,"11,498.72"
17/10/2022,1246934,Equal People Mencap (Kensington &,B*Voluntary-Spot-V Dep-Enhanced - do not u,Bi-Borough Director of Integrated Care,"2,394.00"
18/10/2022,1246934,Equal People Mencap (Kensington &,B*Voluntary-Spot-V Dep-Enhanced - do not u,Bi-Borough Director of Integrated Care,"2,394.00"
26/10/2022,1246934,Equal People Mencap (Kensington &,B*Voluntary-Spot-V Dep-Enhanced - do not u,Bi-Borough Director of Integrated Care,"1,566.00"
14/11/2022,1246934,Equal People Mencap (Kensington &,B*Voluntary-Spot-V Dep-Enhanced - do not u,Bi-Borough Director of Integrated Care,"2,160.00"
31/12/2022,1246934,Equal People Mencap (Kensington &,B*Voluntary-Spot-V Dep-Enhanced - do not u,Bi-Borough Director of Integrated Care,954
22/12/2022,1245110,Eric Patrick Care Ltd,,Bi-Borough Director of Integrated Care,"6,744.00"
18/10/2022,1259597,Ethica Services LTD,,Bi-Borough Director of Integrated Care,"1,656.00"
14/11/2022,1259597,Ethica Services LTD,,Bi-Borough Director of Integrated Care,"1,707.30"
12/12/2022,1259597,Ethica Services LTD,,Bi-Borough Director of Integrated Care,"1,562.22"
13/10/2022,1252498,Field Court Chambers,Legal Costs,Bi-Borough Director of Integrated Care,650
18/10/2022,1285826,Fircroft Services Limited,,Bi-Borough Director of Integrated Care,"5,556.00"
09/11/2022,1285826,Fircroft Services Limited,,Bi-Borough Director of Integrated Care,"6,847.77"
07/12/2022,1285826,Fircroft Services Limited,,Bi-Borough Director of Integrated Care,"5,722.68"
22/12/2022,1285826,Fircroft Services Limited,,Bi-Borough Director of Integrated Care,"5,722.68"
18/10/2022,1243483,Greenview Healthcare Ltd,,Bi-Borough Director of Integrated Care,"4,471.00"
09/11/2022,1243483,Greenview Healthcare Ltd,,Bi-Borough Director of Integrated Care,"4,471.00"
07/12/2022,1243483,Greenview Healthcare Ltd,,Bi-Borough Director of Integrated Care,"4,471.00"
22/12/2022,1243483,Greenview Healthcare Ltd,,Bi-Borough Director of Integrated Care,"4,471.00"
18/10/2022,1243485,Grove Care Partnership Ltd,,Bi-Borough Director of Integrated Care,"12,565.55"
09/11/2022,1243485,Grove Care Partnership Ltd,,Bi-Borough Director of Integrated Care,"9,198.40"
07/12/2022,1243485,Grove Care Partnership Ltd,,Bi-Borough Director of Integrated Care,"13,272.33"
22/12/2022,1243485,Grove Care Partnership Ltd,,Bi-Borough Director of Integrated Care,"9,658.36"
18/10/2022,1258503,Guyatt House Care Limited,,Bi-Borough Director of Integrated Care,"7,081.16"
09/11/2022,1258503,Guyatt House Care Limited,,Bi-Borough Director of Integrated Care,"7,081.16"
07/12/2022,1258503,Guyatt House Care Limited,,Bi-Borough Director of Integrated Care,"7,081.16"
22/12/2022,1258503,Guyatt House Care Limited,,Bi-Borough Director of Integrated Care,"7,081.16"
17/10/2022,1244531,HCP Staffing Services Ltd,,Bi-Borough Director of Integrated Care,717.88
17/10/2022,1244531,HCP Staffing Services Ltd,,Bi-Borough Director of Integrated Care,717.88
18/10/2022,1244531,HCP Staffing Services Ltd,,Bi-Borough Director of Integrated Care,717.88
18/10/2022,1244531,HCP Staffing Services Ltd,,Bi-Borough Director of Integrated Care,717.88
25/10/2022,1244531,HCP Staffing Services Ltd,,Bi-Borough Director of Integrated Care,717.88
25/10/2022,1244531,HCP Staffing Services Ltd,,Bi-Borough Director of Integrated Care,717.88
25/10/2022,1244531,HCP Staffing Services Ltd,,Bi-Borough Director of Integrated Care,717.88
31/10/2022,1244531,HCP Staffing Services Ltd,,Bi-Borough Director of Integrated Care,717.88
14/11/2022,1244531,HCP Staffing Services Ltd,,Bi-Borough Director of Integrated Care,717.88
14/11/2022,1244531,HCP Staffing Services Ltd,,Bi-Borough Director of Integrated Care,717.88
21/11/2022,1244531,HCP Staffing Services Ltd,,Bi-Borough Director of Integrated Care,717.88
28/11/2022,1244531,HCP Staffing Services Ltd,,Bi-Borough Director of Integrated Care,717.88
07/12/2022,1244531,HCP Staffing Services Ltd,,Bi-Borough Director of Integrated Care,717.88
05/10/2022,1244549,HF Trust Ltd,B*Voluntary-Spot-V Dep-Enhanced - do not u,Bi-Borough Director of Integrated Care,"1,162.00"
18/10/2022,1244549,HF Trust Ltd,,Bi-Borough Director of Integrated Care,"15,117.84"
18/10/2022,1244549,HF Trust Ltd,,Bi-Borough Director of Integrated Care,"3,645.44"
09/11/2022,1244549,HF Trust Ltd,,Bi-Borough Director of Integrated Care,"15,117.84"
09/11/2022,1244549,HF Trust Ltd,,Bi-Borough Director of Integrated Care,"3,645.44"
07/12/2022,1244549,HF Trust Ltd,,Bi-Borough Director of Integrated Care,"15,117.84"
07/12/2022,1244549,HF Trust Ltd,,Bi-Borough Director of Integrated Care,"3,645.44"
22/12/2022,1244549,HF Trust Ltd,,Bi-Borough Director of Integrated Care,"3,645.44"
22/12/2022,1244549,HF Trust Ltd,,Bi-Borough Director of Integrated Care,"15,117.84"
18/10/2022,1244515,Hampshire Autistic Society,Client Contributions - Residential OLA,Bi-Borough Director of Integrated Care,"2,395.60"
18/10/2022,1244515,Hampshire Autistic Society,,Bi-Borough Director of Integrated Care,"68,096.24"
09/11/2022,1244515,Hampshire Autistic Society,,Bi-Borough Director of Integrated Care,"9,411.32"
07/12/2022,1244515,Hampshire Autistic Society,,Bi-Borough Director of Integrated Care,"9,411.32"
22/12/2022,1244515,Hampshire Autistic Society,,Bi-Borough Director of Integrated Care,"9,411.32"
18/10/2022,1243490,Haydon Park Lodge Ltd,,Bi-Borough Director of Integrated Care,"4,000.00"
09/11/2022,1243490,Haydon Park Lodge Ltd,,Bi-Borough Director of Integrated Care,"4,000.00"
07/12/2022,1243490,Haydon Park Lodge Ltd,,Bi-Borough Director of Integrated Care,"4,000.00"
22/12/2022,1243490,Haydon Park Lodge Ltd,,Bi-Borough Director of Integrated Care,"4,000.00"
18/10/2022,1260257,Hazel Homes for Autism Ltd,,Bi-Borough Director of Integrated Care,"14,885.24"
18/10/2022,1260257,Hazel Homes for Autism Ltd,,Bi-Borough Director of Integrated Care,861
09/11/2022,1260257,Hazel Homes for Autism Ltd,,Bi-Borough Director of Integrated Care,"14,885.24"
09/11/2022,1260257,Hazel Homes for Autism Ltd,,Bi-Borough Director of Integrated Care,861
07/12/2022,1260257,Hazel Homes for Autism Ltd,,Bi-Borough Director of Integrated Care,861
07/12/2022,1260257,Hazel Homes for Autism Ltd,,Bi-Borough Director of Integrated Care,"14,885.24"
22/12/2022,1260257,Hazel Homes for Autism Ltd,,Bi-Borough Director of Integrated Care,"14,885.24"
22/12/2022,1260257,Hazel Homes for Autism Ltd,,Bi-Borough Director of Integrated Care,861
18/10/2022,1245125,Heathcotes (Southern) Ltd,,Bi-Borough Director of Integrated Care,"12,189.16"
09/11/2022,1245125,Heathcotes (Southern) Ltd,,Bi-Borough Director of Integrated Care,"12,189.16"
07/12/2022,1245125,Heathcotes (Southern) Ltd,,Bi-Borough Director of Integrated Care,"12,189.16"
22/12/2022,1245125,Heathcotes (Southern) Ltd,,Bi-Borough Director of Integrated Care,"12,189.16"
03/10/2022,1251347,Hillgreen Care Ltd,,Bi-Borough Director of Integrated Care,"11,992.86"
31/10/2022,1254857,Hope Care Agency,,Bi-Borough Director of Integrated Care,"1,879.36"
31/10/2022,1254857,Hope Care Agency,,Bi-Borough Director of Integrated Care,"1,879.36"
31/10/2022,1254857,Hope Care Agency,,Bi-Borough Director of Integrated Care,"1,879.36"
31/10/2022,1254857,Hope Care Agency,,Bi-Borough Director of Integrated Care,"1,879.36"
09/11/2022,1254857,Hope Care Agency,,Bi-Borough Director of Integrated Care,939.68
09/11/2022,1254857,Hope Care Agency,,Bi-Borough Director of Integrated Care,939.68
09/11/2022,1254857,Hope Care Agency,,Bi-Borough Director of Integrated Care,939.68
09/11/2022,1254857,Hope Care Agency,,Bi-Borough Director of Integrated Care,"1,879.36"
09/11/2022,1254857,Hope Care Agency,,Bi-Borough Director of Integrated Care,"1,879.36"
09/11/2022,1254857,Hope Care Agency,,Bi-Borough Director of Integrated Care,604.08
09/11/2022,1254857,Hope Care Agency,,Bi-Borough Director of Integrated Care,"1,935.36"
09/11/2022,1254857,Hope Care Agency,,Bi-Borough Director of Integrated Care,"1,935.36"
28/11/2022,1254857,Hope Care Agency,,Bi-Borough Director of Integrated Care,"1,992.48"
28/11/2022,1254857,Hope Care Agency,,Bi-Borough Director of Integrated Care,"1,992.48"
28/11/2022,1254857,Hope Care Agency,,Bi-Borough Director of Integrated Care,"1,879.36"
28/11/2022,1254857,Hope Care Agency,,Bi-Borough Director of Integrated Care,"1,879.36"
28/11/2022,1254857,Hope Care Agency,,Bi-Borough Director of Integrated Care,"1,887.85"
28/11/2022,1254857,Hope Care Agency,,Bi-Borough Director of Integrated Care,"1,887.85"
28/11/2022,1254857,Hope Care Agency,,Bi-Borough Director of Integrated Care,"1,879.36"
28/11/2022,1254857,Hope Care Agency,,Bi-Borough Director of Integrated Care,"1,879.36"
18/10/2022,1267460,Hunters Lodge Care Home,,Bi-Borough Director of Integrated Care,"3,930.64"
09/11/2022,1267460,Hunters Lodge Care Home,,Bi-Borough Director of Integrated Care,"3,930.64"
07/12/2022,1267460,Hunters Lodge Care Home,,Bi-Borough Director of Integrated Care,"3,930.64"
22/12/2022,1267460,Hunters Lodge Care Home,,Bi-Borough Director of Integrated Care,"3,930.64"
06/10/2022,1247526,Integrity Care and Support Ltd,B*Voluntary-Spot-V Dep-Enhanced - do not u,Bi-Borough Director of Integrated Care,"1,101.65"
18/10/2022,1247526,Integrity Care and Support Ltd,B*Voluntary-Spot-V Dep-Enhanced - do not u,Bi-Borough Director of Integrated Care,841.26
18/10/2022,1247526,Integrity Care and Support Ltd,B*Voluntary-Spot-V Dep-Enhanced - do not u,Bi-Borough Director of Integrated Care,981.47
18/10/2022,1247526,Integrity Care and Support Ltd,B*Voluntary-Spot-V Dep-Enhanced - do not u,Bi-Borough Director of Integrated Care,540.81
18/10/2022,1247526,Integrity Care and Support Ltd,B*Voluntary-Spot-V Dep-Enhanced - do not u,Bi-Borough Director of Integrated Care,"1,121.68"
18/10/2022,1247526,Integrity Care and Support Ltd,B*Voluntary-Spot-V Dep-Enhanced - do not u,Bi-Borough Director of Integrated Care,841.26
18/10/2022,1247526,Integrity Care and Support Ltd,B*Voluntary-Spot-V Dep-Enhanced - do not u,Bi-Borough Director of Integrated Care,"1,161.74"
18/10/2022,1247526,Integrity Care and Support Ltd,B*Voluntary-Spot-V Dep-Enhanced - do not u,Bi-Borough Director of Integrated Care,761.14
18/10/2022,1247526,Integrity Care and Support Ltd,B*Voluntary-Spot-V Dep-Enhanced - do not u,Bi-Borough Director of Integrated Care,"1,582.37"
18/10/2022,1247526,Integrity Care and Support Ltd,B*Voluntary-Spot-V Dep-Enhanced - do not u,Bi-Borough Director of Integrated Care,961.44
18/10/2022,1247526,Integrity Care and Support Ltd,B*Voluntary-Spot-V Dep-Enhanced - do not u,Bi-Borough Director of Integrated Care,580.87
18/10/2022,1247526,Integrity Care and Support Ltd,B*Voluntary-Spot-V Dep-Enhanced - do not u,Bi-Borough Director of Integrated Care,761.14
18/10/2022,1247526,Integrity Care and Support Ltd,B*Voluntary-Spot-V Dep-Enhanced - do not u,Bi-Borough Director of Integrated Care,"1,281.92"
18/10/2022,1247526,Integrity Care and Support Ltd,B*Voluntary-Spot-V Dep-Enhanced - do not u,Bi-Borough Director of Integrated Care,861.29
18/10/2022,1247526,Integrity Care and Support Ltd,B*Voluntary-Spot-V Dep-Enhanced - do not u,Bi-Borough Director of Integrated Care,660.99
18/10/2022,1247526,Integrity Care and Support Ltd,B*Voluntary-Spot-V Dep-Enhanced - do not u,Bi-Borough Director of Integrated Care,"1,121.68"
18/10/2022,1247526,Integrity Care and Support Ltd,B*Voluntary-Spot-V Dep-Enhanced - do not u,Bi-Borough Director of Integrated Care,"1,402.10"
18/10/2022,1247526,Integrity Care and Support Ltd,B*Voluntary-Spot-V Dep-Enhanced - do not u,Bi-Borough Director of Integrated Care,841.26
18/10/2022,1247526,Integrity Care and Support Ltd,B*Voluntary-Spot-V Dep-Enhanced - do not u,Bi-Borough Director of Integrated Care,"1,311.97"
18/10/2022,1247526,Integrity Care and Support Ltd,B*Voluntary-Spot-V Dep-Enhanced - do not u,Bi-Borough Director of Integrated Care,"1,281.92"
18/10/2022,1247526,Integrity Care and Support Ltd,B*Voluntary-Spot-V Dep-Enhanced - do not u,Bi-Borough Director of Integrated Care,560.84
18/10/2022,1247526,Integrity Care and Support Ltd,B*Voluntary-Spot-V Dep-Enhanced - do not u,Bi-Borough Director of Integrated Care,"1,141.71"
14/11/2022,1247526,Integrity Care and Support Ltd,B*Voluntary-Spot-V Dep-Enhanced - do not u,Bi-Borough Director of Integrated Care,591.56
14/11/2022,1247526,Integrity Care and Support Ltd,B*Voluntary-Spot-V Dep-Enhanced - do not u,Bi-Borough Director of Integrated Care,886.06
14/11/2022,1247526,Integrity Care and Support Ltd,B*Voluntary-Spot-V Dep-Enhanced - do not u,Bi-Borough Director of Integrated Care,"1,010.08"
14/11/2022,1247526,Integrity Care and Support Ltd,B*Voluntary-Spot-V Dep-Enhanced - do not u,Bi-Borough Director of Integrated Care,780.79
14/11/2022,1247526,Integrity Care and Support Ltd,B*Voluntary-Spot-V Dep-Enhanced - do not u,Bi-Borough Director of Integrated Care,"1,007.52"
14/11/2022,1247526,Integrity Care and Support Ltd,B*Voluntary-Spot-V Dep-Enhanced - do not u,Bi-Borough Director of Integrated Care,"2,055.23"
14/11/2022,1247526,Integrity Care and Support Ltd,B*Voluntary-Spot-V Dep-Enhanced - do not u,Bi-Borough Director of Integrated Care,"1,697.12"
14/11/2022,1247526,Integrity Care and Support Ltd,B*Voluntary-Spot-V Dep-Enhanced - do not u,Bi-Borough Director of Integrated Care,"1,599.31"
14/11/2022,1247526,Integrity Care and Support Ltd,B*Voluntary-Spot-V Dep-Enhanced - do not u,Bi-Borough Director of Integrated Care,"1,374.91"
14/11/2022,1247526,Integrity Care and Support Ltd,B*Voluntary-Spot-V Dep-Enhanced - do not u,Bi-Borough Director of Integrated Care,572.81
14/11/2022,1247526,Integrity Care and Support Ltd,B*Voluntary-Spot-V Dep-Enhanced - do not u,Bi-Borough Director of Integrated Care,"1,466.97"
14/11/2022,1247526,Integrity Care and Support Ltd,B*Voluntary-Spot-V Dep-Enhanced - do not u,Bi-Borough Director of Integrated Care,"1,185.05"
14/11/2022,1247526,Integrity Care and Support Ltd,B*Voluntary-Spot-V Dep-Enhanced - do not u,Bi-Borough Director of Integrated Care,975.14
14/11/2022,1247526,Integrity Care and Support Ltd,B*Voluntary-Spot-V Dep-Enhanced - do not u,Bi-Borough Director of Integrated Care,"1,354.88"
14/11/2022,1247526,Integrity Care and Support Ltd,B*Voluntary-Spot-V Dep-Enhanced - do not u,Bi-Borough Director of Integrated Care,"1,125.59"
14/11/2022,1247526,Integrity Care and Support Ltd,B*Voluntary-Spot-V Dep-Enhanced - do not u,Bi-Borough Director of Integrated Care,591.56
14/11/2022,1247526,Integrity Care and Support Ltd,B*Voluntary-Spot-V Dep-Enhanced - do not u,Bi-Borough Director of Integrated Care,511.44
14/11/2022,1247526,Integrity Care and Support Ltd,B*Voluntary-Spot-V Dep-Enhanced - do not u,Bi-Borough Director of Integrated Care,522.51
14/11/2022,1247526,Integrity Care and Support Ltd,B*Voluntary-Spot-V Dep-Enhanced - do not u,Bi-Borough Director of Integrated Care,507.6
14/11/2022,1247526,Integrity Care and Support Ltd,B*Voluntary-Spot-V Dep-Enhanced - do not u,Bi-Borough Director of Integrated Care,"1,172.05"
14/11/2022,1247526,Integrity Care and Support Ltd,B*Voluntary-Spot-V Dep-Enhanced - do not u,Bi-Borough Director of Integrated Care,571.53
09/12/2022,1247526,Integrity Care and Support Ltd,B*Voluntary-Spot-V Dep-Enhanced - do not u,Bi-Borough Director of Integrated Care,532.75
09/12/2022,1247526,Integrity Care and Support Ltd,B*Voluntary-Spot-V Dep-Enhanced - do not u,Bi-Borough Director of Integrated Care,"1,022.88"
09/12/2022,1247526,Integrity Care and Support Ltd,B*Voluntary-Spot-V Dep-Enhanced - do not u,Bi-Borough Director of Integrated Care,"1,576.94"
09/12/2022,1247526,Integrity Care and Support Ltd,B*Voluntary-Spot-V Dep-Enhanced - do not u,Bi-Borough Director of Integrated Care,895.02
09/12/2022,1247526,Integrity Care and Support Ltd,B*Voluntary-Spot-V Dep-Enhanced - do not u,Bi-Borough Director of Integrated Care,"1,790.04"
09/12/2022,1247526,Integrity Care and Support Ltd,B*Voluntary-Spot-V Dep-Enhanced - do not u,Bi-Borough Director of Integrated Care,681.92
09/12/2022,1247526,Integrity Care and Support Ltd,B*Voluntary-Spot-V Dep-Enhanced - do not u,Bi-Borough Director of Integrated Care,895.02
09/12/2022,1247526,Integrity Care and Support Ltd,B*Voluntary-Spot-V Dep-Enhanced - do not u,Bi-Borough Director of Integrated Care,575.37
09/12/2022,1247526,Integrity Care and Support Ltd,B*Voluntary-Spot-V Dep-Enhanced - do not u,Bi-Borough Director of Integrated Care,"1,662.18"
09/12/2022,1247526,Integrity Care and Support Ltd,B*Voluntary-Spot-V Dep-Enhanced - do not u,Bi-Borough Director of Integrated Care,"1,065.50"
09/12/2022,1247526,Integrity Care and Support Ltd,B*Voluntary-Spot-V Dep-Enhanced - do not u,Bi-Borough Director of Integrated Care,958.95
09/12/2022,1247526,Integrity Care and Support Ltd,B*Voluntary-Spot-V Dep-Enhanced - do not u,Bi-Borough Director of Integrated Care,511.44
09/12/2022,1247526,Integrity Care and Support Ltd,B*Voluntary-Spot-V Dep-Enhanced - do not u,Bi-Borough Director of Integrated Care,"1,513.01"
09/12/2022,1247526,Integrity Care and Support Ltd,B*Voluntary-Spot-V Dep-Enhanced - do not u,Bi-Borough Director of Integrated Care,"1,385.15"
09/12/2022,1247526,Integrity Care and Support Ltd,B*Voluntary-Spot-V Dep-Enhanced - do not u,Bi-Borough Director of Integrated Care,"1,363.84"
09/12/2022,1247526,Integrity Care and Support Ltd,B*Voluntary-Spot-V Dep-Enhanced - do not u,Bi-Borough Director of Integrated Care,"1,193.36"
09/12/2022,1247526,Integrity Care and Support Ltd,B*Voluntary-Spot-V Dep-Enhanced - do not u,Bi-Borough Director of Integrated Care,"1,150.74"
09/12/2022,1247526,Integrity Care and Support Ltd,B*Voluntary-Spot-V Dep-Enhanced - do not u,Bi-Borough Director of Integrated Care,"1,278.60"
31/12/2022,1247526,Integrity Care and Support Ltd,B*Voluntary-Spot-V Dep-Enhanced - do not u,Bi-Borough Director of Integrated Care,"2,173.62"
31/12/2022,1247526,Integrity Care and Support Ltd,B*Voluntary-Spot-V Dep-Enhanced - do not u,Bi-Borough Director of Integrated Care,"1,417.12"
31/12/2022,1247526,Integrity Care and Support Ltd,B*Voluntary-Spot-V Dep-Enhanced - do not u,Bi-Borough Director of Integrated Care,"1,491.70"
31/12/2022,1247526,Integrity Care and Support Ltd,B*Voluntary-Spot-V Dep-Enhanced - do not u,Bi-Borough Director of Integrated Care,852.4
31/12/2022,1247526,Integrity Care and Support Ltd,B*Voluntary-Spot-V Dep-Enhanced - do not u,Bi-Borough Director of Integrated Care,596.68
31/12/2022,1247526,Integrity Care and Support Ltd,B*Voluntary-Spot-V Dep-Enhanced - do not u,Bi-Borough Director of Integrated Care,511.44
31/12/2022,1247526,Integrity Care and Support Ltd,B*Voluntary-Spot-V Dep-Enhanced - do not u,Bi-Borough Director of Integrated Care,"1,086.81"
31/12/2022,1247526,Integrity Care and Support Ltd,B*Voluntary-Spot-V Dep-Enhanced - do not u,Bi-Borough Director of Integrated Care,831.09
31/12/2022,1247526,Integrity Care and Support Ltd,B*Voluntary-Spot-V Dep-Enhanced - do not u,Bi-Borough Director of Integrated Care,"1,534.32"
31/12/2022,1247526,Integrity Care and Support Ltd,B*Voluntary-Spot-V Dep-Enhanced - do not u,Bi-Borough Director of Integrated Care,"1,576.94"
31/12/2022,1247526,Integrity Care and Support Ltd,B*Voluntary-Spot-V Dep-Enhanced - do not u,Bi-Borough Director of Integrated Care,980.26
31/12/2022,1247526,Integrity Care and Support Ltd,B*Voluntary-Spot-V Dep-Enhanced - do not u,Bi-Borough Director of Integrated Care,554.06
31/12/2022,1247526,Integrity Care and Support Ltd,B*Voluntary-Spot-V Dep-Enhanced - do not u,Bi-Borough Director of Integrated Care,852.4
31/12/2022,1247526,Integrity Care and Support Ltd,B*Voluntary-Spot-V Dep-Enhanced - do not u,Bi-Borough Director of Integrated Care,767.16
31/12/2022,1247526,Integrity Care and Support Ltd,B*Voluntary-Spot-V Dep-Enhanced - do not u,Bi-Borough Director of Integrated Care,"1,768.73"
31/12/2022,1247526,Integrity Care and Support Ltd,B*Voluntary-Spot-V Dep-Enhanced - do not u,Bi-Borough Director of Integrated Care,745.85
31/12/2022,1247526,Integrity Care and Support Ltd,B*Voluntary-Spot-V Dep-Enhanced - do not u,Bi-Borough Director of Integrated Care,"1,193.36"
31/12/2022,1247526,Integrity Care and Support Ltd,B*Voluntary-Spot-V Dep-Enhanced - do not u,Bi-Borough Director of Integrated Care,"1,193.36"
31/12/2022,1247526,Integrity Care and Support Ltd,B*Voluntary-Spot-V Dep-Enhanced - do not u,Bi-Borough Director of Integrated Care,511.44
31/12/2022,1247526,Integrity Care and Support Ltd,B*Voluntary-Spot-V Dep-Enhanced - do not u,Bi-Borough Director of Integrated Care,958.95
31/12/2022,1247526,Integrity Care and Support Ltd,B*Voluntary-Spot-V Dep-Enhanced - do not u,Bi-Borough Director of Integrated Care,575.37
09/11/2022,1247598,Kisimul Group Ltd,,Bi-Borough Director of Integrated Care,"8,401.02"
16/11/2022,1247598,Kisimul Group Ltd,,Bi-Borough Director of Integrated Care,"73,797.94"
22/12/2022,1247598,Kisimul Group Ltd,,Bi-Borough Director of Integrated Care,"28,083.78"
18/10/2022,1243535,Sequence Care Ltd,,Bi-Borough Director of Integrated Care,"11,188.58"
18/10/2022,1243535,Sequence Care Ltd,,Bi-Borough Director of Integrated Care,"37,380.28"
18/10/2022,1243535,Sequence Care Ltd,,Bi-Borough Director of Integrated Care,"18,708.14"
09/11/2022,1243535,Sequence Care Ltd,,Bi-Borough Director of Integrated Care,"17,857.84"
09/11/2022,1243535,Sequence Care Ltd,,Bi-Borough Director of Integrated Care,"10,680.08"
09/11/2022,1243535,Sequence Care Ltd,,Bi-Borough Director of Integrated Care,"10,680.08"
22/12/2022,1243535,Sequence Care Ltd,,Bi-Borough Director of Integrated Care,"35,715.68"
22/12/2022,1243535,Sequence Care Ltd,,Bi-Borough Director of Integrated Care,"29,338.64"
22/12/2022,1243535,Sequence Care Ltd,,Bi-Borough Director of Integrated Care,"64,510.35"
18/10/2022,1243506,Lifeways Community Care Ltd,,Bi-Borough Director of Integrated Care,"12,708.16"
18/10/2022,1243506,Lifeways Community Care Ltd,,Bi-Borough Director of Integrated Care,"7,385.72"
09/11/2022,1243506,Lifeways Community Care Ltd,,Bi-Borough Director of Integrated Care,"12,708.16"
09/11/2022,1243506,Lifeways Community Care Ltd,,Bi-Borough Director of Integrated Care,"7,385.72"
07/12/2022,1243506,Lifeways Community Care Ltd,,Bi-Borough Director of Integrated Care,"12,708.16"
07/12/2022,1243506,Lifeways Community Care Ltd,,Bi-Borough Director of Integrated Care,"7,385.72"
22/12/2022,1243506,Lifeways Community Care Ltd,,Bi-Borough Director of Integrated Care,"12,708.16"
22/12/2022,1243506,Lifeways Community Care Ltd,,Bi-Borough Director of Integrated Care,"7,385.72"
18/10/2022,1244762,Livability,,Bi-Borough Director of Integrated Care,"6,180.00"
09/11/2022,1244762,Livability,,Bi-Borough Director of Integrated Care,"6,180.00"
07/12/2022,1244762,Livability,,Bi-Borough Director of Integrated Care,"6,180.00"
22/12/2022,1244762,Livability,,Bi-Borough Director of Integrated Care,"6,180.00"
05/10/2022,1247650,London Care Ltd,,Bi-Borough Director of Integrated Care,"1,023.23"
31/10/2022,1247650,London Care Ltd,,Bi-Borough Director of Integrated Care,"1,006.80"
15/11/2022,1247650,London Care Ltd,,Bi-Borough Director of Integrated Care,708.78
15/11/2022,1247650,London Care Ltd,,Bi-Borough Director of Integrated Care,"1,467.53"
15/11/2022,1247650,London Care Ltd,,Bi-Borough Director of Integrated Care,"1,506.11"
15/11/2022,1247650,London Care Ltd,,Bi-Borough Director of Integrated Care,"1,507.66"
15/11/2022,1247650,London Care Ltd,,Bi-Borough Director of Integrated Care,908.03
23/11/2022,1247650,London Care Ltd,,Bi-Borough Director of Integrated Care,741.2
23/11/2022,1247650,London Care Ltd,,Bi-Borough Director of Integrated Care,"1,446.21"
23/11/2022,1247650,London Care Ltd,,Bi-Borough Director of Integrated Care,"1,503.95"
23/11/2022,1247650,London Care Ltd,,Bi-Borough Director of Integrated Care,"1,411.70"
23/11/2022,1247650,London Care Ltd,,Bi-Borough Director of Integrated Care,944.25
01/12/2022,1247650,London Care Ltd,,Bi-Borough Director of Integrated Care,"1,067.44"
15/12/2022,1247650,London Care Ltd,,Bi-Borough Director of Integrated Care,993.65
15/12/2022,1247650,London Care Ltd,,Bi-Borough Director of Integrated Care,785.27
15/12/2022,1247650,London Care Ltd,,Bi-Borough Director of Integrated Care,"1,568.91"
15/12/2022,1247650,London Care Ltd,,Bi-Borough Director of Integrated Care,"1,460.89"
15/12/2022,1247650,London Care Ltd,,Bi-Borough Director of Integrated Care,"1,500.75"
28/12/2022,1247650,London Care Ltd,,Bi-Borough Director of Integrated Care,"1,067.44"
18/10/2022,1247651,London Care Partnership Ltd,,Bi-Borough Director of Integrated Care,"8,515.52"
09/11/2022,1247651,London Care Partnership Ltd,,Bi-Borough Director of Integrated Care,"8,515.52"
07/12/2022,1247651,London Care Partnership Ltd,,Bi-Borough Director of Integrated Care,"8,515.52"
13/12/2022,1247651,London Care Partnership Ltd,,Bi-Borough Director of Integrated Care,"24,269.76"
22/12/2022,1247651,London Care Partnership Ltd,,Bi-Borough Director of Integrated Care,"8,515.52"
18/10/2022,1247656,London Cyrenians Housing Ltd,,Bi-Borough Director of Integrated Care,"9,642.88"
18/10/2022,1247656,London Cyrenians Housing Ltd,,Bi-Borough Director of Integrated Care,"6,320.00"
09/11/2022,1247656,London Cyrenians Housing Ltd,,Bi-Borough Director of Integrated Care,"6,320.00"
09/11/2022,1247656,London Cyrenians Housing Ltd,,Bi-Borough Director of Integrated Care,"9,642.88"
07/12/2022,1247656,London Cyrenians Housing Ltd,,Bi-Borough Director of Integrated Care,"9,642.88"
07/12/2022,1247656,London Cyrenians Housing Ltd,,Bi-Borough Director of Integrated Care,"6,320.00"
22/12/2022,1247656,London Cyrenians Housing Ltd,,Bi-Borough Director of Integrated Care,"6,320.00"
22/12/2022,1247656,London Cyrenians Housing Ltd,,Bi-Borough Director of Integrated Care,"9,642.88"
18/10/2022,1247854,Look Ahead Housing & Care Ltd,,Bi-Borough Director of Integrated Care,"1,513.40"
09/11/2022,1247854,Look Ahead Housing & Care Ltd,,Bi-Borough Director of Integrated Care,"1,513.40"
07/12/2022,1247854,Look Ahead Housing & Care Ltd,,Bi-Borough Director of Integrated Care,"1,513.40"
22/12/2022,1247854,Look Ahead Housing & Care Ltd,,Bi-Borough Director of Integrated Care,"1,513.40"
26/10/2022,1259132,MMR Home Care LTD,,Bi-Borough Director of Integrated Care,"4,228.56"
26/10/2022,1259132,MMR Home Care LTD,,Bi-Borough Director of Integrated Care,"4,228.56"
14/11/2022,1259132,MMR Home Care LTD,,Bi-Borough Director of Integrated Care,"4,228.56"
14/11/2022,1259132,MMR Home Care LTD,,Bi-Borough Director of Integrated Care,"4,228.56"
14/12/2022,1259132,MMR Home Care LTD,,Bi-Borough Director of Integrated Care,"4,482.80"
14/12/2022,1259132,MMR Home Care LTD,,Bi-Borough Director of Integrated Care,"4,483.36"
18/10/2022,1282320,Marcus and Marcus,,Bi-Borough Director of Integrated Care,"23,440.00"
09/11/2022,1282320,Marcus and Marcus,,Bi-Borough Director of Integrated Care,"20,366.36"
09/11/2022,1282320,Marcus and Marcus,,Bi-Borough Director of Integrated Care,"20,366.36"
09/11/2022,1282320,Marcus and Marcus,,Bi-Borough Director of Integrated Care,"23,440.00"
07/12/2022,1282320,Marcus and Marcus,,Bi-Borough Director of Integrated Care,"6,850.00"
07/12/2022,1282320,Marcus and Marcus,,Bi-Borough Director of Integrated Care,"6,850.00"
22/12/2022,1282320,Marcus and Marcus,,Bi-Borough Director of Integrated Care,"6,850.00"
22/12/2022,1282320,Marcus and Marcus,,Bi-Borough Director of Integrated Care,"6,850.00"
18/10/2022,1245144,Methodist Homes For The Aged,,Bi-Borough Director of Integrated Care,"3,191.52"
09/11/2022,1245144,Methodist Homes For The Aged,,Bi-Borough Director of Integrated Care,"3,191.52"
07/12/2022,1245144,Methodist Homes For The Aged,,Bi-Borough Director of Integrated Care,"3,191.52"
22/12/2022,1245144,Methodist Homes For The Aged,,Bi-Borough Director of Integrated Care,"3,191.52"
18/10/2022,1247933,Minster Pathways Ltd,,Bi-Borough Director of Integrated Care,"1,248.00"
18/10/2022,1247933,Minster Pathways Ltd,,Bi-Borough Director of Integrated Care,"3,646.56"
09/11/2022,1247933,Minster Pathways Ltd,,Bi-Borough Director of Integrated Care,"1,248.00"
09/11/2022,1247933,Minster Pathways Ltd,,Bi-Borough Director of Integrated Care,"3,646.56"
07/12/2022,1247933,Minster Pathways Ltd,,Bi-Borough Director of Integrated Care,"1,248.00"
07/12/2022,1247933,Minster Pathways Ltd,,Bi-Borough Director of Integrated Care,"3,646.56"
22/12/2022,1247933,Minster Pathways Ltd,,Bi-Borough Director of Integrated Care,"3,646.56"
22/12/2022,1247933,Minster Pathways Ltd,,Bi-Borough Director of Integrated Care,"1,248.00"
18/10/2022,1244905,Nas Services Ltd (Residential),,Bi-Borough Director of Integrated Care,"7,970.16"
18/10/2022,1244905,Nas Services Ltd (Residential),,Bi-Borough Director of Integrated Care,"4,058.88"
25/10/2022,1244905,Nas Services Ltd (Residential),B*Voluntary-Spot-V Dep-Enhanced - do not u,Bi-Borough Director of Integrated Care,"1,418.44"
25/10/2022,1244905,Nas Services Ltd (Residential),B*Voluntary-Spot-V Dep-Enhanced - do not u,Bi-Borough Director of Integrated Care,"5,258.40"
25/10/2022,1244905,Nas Services Ltd (Residential),B*Voluntary-Spot-V Dep-Enhanced - do not u,Bi-Borough Director of Integrated Care,"1,870.92"
09/11/2022,1244905,Nas Services Ltd (Residential),,Bi-Borough Director of Integrated Care,"4,058.88"
09/11/2022,1244905,Nas Services Ltd (Residential),,Bi-Borough Director of Integrated Care,"7,970.16"
22/12/2022,1244905,Nas Services Ltd (Residential),,Bi-Borough Director of Integrated Care,"15,940.32"
22/12/2022,1244905,Nas Services Ltd (Residential),,Bi-Borough Director of Integrated Care,"8,117.76"
22/12/2022,1244905,Nas Services Ltd (Residential),,Bi-Borough Director of Integrated Care,"16,896.60"
22/12/2022,1244905,Nas Services Ltd (Residential),,Bi-Borough Director of Integrated Care,"37,000.40"
25/10/2022,1244906,Nas Services Ltd (Use 3009018),B*Voluntary-Spot-V Dep-Enhanced - do not u,Bi-Borough Director of Integrated Care,"5,243.80"
25/10/2022,1244906,Nas Services Ltd (Use 3009018),B*Voluntary-Spot-V Dep-Enhanced - do not u,Bi-Borough Director of Integrated Care,"4,879.20"
25/10/2022,1244906,Nas Services Ltd (Use 3009018),B*Voluntary-Spot-V Dep-Enhanced - do not u,Bi-Borough Director of Integrated Care,"1,308.36"
25/10/2022,1244906,Nas Services Ltd (Use 3009018),B*Voluntary-Spot-V Dep-Enhanced - do not u,Bi-Borough Director of Integrated Care,"1,744.52"
25/10/2022,1244906,Nas Services Ltd (Use 3009018),B*Voluntary-Spot-V Dep-Enhanced - do not u,Bi-Borough Director of Integrated Care,"2,915.36"
25/10/2022,1244906,Nas Services Ltd (Use 3009018),B*Voluntary-Spot-V Dep-Enhanced - do not u,Bi-Borough Director of Integrated Care,"1,772.04"
25/10/2022,1244906,Nas Services Ltd (Use 3009018),B*Voluntary-Spot-V Dep-Enhanced - do not u,Bi-Borough Director of Integrated Care,"2,970.72"
25/10/2022,1244906,Nas Services Ltd (Use 3009018),B*Voluntary-Spot-V Dep-Enhanced - do not u,Bi-Borough Director of Integrated Care,"1,124.96"
25/10/2022,1244906,Nas Services Ltd (Use 3009018),B*Voluntary-Spot-V Dep-Enhanced - do not u,Bi-Borough Director of Integrated Care,"2,027.52"
18/10/2022,1282551,Nisacraftcare Limited,,Bi-Borough Director of Integrated Care,"14,092.08"
18/10/2022,1282551,Nisacraftcare Limited,,Bi-Borough Director of Integrated Care,"8,065.20"
18/10/2022,1282551,Nisacraftcare Limited,,Bi-Borough Director of Integrated Care,"9,786.76"
09/11/2022,1282551,Nisacraftcare Limited,,Bi-Borough Director of Integrated Care,"8,065.20"
09/11/2022,1282551,Nisacraftcare Limited,,Bi-Borough Director of Integrated Care,"9,786.76"
09/11/2022,1282551,Nisacraftcare Limited,,Bi-Borough Director of Integrated Care,"13,440.00"
09/11/2022,1282551,Nisacraftcare Limited,,Bi-Borough Director of Integrated Care,"9,424.02"
07/12/2022,1282551,Nisacraftcare Limited,,Bi-Borough Director of Integrated Care,"10,980.04"
07/12/2022,1282551,Nisacraftcare Limited,,Bi-Borough Director of Integrated Care,"8,065.20"
07/12/2022,1282551,Nisacraftcare Limited,,Bi-Borough Director of Integrated Care,"8,711.00"
22/12/2022,1282551,Nisacraftcare Limited,,Bi-Borough Director of Integrated Care,"8,065.20"
22/12/2022,1282551,Nisacraftcare Limited,,Bi-Borough Director of Integrated Care,"7,635.24"
22/12/2022,1282551,Nisacraftcare Limited,,Bi-Borough Director of Integrated Care,"10,980.04"
18/10/2022,1247147,Norwood Schools Ltd,,Bi-Borough Director of Integrated Care,"7,305.64"
18/10/2022,1247147,Norwood Schools Ltd,,Bi-Borough Director of Integrated Care,"4,678.68"
18/10/2022,1247147,Norwood Schools Ltd,,Bi-Borough Director of Integrated Care,"6,487.44"
18/10/2022,1247147,Norwood Schools Ltd,,Bi-Borough Director of Integrated Care,"9,472.52"
09/11/2022,1247147,Norwood Schools Ltd,,Bi-Borough Director of Integrated Care,"7,305.64"
09/11/2022,1247147,Norwood Schools Ltd,,Bi-Borough Director of Integrated Care,"2,172.34"
09/11/2022,1247147,Norwood Schools Ltd,,Bi-Borough Director of Integrated Care,"21,054.06"
09/11/2022,1247147,Norwood Schools Ltd,,Bi-Borough Director of Integrated Care,"6,487.44"
09/11/2022,1247147,Norwood Schools Ltd,,Bi-Borough Director of Integrated Care,"9,472.52"
07/12/2022,1247147,Norwood Schools Ltd,,Bi-Borough Director of Integrated Care,"7,305.64"
07/12/2022,1247147,Norwood Schools Ltd,,Bi-Borough Director of Integrated Care,"4,678.68"
07/12/2022,1247147,Norwood Schools Ltd,,Bi-Borough Director of Integrated Care,"6,487.44"
07/12/2022,1247147,Norwood Schools Ltd,,Bi-Borough Director of Integrated Care,"9,472.52"
22/12/2022,1247147,Norwood Schools Ltd,,Bi-Borough Director of Integrated Care,"6,487.44"
22/12/2022,1247147,Norwood Schools Ltd,,Bi-Borough Director of Integrated Care,"9,472.52"
22/12/2022,1247147,Norwood Schools Ltd,,Bi-Borough Director of Integrated Care,"7,305.64"
22/12/2022,1247147,Norwood Schools Ltd,,Bi-Borough Director of Integrated Care,"4,678.68"
18/10/2022,1243520,Oakview Care (Berkshire) Ltd,,Bi-Borough Director of Integrated Care,"7,038.96"
09/11/2022,1243520,Oakview Care (Berkshire) Ltd,,Bi-Borough Director of Integrated Care,"7,038.96"
07/12/2022,1243520,Oakview Care (Berkshire) Ltd,,Bi-Borough Director of Integrated Care,"7,038.96"
22/12/2022,1243520,Oakview Care (Berkshire) Ltd,,Bi-Borough Director of Integrated Care,"7,038.96"
15/11/2022,1248252,Origin Housing Ltd,B*Voluntary-Spot-V Dep-Enhanced - do not u,Bi-Borough Director of Integrated Care,933.72
15/11/2022,1248252,Origin Housing Ltd,B*Voluntary-Spot-V Dep-Enhanced - do not u,Bi-Borough Director of Integrated Care,"1,987.44"
15/11/2022,1248252,Origin Housing Ltd,B*Voluntary-Spot-V Dep-Enhanced - do not u,Bi-Borough Director of Integrated Care,572
18/10/2022,1243524,Ormsby Lodge,,Bi-Borough Director of Integrated Care,"3,379.76"
18/10/2022,1243524,Ormsby Lodge,,Bi-Borough Director of Integrated Care,936
09/11/2022,1243524,Ormsby Lodge,,Bi-Borough Director of Integrated Care,936
09/11/2022,1243524,Ormsby Lodge,,Bi-Borough Director of Integrated Care,"3,379.76"
07/12/2022,1243524,Ormsby Lodge,,Bi-Borough Director of Integrated Care,936
07/12/2022,1243524,Ormsby Lodge,,Bi-Borough Director of Integrated Care,"3,481.16"
22/12/2022,1243524,Ormsby Lodge,,Bi-Borough Director of Integrated Care,936
22/12/2022,1243524,Ormsby Lodge,,Bi-Borough Director of Integrated Care,"3,481.16"
18/10/2022,1245005,Outlook Care,,Bi-Borough Director of Integrated Care,"2,146.88"
18/10/2022,1245005,Outlook Care,,Bi-Borough Director of Integrated Care,"1,337.68"
18/10/2022,1245005,Outlook Care,,Bi-Borough Director of Integrated Care,"3,370.88"
18/10/2022,1245005,Outlook Care,,Bi-Borough Director of Integrated Care,"2,146.88"
18/10/2022,1245005,Outlook Care,,Bi-Borough Director of Integrated Care,"1,744.80"
18/10/2022,1245005,Outlook Care,,Bi-Borough Director of Integrated Care,"2,902.96"
09/11/2022,1245005,Outlook Care,,Bi-Borough Director of Integrated Care,"2,146.88"
09/11/2022,1245005,Outlook Care,,Bi-Borough Director of Integrated Care,"1,744.80"
09/11/2022,1245005,Outlook Care,,Bi-Borough Director of Integrated Care,"2,902.96"
09/11/2022,1245005,Outlook Care,,Bi-Borough Director of Integrated Care,"2,146.88"
09/11/2022,1245005,Outlook Care,,Bi-Borough Director of Integrated Care,"1,337.68"
09/11/2022,1245005,Outlook Care,,Bi-Borough Director of Integrated Care,"3,370.88"
07/12/2022,1245005,Outlook Care,,Bi-Borough Director of Integrated Care,"2,902.96"
07/12/2022,1245005,Outlook Care,,Bi-Borough Director of Integrated Care,"2,146.88"
07/12/2022,1245005,Outlook Care,,Bi-Borough Director of Integrated Care,"1,337.68"
07/12/2022,1245005,Outlook Care,,Bi-Borough Director of Integrated Care,"3,370.88"
07/12/2022,1245005,Outlook Care,,Bi-Borough Director of Integrated Care,"2,146.88"
07/12/2022,1245005,Outlook Care,,Bi-Borough Director of Integrated Care,"1,744.80"
22/12/2022,1245005,Outlook Care,,Bi-Borough Director of Integrated Care,"2,146.88"
22/12/2022,1245005,Outlook Care,,Bi-Borough Director of Integrated Care,"1,744.80"
22/12/2022,1245005,Outlook Care,,Bi-Borough Director of Integrated Care,"2,902.96"
22/12/2022,1245005,Outlook Care,,Bi-Borough Director of Integrated Care,"1,337.68"
22/12/2022,1245005,Outlook Care,,Bi-Borough Director of Integrated Care,"2,146.88"
22/12/2022,1245005,Outlook Care,,Bi-Borough Director of Integrated Care,"3,370.88"
05/10/2022,1251473,PERSONAL PAYMENTS,Social Care - Direct Payments,Bi-Borough Director of Integrated Care,657.46
05/10/2022,1251480,PERSONAL PAYMENTS,Social Care - Direct Payments,Bi-Borough Director of Integrated Care,"3,962.87"
05/10/2022,1251491,PERSONAL PAYMENTS,Social Care - Direct Payments,Bi-Borough Director of Integrated Care,854.06
05/10/2022,1251497,PERSONAL PAYMENTS,Social Care - Direct Payments,Bi-Borough Director of Integrated Care,"4,319.97"
05/10/2022,1251498,PERSONAL PAYMENTS,Social Care - Direct Payments,Bi-Borough Director of Integrated Care,"2,475.00"
20/10/2022,1248148,PERSONAL PAYMENTS,Adult Social Care - Other Transfer Pay,Bi-Borough Director of Integrated Care,"1,638.96"
20/10/2022,1246066,Barrie Bookkeeping & Payroll,Adult Social Care - Other Transfer Pay,Bi-Borough Director of Integrated Care,"2,585.32"
20/10/2022,1250074,PERSONAL PAYMENTS,Adult Social Care - Other Transfer Pay,Bi-Borough Director of Integrated Care,"6,904.80"
20/10/2022,1246066,Barrie Bookkeeping & Payroll,Adult Social Care - Other Transfer Pay,Bi-Borough Director of Integrated Care,"1,688.60"
20/10/2022,1246066,Barrie Bookkeeping & Payroll,Adult Social Care - Other Transfer Pay,Bi-Borough Director of Integrated Care,733.8
20/10/2022,1246066,Barrie Bookkeeping & Payroll,Adult Social Care - Other Transfer Pay,Bi-Borough Director of Integrated Care,"2,483.40"
20/10/2022,1269674,PERSONAL PAYMENTS,Adult Social Care - Other Transfer Pay,Bi-Borough Director of Integrated Care,889.28
20/10/2022,1250627,PERSONAL PAYMENTS,Adult Social Care - Other Transfer Pay,Bi-Borough Director of Integrated Care,"2,508.00"
20/10/2022,1250670,PERSONAL PAYMENTS,Adult Social Care - Other Transfer Pay,Bi-Borough Director of Integrated Care,"1,571.52"
20/10/2022,1250044,PERSONAL PAYMENTS,Adult Social Care - Other Transfer Pay,Bi-Borough Director of Integrated Care,724.04
20/10/2022,1247804,PERSONAL PAYMENTS,Adult Social Care - Other Transfer Pay,Bi-Borough Director of Integrated Care,752.2
20/10/2022,1250138,PERSONAL PAYMENTS,Adult Social Care - Other Transfer Pay,Bi-Borough Director of Integrated Care,916
20/10/2022,1250186,PERSONAL PAYMENTS,Adult Social Care - Other Transfer Pay,Bi-Borough Director of Integrated Care,"3,121.48"
20/10/2022,1272570,PERSONAL PAYMENTS,Adult Social Care - Other Transfer Pay,Bi-Borough Director of Integrated Care,"1,051.24"
20/10/2022,1250674,PERSONAL PAYMENTS,Adult Social Care - Other Transfer Pay,Bi-Borough Director of Integrated Care,"2,652.16"
20/10/2022,1246066,Barrie Bookkeeping & Payroll,Adult Social Care - Other Transfer Pay,Bi-Borough Director of Integrated Care,843.96
20/10/2022,1246066,Barrie Bookkeeping & Payroll,Adult Social Care - Other Transfer Pay,Bi-Borough Director of Integrated Care,"1,164.60"
20/10/2022,1268346,PERSONAL PAYMENTS,Adult Social Care - Other Transfer Pay,Bi-Borough Director of Integrated Care,"1,623.40"
20/10/2022,1246066,Barrie Bookkeeping & Payroll,Adult Social Care - Other Transfer Pay,Bi-Borough Director of Integrated Care,"11,674.68"
20/10/2022,1250215,PERSONAL PAYMENTS,Adult Social Care - Other Transfer Pay,Bi-Borough Director of Integrated Care,"1,361.56"
20/10/2022,1250536,PERSONAL PAYMENTS,Adult Social Care - Other Transfer Pay,Bi-Borough Director of Integrated Care,678.64
20/10/2022,1248354,PERSONAL PAYMENTS,Adult Social Care - Other Transfer Pay,Bi-Borough Director of Integrated Care,"2,425.36"
20/10/2022,1246066,Barrie Bookkeeping & Payroll,Adult Social Care - Other Transfer Pay,Bi-Borough Director of Integrated Care,"2,056.84"
20/10/2022,1246066,Barrie Bookkeeping & Payroll,Adult Social Care - Other Transfer Pay,Bi-Borough Director of Integrated Care,"2,854.04"
20/10/2022,1246066,Barrie Bookkeeping & Payroll,Adult Social Care - Other Transfer Pay,Bi-Borough Director of Integrated Care,"2,452.20"
20/10/2022,1246066,Barrie Bookkeeping & Payroll,Adult Social Care - Other Transfer Pay,Bi-Borough Director of Integrated Care,876.08
20/10/2022,1246066,Barrie Bookkeeping & Payroll,Adult Social Care - Other Transfer Pay,Bi-Borough Director of Integrated Care,"1,907.76"
20/10/2022,1250012,PERSONAL PAYMENTS,Adult Social Care - Other Transfer Pay,Bi-Borough Director of Integrated Care,"2,015.00"
20/10/2022,1246066,Barrie Bookkeeping & Payroll,Adult Social Care - Other Transfer Pay,Bi-Borough Director of Integrated Care,"5,754.04"
20/10/2022,1246066,Barrie Bookkeeping & Payroll,Adult Social Care - Other Transfer Pay,Bi-Borough Director of Integrated Care,"5,914.56"
20/10/2022,1250037,PERSONAL PAYMENTS,Adult Social Care - Other Transfer Pay,Bi-Borough Director of Integrated Care,"2,383.72"
20/10/2022,1246066,Barrie Bookkeeping & Payroll,Adult Social Care - Other Transfer Pay,Bi-Borough Director of Integrated Care,"1,791.60"
20/10/2022,1248292,PERSONAL PAYMENTS,Adult Social Care - Other Transfer Pay,Bi-Borough Director of Integrated Care,"10,471.96"
20/10/2022,1280973,PERSONAL PAYMENTS,Adult Social Care - Other Transfer Pay,Bi-Borough Director of Integrated Care,"6,394.48"
20/10/2022,1246066,Barrie Bookkeeping & Payroll,Adult Social Care - Other Transfer Pay,Bi-Borough Director of Integrated Care,"1,991.00"
20/10/2022,1292106,PERSONAL PAYMENTS,Adult Social Care - Other Transfer Pay,Bi-Borough Director of Integrated Care,"1,155.40"
20/10/2022,1247727,PERSONAL PAYMENTS,Social Care - Direct Payments,Bi-Borough Director of Integrated Care,"2,740.72"
20/10/2022,1247820,PERSONAL PAYMENTS,Adult Social Care - Other Transfer Pay,Bi-Borough Director of Integrated Care,"8,751.04"
20/10/2022,1246066,Barrie Bookkeeping & Payroll,Adult Social Care - Other Transfer Pay,Bi-Borough Director of Integrated Care,"1,066.28"
20/10/2022,1254540,PERSONAL PAYMENTS,Adult Social Care - Other Transfer Pay,Bi-Borough Director of Integrated Care,939.92
20/10/2022,1249942,PERSONAL PAYMENTS,Adult Social Care - Other Transfer Pay,Bi-Borough Director of Integrated Care,"6,343.36"
20/10/2022,1246066,Barrie Bookkeeping & Payroll,Adult Social Care - Other Transfer Pay,Bi-Borough Director of Integrated Care,"2,618.28"
20/10/2022,1246066,Barrie Bookkeeping & Payroll,Adult Social Care - Other Transfer Pay,Bi-Borough Director of Integrated Care,818
20/10/2022,1248154,PERSONAL PAYMENTS,Adult Social Care - Other Transfer Pay,Bi-Borough Director of Integrated Care,829.52
20/10/2022,1248010,PERSONAL PAYMENTS,Adult Social Care - Other Transfer Pay,Bi-Borough Director of Integrated Care,646.16
20/10/2022,1250656,PERSONAL PAYMENTS,Social Care - Direct Payments,Bi-Borough Director of Integrated Care,"1,118.36"
20/10/2022,1278955,PERSONAL PAYMENTS,Social Care - Direct Payments,Bi-Borough Director of Integrated Care,"1,580.32"
27/10/2022,1245825,Sweet Tree Home Care Services,Adult Social Care - Other Transfer Pay,Bi-Borough Director of Integrated Care,"3,822.51"
17/11/2022,1250074,PERSONAL PAYMENTS,Adult Social Care - Other Transfer Pay,Bi-Borough Director of Integrated Care,"6,904.80"
17/11/2022,1250627,PERSONAL PAYMENTS,Adult Social Care - Other Transfer Pay,Bi-Borough Director of Integrated Care,"2,508.00"
17/11/2022,1250670,PERSONAL PAYMENTS,Adult Social Care - Other Transfer Pay,Bi-Borough Director of Integrated Care,"1,571.52"
17/11/2022,1250044,PERSONAL PAYMENTS,Adult Social Care - Other Transfer Pay,Bi-Borough Director of Integrated Care,724.04
17/11/2022,1247804,PERSONAL PAYMENTS,Adult Social Care - Other Transfer Pay,Bi-Borough Director of Integrated Care,752.2
17/11/2022,1250138,PERSONAL PAYMENTS,Adult Social Care - Other Transfer Pay,Bi-Borough Director of Integrated Care,916
17/11/2022,1246066,Barrie Bookkeeping & Payroll,Adult Social Care - Other Transfer Pay,Bi-Borough Director of Integrated Care,"1,688.60"
17/11/2022,1246066,Barrie Bookkeeping & Payroll,Adult Social Care - Other Transfer Pay,Bi-Borough Director of Integrated Care,733.8
17/11/2022,1246066,Barrie Bookkeeping & Payroll,Adult Social Care - Other Transfer Pay,Bi-Borough Director of Integrated Care,"2,483.40"
17/11/2022,1269674,PERSONAL PAYMENTS,Adult Social Care - Other Transfer Pay,Bi-Borough Director of Integrated Care,889.28
17/11/2022,1250215,PERSONAL PAYMENTS,Adult Social Care - Other Transfer Pay,Bi-Borough Director of Integrated Care,"1,361.56"
17/11/2022,1250536,PERSONAL PAYMENTS,Adult Social Care - Other Transfer Pay,Bi-Borough Director of Integrated Care,678.64
17/11/2022,1248354,PERSONAL PAYMENTS,Adult Social Care - Other Transfer Pay,Bi-Borough Director of Integrated Care,"2,425.36"
17/11/2022,1246066,Barrie Bookkeeping & Payroll,Adult Social Care - Other Transfer Pay,Bi-Borough Director of Integrated Care,"5,754.04"
17/11/2022,1246066,Barrie Bookkeeping & Payroll,Adult Social Care - Other Transfer Pay,Bi-Borough Director of Integrated Care,"5,914.56"
17/11/2022,1250037,PERSONAL PAYMENTS,Adult Social Care - Other Transfer Pay,Bi-Borough Director of Integrated Care,"2,383.72"
17/11/2022,1246066,Barrie Bookkeeping & Payroll,Adult Social Care - Other Transfer Pay,Bi-Borough Director of Integrated Care,"1,791.60"
17/11/2022,1247727,PERSONAL PAYMENTS,Social Care - Direct Payments,Bi-Borough Director of Integrated Care,"2,740.72"
17/11/2022,1248154,PERSONAL PAYMENTS,Adult Social Care - Other Transfer Pay,Bi-Borough Director of Integrated Care,829.52
17/11/2022,1248010,PERSONAL PAYMENTS,Adult Social Care - Other Transfer Pay,Bi-Borough Director of Integrated Care,646.16
17/11/2022,1278955,PERSONAL PAYMENTS,Social Care - Direct Payments,Bi-Borough Director of Integrated Care,"1,580.32"
17/11/2022,1248148,PERSONAL PAYMENTS,Adult Social Care - Other Transfer Pay,Bi-Borough Director of Integrated Care,"1,638.96"
17/11/2022,1246066,Barrie Bookkeeping & Payroll,Adult Social Care - Other Transfer Pay,Bi-Borough Director of Integrated Care,"2,585.32"
17/11/2022,1246066,Barrie Bookkeeping & Payroll,Adult Social Care - Other Transfer Pay,Bi-Borough Director of Integrated Care,"1,871.60"
17/11/2022,1268346,PERSONAL PAYMENTS,Adult Social Care - Other Transfer Pay,Bi-Borough Director of Integrated Care,"1,623.40"
17/11/2022,1246066,Barrie Bookkeeping & Payroll,Adult Social Care - Other Transfer Pay,Bi-Borough Director of Integrated Care,"11,674.68"
17/11/2022,1246066,Barrie Bookkeeping & Payroll,Adult Social Care - Other Transfer Pay,Bi-Borough Director of Integrated Care,"2,056.84"
17/11/2022,1246066,Barrie Bookkeeping & Payroll,Adult Social Care - Other Transfer Pay,Bi-Borough Director of Integrated Care,"2,854.04"
17/11/2022,1246066,Barrie Bookkeeping & Payroll,Adult Social Care - Other Transfer Pay,Bi-Borough Director of Integrated Care,"2,452.20"
17/11/2022,1246066,Barrie Bookkeeping & Payroll,Adult Social Care - Other Transfer Pay,Bi-Borough Director of Integrated Care,876.08
17/11/2022,1246066,Barrie Bookkeeping & Payroll,Adult Social Care - Other Transfer Pay,Bi-Borough Director of Integrated Care,953.88
17/11/2022,1248292,PERSONAL PAYMENTS,Adult Social Care - Other Transfer Pay,Bi-Borough Director of Integrated Care,"10,471.96"
17/11/2022,1280973,PERSONAL PAYMENTS,Adult Social Care - Other Transfer Pay,Bi-Borough Director of Integrated Care,"6,394.48"
17/11/2022,1246066,Barrie Bookkeeping & Payroll,Adult Social Care - Other Transfer Pay,Bi-Borough Director of Integrated Care,"1,991.00"
17/11/2022,1292106,PERSONAL PAYMENTS,Adult Social Care - Other Transfer Pay,Bi-Borough Director of Integrated Care,"1,155.40"
17/11/2022,1247820,PERSONAL PAYMENTS,Adult Social Care - Other Transfer Pay,Bi-Borough Director of Integrated Care,"8,751.04"
17/11/2022,1246066,Barrie Bookkeeping & Payroll,Adult Social Care - Other Transfer Pay,Bi-Borough Director of Integrated Care,"1,066.28"
17/11/2022,1254540,PERSONAL PAYMENTS,Adult Social Care - Other Transfer Pay,Bi-Borough Director of Integrated Care,939.92
17/11/2022,1249942,PERSONAL PAYMENTS,Adult Social Care - Other Transfer Pay,Bi-Borough Director of Integrated Care,"6,343.36"
17/11/2022,1246066,Barrie Bookkeeping & Payroll,Adult Social Care - Other Transfer Pay,Bi-Borough Director of Integrated Care,"2,618.28"
17/11/2022,1246066,Barrie Bookkeeping & Payroll,Adult Social Care - Other Transfer Pay,Bi-Borough Director of Integrated Care,818
17/11/2022,1250656,PERSONAL PAYMENTS,Social Care - Direct Payments,Bi-Borough Director of Integrated Care,"1,118.36"
17/11/2022,1250186,PERSONAL PAYMENTS,Adult Social Care - Other Transfer Pay,Bi-Borough Director of Integrated Care,"3,121.48"
17/11/2022,1272570,PERSONAL PAYMENTS,Adult Social Care - Other Transfer Pay,Bi-Borough Director of Integrated Care,"1,051.24"
17/11/2022,1250674,PERSONAL PAYMENTS,Adult Social Care - Other Transfer Pay,Bi-Borough Director of Integrated Care,"2,652.16"
17/11/2022,1246066,Barrie Bookkeeping & Payroll,Adult Social Care - Other Transfer Pay,Bi-Borough Director of Integrated Care,843.96
17/11/2022,1246066,Barrie Bookkeeping & Payroll,Adult Social Care - Other Transfer Pay,Bi-Borough Director of Integrated Care,"1,164.60"
29/11/2022,1245825,Sweet Tree Home Care Services,Adult Social Care - Other Transfer Pay,Bi-Borough Director of Integrated Care,"3,896.85"
13/12/2022,1245825,Sweet Tree Home Care Services,Adult Social Care - Other Transfer Pay,Bi-Borough Director of Integrated Care,"3,703.09"
15/12/2022,1250627,PERSONAL PAYMENTS,Adult Social Care - Other Transfer Pay,Bi-Borough Director of Integrated Care,"2,508.00"
15/12/2022,1250670,PERSONAL PAYMENTS,Adult Social Care - Other Transfer Pay,Bi-Borough Director of Integrated Care,"1,571.52"
15/12/2022,1250044,PERSONAL PAYMENTS,Adult Social Care - Other Transfer Pay,Bi-Borough Director of Integrated Care,724.04
15/12/2022,1247804,PERSONAL PAYMENTS,Adult Social Care - Other Transfer Pay,Bi-Borough Director of Integrated Care,752.2
15/12/2022,1250138,PERSONAL PAYMENTS,Adult Social Care - Other Transfer Pay,Bi-Borough Director of Integrated Care,916
15/12/2022,1250012,PERSONAL PAYMENTS,Adult Social Care - Other Transfer Pay,Bi-Borough Director of Integrated Care,"73,298.70"
15/12/2022,1250186,PERSONAL PAYMENTS,Adult Social Care - Other Transfer Pay,Bi-Borough Director of Integrated Care,"3,121.48"
15/12/2022,1272570,PERSONAL PAYMENTS,Adult Social Care - Other Transfer Pay,Bi-Borough Director of Integrated Care,"1,051.24"
15/12/2022,1250674,PERSONAL PAYMENTS,Adult Social Care - Other Transfer Pay,Bi-Borough Director of Integrated Care,"2,652.16"
15/12/2022,1246066,Barrie Bookkeeping & Payroll,Adult Social Care - Other Transfer Pay,Bi-Borough Director of Integrated Care,843.96
15/12/2022,1246066,Barrie Bookkeeping & Payroll,Adult Social Care - Other Transfer Pay,Bi-Borough Director of Integrated Care,"1,164.60"
15/12/2022,1246066,Barrie Bookkeeping & Payroll,Adult Social Care - Other Transfer Pay,Bi-Borough Director of Integrated Care,"1,688.60"
15/12/2022,1246066,Barrie Bookkeeping & Payroll,Adult Social Care - Other Transfer Pay,Bi-Borough Director of Integrated Care,733.8
15/12/2022,1246066,Barrie Bookkeeping & Payroll,Adult Social Care - Other Transfer Pay,Bi-Borough Director of Integrated Care,"2,483.40"
15/12/2022,1269674,PERSONAL PAYMENTS,Adult Social Care - Other Transfer Pay,Bi-Borough Director of Integrated Care,889.28
15/12/2022,1268346,PERSONAL PAYMENTS,Adult Social Care - Other Transfer Pay,Bi-Borough Director of Integrated Care,"1,623.40"
15/12/2022,1246066,Barrie Bookkeeping & Payroll,Adult Social Care - Other Transfer Pay,Bi-Borough Director of Integrated Care,"11,674.68"
15/12/2022,1250215,PERSONAL PAYMENTS,Adult Social Care - Other Transfer Pay,Bi-Borough Director of Integrated Care,"1,361.56"
15/12/2022,1250536,PERSONAL PAYMENTS,Adult Social Care - Other Transfer Pay,Bi-Borough Director of Integrated Care,678.64
15/12/2022,1246066,Barrie Bookkeeping & Payroll,Adult Social Care - Other Transfer Pay,Bi-Borough Director of Integrated Care,"2,056.84"
15/12/2022,1246066,Barrie Bookkeeping & Payroll,Adult Social Care - Other Transfer Pay,Bi-Borough Director of Integrated Care,"2,854.04"
15/12/2022,1246066,Barrie Bookkeeping & Payroll,Adult Social Care - Other Transfer Pay,Bi-Borough Director of Integrated Care,"2,452.20"
15/12/2022,1246066,Barrie Bookkeeping & Payroll,Adult Social Care - Other Transfer Pay,Bi-Borough Director of Integrated Care,876.08
15/12/2022,1246066,Barrie Bookkeeping & Payroll,Adult Social Care - Other Transfer Pay,Bi-Borough Director of Integrated Care,953.88
15/12/2022,1248354,PERSONAL PAYMENTS,Adult Social Care - Other Transfer Pay,Bi-Borough Director of Integrated Care,"2,425.36"
15/12/2022,1246066,Barrie Bookkeeping & Payroll,Adult Social Care - Other Transfer Pay,Bi-Borough Director of Integrated Care,"5,754.04"
15/12/2022,1280973,PERSONAL PAYMENTS,Adult Social Care - Other Transfer Pay,Bi-Borough Director of Integrated Care,"6,394.48"
15/12/2022,1246066,Barrie Bookkeeping & Payroll,Adult Social Care - Other Transfer Pay,Bi-Borough Director of Integrated Care,"1,991.00"
15/12/2022,1292106,PERSONAL PAYMENTS,Adult Social Care - Other Transfer Pay,Bi-Borough Director of Integrated Care,"1,155.40"
15/12/2022,1246066,Barrie Bookkeeping & Payroll,Adult Social Care - Other Transfer Pay,Bi-Borough Director of Integrated Care,"5,914.56"
15/12/2022,1250037,PERSONAL PAYMENTS,Adult Social Care - Other Transfer Pay,Bi-Borough Director of Integrated Care,"2,383.72"
15/12/2022,1246066,Barrie Bookkeeping & Payroll,Adult Social Care - Other Transfer Pay,Bi-Borough Director of Integrated Care,"1,791.60"
15/12/2022,1247727,PERSONAL PAYMENTS,Social Care - Direct Payments,Bi-Borough Director of Integrated Care,"2,740.72"
15/12/2022,1247820,PERSONAL PAYMENTS,Adult Social Care - Other Transfer Pay,Bi-Borough Director of Integrated Care,"8,751.04"
15/12/2022,1246066,Barrie Bookkeeping & Payroll,Adult Social Care - Other Transfer Pay,Bi-Borough Director of Integrated Care,"1,066.28"
15/12/2022,1254540,PERSONAL PAYMENTS,Adult Social Care - Other Transfer Pay,Bi-Borough Director of Integrated Care,939.92
15/12/2022,1249942,PERSONAL PAYMENTS,Adult Social Care - Other Transfer Pay,Bi-Borough Director of Integrated Care,"6,343.36"
15/12/2022,1246066,Barrie Bookkeeping & Payroll,Adult Social Care - Other Transfer Pay,Bi-Borough Director of Integrated Care,"2,618.28"
15/12/2022,1246066,Barrie Bookkeeping & Payroll,Adult Social Care - Other Transfer Pay,Bi-Borough Director of Integrated Care,818
15/12/2022,1248154,PERSONAL PAYMENTS,Adult Social Care - Other Transfer Pay,Bi-Borough Director of Integrated Care,829.52
15/12/2022,1248010,PERSONAL PAYMENTS,Adult Social Care - Other Transfer Pay,Bi-Borough Director of Integrated Care,646.16
15/12/2022,1250656,PERSONAL PAYMENTS,Social Care - Direct Payments,Bi-Borough Director of Integrated Care,"1,118.36"
15/12/2022,1278955,PERSONAL PAYMENTS,Social Care - Direct Payments,Bi-Borough Director of Integrated Care,"1,580.32"
15/12/2022,1248148,PERSONAL PAYMENTS,Adult Social Care - Other Transfer Pay,Bi-Borough Director of Integrated Care,"1,638.96"
15/12/2022,1246066,Barrie Bookkeeping & Payroll,Adult Social Care - Other Transfer Pay,Bi-Borough Director of Integrated Care,"2,585.32"
15/12/2022,1250074,PERSONAL PAYMENTS,Adult Social Care - Other Transfer Pay,Bi-Borough Director of Integrated Care,"6,904.80"
06/10/2022,1255663,PLAY ASSOCIATION HAMMERSMITH AND FU,B*Voluntary-Spot-V Dep-Enhanced - do not u,Bi-Borough Director of Integrated Care,660
02/11/2022,1255663,PLAY ASSOCIATION HAMMERSMITH AND FU,B*Voluntary-Spot-V Dep-Enhanced - do not u,Bi-Borough Director of Integrated Care,668
18/10/2022,1258049,PSS (UK),,Bi-Borough Director of Integrated Care,"2,660.96"
09/11/2022,1258049,PSS (UK),,Bi-Borough Director of Integrated Care,"2,660.96"
07/12/2022,1258049,PSS (UK),,Bi-Borough Director of Integrated Care,"2,660.96"
22/12/2022,1258049,PSS (UK),,Bi-Borough Director of Integrated Care,"2,660.96"
18/10/2022,1245021,Paradise Community,,Bi-Borough Director of Integrated Care,"10,414.68"
09/11/2022,1245021,Paradise Community,,Bi-Borough Director of Integrated Care,"10,414.68"
07/12/2022,1245021,Paradise Community,,Bi-Borough Director of Integrated Care,"10,414.68"
22/12/2022,1245021,Paradise Community,,Bi-Borough Director of Integrated Care,"10,414.68"
18/10/2022,1292143,Pathway for Care Ltd T/a Transformi,,Bi-Borough Director of Integrated Care,"10,433.00"
09/11/2022,1292143,Pathway for Care Ltd T/a Transformi,,Bi-Borough Director of Integrated Care,"10,433.00"
07/12/2022,1292143,Pathway for Care Ltd T/a Transformi,,Bi-Borough Director of Integrated Care,"10,433.00"
22/12/2022,1292143,Pathway for Care Ltd T/a Transformi,,Bi-Borough Director of Integrated Care,"10,433.00"
18/10/2022,1250448,PERSONAL PAYMENTS,,Bi-Borough Director of Integrated Care,"1,419.24"
09/11/2022,1250448,PERSONAL PAYMENTS,,Bi-Borough Director of Integrated Care,"1,419.24"
07/12/2022,1250448,PERSONAL PAYMENTS,,Bi-Borough Director of Integrated Care,"1,419.24"
22/12/2022,1250448,PERSONAL PAYMENTS,,Bi-Borough Director of Integrated Care,"1,419.24"
03/10/2022,1251415,Pennine Camphill Community,,Bi-Borough Director of Integrated Care,"2,401.46"
03/10/2022,1251417,Phoenix Learning & Care Ltd,,Bi-Borough Director of Integrated Care,"4,622.37"
18/10/2022,1245163,Poor Servants of the mother of,,Bi-Borough Director of Integrated Care,"2,878.88"
09/11/2022,1245163,Poor Servants of the mother of,,Bi-Borough Director of Integrated Care,"2,878.88"
07/12/2022,1245163,Poor Servants of the mother of,,Bi-Borough Director of Integrated Care,"2,878.88"
22/12/2022,1245163,Poor Servants of the mother of,,Bi-Borough Director of Integrated Care,"2,878.88"
18/10/2022,1245165,Precious Homes Ltd,,Bi-Borough Director of Integrated Care,"2,660.00"
18/10/2022,1245165,Precious Homes Ltd,,Bi-Borough Director of Integrated Care,"2,660.00"
09/11/2022,1245165,Precious Homes Ltd,,Bi-Borough Director of Integrated Care,"2,660.00"
09/11/2022,1245165,Precious Homes Ltd,,Bi-Borough Director of Integrated Care,"2,660.00"
07/12/2022,1245165,Precious Homes Ltd,,Bi-Borough Director of Integrated Care,"2,660.00"
22/12/2022,1245166,Precious Homes Support Ltd,,Bi-Borough Director of Integrated Care,"5,320.00"
18/10/2022,1248563,Pursuing Independent Paths,B*Voluntary-Spot-V Dep-Enhanced - do not u,Bi-Borough Director of Integrated Care,"2,041.76"
18/10/2022,1248563,Pursuing Independent Paths,B*Voluntary-Spot-V Dep-Enhanced - do not u,Bi-Borough Director of Integrated Care,"1,531.32"
18/10/2022,1248563,Pursuing Independent Paths,B*Voluntary-Spot-V Dep-Enhanced - do not u,Bi-Borough Director of Integrated Care,"1,531.32"
18/10/2022,1248563,Pursuing Independent Paths,B*Voluntary-Spot-V Dep-Enhanced - do not u,Bi-Borough Director of Integrated Care,"1,531.32"
18/10/2022,1248563,Pursuing Independent Paths,B*Voluntary-Spot-V Dep-Enhanced - do not u,Bi-Borough Director of Integrated Care,"1,020.88"
18/10/2022,1248563,Pursuing Independent Paths,B*Voluntary-Spot-V Dep-Enhanced - do not u,Bi-Borough Director of Integrated Care,"1,276.10"
18/10/2022,1248563,Pursuing Independent Paths,B*Voluntary-Spot-V Dep-Enhanced - do not u,Bi-Borough Director of Integrated Care,"1,531.32"
18/10/2022,1248563,Pursuing Independent Paths,B*Voluntary-Spot-V Dep-Enhanced - do not u,Bi-Borough Director of Integrated Care,"1,786.54"
18/10/2022,1248563,Pursuing Independent Paths,B*Voluntary-Spot-V Dep-Enhanced - do not u,Bi-Borough Director of Integrated Care,"1,289.32"
18/10/2022,1248563,Pursuing Independent Paths,B*Voluntary-Spot-V Dep-Enhanced - do not u,Bi-Borough Director of Integrated Care,510.44
18/10/2022,1248563,Pursuing Independent Paths,B*Voluntary-Spot-V Dep-Enhanced - do not u,Bi-Borough Director of Integrated Care,"1,020.88"
18/10/2022,1248563,Pursuing Independent Paths,B*Voluntary-Spot-V Dep-Enhanced - do not u,Bi-Borough Director of Integrated Care,"2,552.20"
18/10/2022,1248563,Pursuing Independent Paths,B*Voluntary-Spot-V Dep-Enhanced - do not u,Bi-Borough Director of Integrated Care,"1,531.32"
18/10/2022,1248563,Pursuing Independent Paths,B*Voluntary-Spot-V Dep-Enhanced - do not u,Bi-Borough Director of Integrated Care,"1,531.32"
18/10/2022,1248563,Pursuing Independent Paths,B*Voluntary-Spot-V Dep-Enhanced - do not u,Bi-Borough Director of Integrated Care,"1,531.32"
18/10/2022,1248563,Pursuing Independent Paths,B*Voluntary-Spot-V Dep-Enhanced - do not u,Bi-Borough Director of Integrated Care,510.44
18/10/2022,1248563,Pursuing Independent Paths,B*Voluntary-Spot-V Dep-Enhanced - do not u,Bi-Borough Director of Integrated Care,"1,020.88"
18/10/2022,1248563,Pursuing Independent Paths,B*Voluntary-Spot-V Dep-Enhanced - do not u,Bi-Borough Director of Integrated Care,"1,531.32"
18/10/2022,1248563,Pursuing Independent Paths,B*Voluntary-Spot-V Dep-Enhanced - do not u,Bi-Borough Director of Integrated Care,"1,276.10"
18/10/2022,1248563,Pursuing Independent Paths,B*Voluntary-Spot-V Dep-Enhanced - do not u,Bi-Borough Director of Integrated Care,"2,552.20"
18/10/2022,1248563,Pursuing Independent Paths,B*Voluntary-Spot-V Dep-Enhanced - do not u,Bi-Borough Director of Integrated Care,"1,531.32"
18/10/2022,1248563,Pursuing Independent Paths,B*Voluntary-Spot-V Dep-Enhanced - do not u,Bi-Borough Director of Integrated Care,"1,531.32"
18/10/2022,1248563,Pursuing Independent Paths,B*Voluntary-Spot-V Dep-Enhanced - do not u,Bi-Borough Director of Integrated Care,"1,531.32"
18/10/2022,1248563,Pursuing Independent Paths,B*Voluntary-Spot-V Dep-Enhanced - do not u,Bi-Borough Director of Integrated Care,510.44
18/10/2022,1248563,Pursuing Independent Paths,B*Voluntary-Spot-V Dep-Enhanced - do not u,Bi-Borough Director of Integrated Care,"1,020.88"
18/10/2022,1248563,Pursuing Independent Paths,B*Voluntary-Spot-V Dep-Enhanced - do not u,Bi-Borough Director of Integrated Care,"1,276.10"
18/10/2022,1248563,Pursuing Independent Paths,B*Voluntary-Spot-V Dep-Enhanced - do not u,Bi-Borough Director of Integrated Care,510.44
18/10/2022,1248563,Pursuing Independent Paths,B*Voluntary-Spot-V Dep-Enhanced - do not u,Bi-Borough Director of Integrated Care,"1,252.72"
18/10/2022,1248563,Pursuing Independent Paths,B*Voluntary-Spot-V Dep-Enhanced - do not u,Bi-Borough Director of Integrated Care,510.44
18/10/2022,1248563,Pursuing Independent Paths,B*Voluntary-Spot-V Dep-Enhanced - do not u,Bi-Borough Director of Integrated Care,510.44
18/10/2022,1248563,Pursuing Independent Paths,B*Voluntary-Spot-V Dep-Enhanced - do not u,Bi-Borough Director of Integrated Care,"1,879.08"
18/10/2022,1248563,Pursuing Independent Paths,B*Voluntary-Spot-V Dep-Enhanced - do not u,Bi-Borough Director of Integrated Care,"1,531.32"
18/10/2022,1248563,Pursuing Independent Paths,B*Voluntary-Spot-V Dep-Enhanced - do not u,Bi-Borough Director of Integrated Care,510.44
18/10/2022,1248563,Pursuing Independent Paths,B*Voluntary-Spot-V Dep-Enhanced - do not u,Bi-Borough Director of Integrated Care,"1,020.88"
18/10/2022,1248563,Pursuing Independent Paths,B*Voluntary-Spot-V Dep-Enhanced - do not u,Bi-Borough Director of Integrated Care,546.9
18/10/2022,1248563,Pursuing Independent Paths,B*Voluntary-Spot-V Dep-Enhanced - do not u,Bi-Borough Director of Integrated Care,583.36
18/10/2022,1248563,Pursuing Independent Paths,B*Voluntary-Spot-V Dep-Enhanced - do not u,Bi-Borough Director of Integrated Care,510.44
18/10/2022,1248563,Pursuing Independent Paths,B*Voluntary-Spot-V Dep-Enhanced - do not u,Bi-Borough Director of Integrated Care,"1,531.32"
18/10/2022,1248563,Pursuing Independent Paths,B*Voluntary-Spot-V Dep-Enhanced - do not u,Bi-Borough Director of Integrated Care,"1,531.32"
18/10/2022,1248563,Pursuing Independent Paths,B*Voluntary-Spot-V Dep-Enhanced - do not u,Bi-Borough Director of Integrated Care,"1,020.88"
18/10/2022,1248563,Pursuing Independent Paths,B*Voluntary-Spot-V Dep-Enhanced - do not u,Bi-Borough Director of Integrated Care,"2,041.76"
14/11/2022,1248563,Pursuing Independent Paths,B*Voluntary-Spot-V Dep-Enhanced - do not u,Bi-Borough Director of Integrated Care,"1,020.88"
14/11/2022,1248563,Pursuing Independent Paths,B*Voluntary-Spot-V Dep-Enhanced - do not u,Bi-Borough Director of Integrated Care,"1,276.10"
14/11/2022,1248563,Pursuing Independent Paths,B*Voluntary-Spot-V Dep-Enhanced - do not u,Bi-Borough Director of Integrated Care,"1,531.32"
14/11/2022,1248563,Pursuing Independent Paths,B*Voluntary-Spot-V Dep-Enhanced - do not u,Bi-Borough Director of Integrated Care,"1,786.54"
14/11/2022,1248563,Pursuing Independent Paths,B*Voluntary-Spot-V Dep-Enhanced - do not u,Bi-Borough Director of Integrated Care,"1,289.32"
14/11/2022,1248563,Pursuing Independent Paths,B*Voluntary-Spot-V Dep-Enhanced - do not u,Bi-Borough Director of Integrated Care,510.44
14/11/2022,1248563,Pursuing Independent Paths,B*Voluntary-Spot-V Dep-Enhanced - do not u,Bi-Borough Director of Integrated Care,"1,020.88"
14/11/2022,1248563,Pursuing Independent Paths,B*Voluntary-Spot-V Dep-Enhanced - do not u,Bi-Borough Director of Integrated Care,"2,552.20"
14/11/2022,1248563,Pursuing Independent Paths,B*Voluntary-Spot-V Dep-Enhanced - do not u,Bi-Borough Director of Integrated Care,"1,531.32"
14/11/2022,1248563,Pursuing Independent Paths,B*Voluntary-Spot-V Dep-Enhanced - do not u,Bi-Borough Director of Integrated Care,"1,531.32"
14/11/2022,1248563,Pursuing Independent Paths,B*Voluntary-Spot-V Dep-Enhanced - do not u,Bi-Borough Director of Integrated Care,"1,531.32"
14/11/2022,1248563,Pursuing Independent Paths,B*Voluntary-Spot-V Dep-Enhanced - do not u,Bi-Borough Director of Integrated Care,510.44
14/11/2022,1248563,Pursuing Independent Paths,B*Voluntary-Spot-V Dep-Enhanced - do not u,Bi-Borough Director of Integrated Care,"1,020.88"
14/11/2022,1248563,Pursuing Independent Paths,B*Voluntary-Spot-V Dep-Enhanced - do not u,Bi-Borough Director of Integrated Care,"1,531.32"
14/11/2022,1248563,Pursuing Independent Paths,B*Voluntary-Spot-V Dep-Enhanced - do not u,Bi-Borough Director of Integrated Care,"1,276.10"
14/11/2022,1248563,Pursuing Independent Paths,B*Voluntary-Spot-V Dep-Enhanced - do not u,Bi-Borough Director of Integrated Care,"2,552.20"
14/11/2022,1248563,Pursuing Independent Paths,B*Voluntary-Spot-V Dep-Enhanced - do not u,Bi-Borough Director of Integrated Care,"1,531.32"
14/11/2022,1248563,Pursuing Independent Paths,B*Voluntary-Spot-V Dep-Enhanced - do not u,Bi-Borough Director of Integrated Care,"1,531.32"
14/11/2022,1248563,Pursuing Independent Paths,B*Voluntary-Spot-V Dep-Enhanced - do not u,Bi-Borough Director of Integrated Care,"1,531.32"
14/11/2022,1248563,Pursuing Independent Paths,B*Voluntary-Spot-V Dep-Enhanced - do not u,Bi-Borough Director of Integrated Care,510.44
14/11/2022,1248563,Pursuing Independent Paths,B*Voluntary-Spot-V Dep-Enhanced - do not u,Bi-Borough Director of Integrated Care,"1,020.88"
14/11/2022,1248563,Pursuing Independent Paths,B*Voluntary-Spot-V Dep-Enhanced - do not u,Bi-Borough Director of Integrated Care,"1,276.10"
14/11/2022,1248563,Pursuing Independent Paths,B*Voluntary-Spot-V Dep-Enhanced - do not u,Bi-Borough Director of Integrated Care,510.44
14/11/2022,1248563,Pursuing Independent Paths,B*Voluntary-Spot-V Dep-Enhanced - do not u,Bi-Borough Director of Integrated Care,"1,252.72"
14/11/2022,1248563,Pursuing Independent Paths,B*Voluntary-Spot-V Dep-Enhanced - do not u,Bi-Borough Director of Integrated Care,510.44
14/11/2022,1248563,Pursuing Independent Paths,B*Voluntary-Spot-V Dep-Enhanced - do not u,Bi-Borough Director of Integrated Care,510.44
14/11/2022,1248563,Pursuing Independent Paths,B*Voluntary-Spot-V Dep-Enhanced - do not u,Bi-Borough Director of Integrated Care,"1,879.08"
14/11/2022,1248563,Pursuing Independent Paths,B*Voluntary-Spot-V Dep-Enhanced - do not u,Bi-Borough Director of Integrated Care,"1,531.32"
14/11/2022,1248563,Pursuing Independent Paths,B*Voluntary-Spot-V Dep-Enhanced - do not u,Bi-Borough Director of Integrated Care,510.44
14/11/2022,1248563,Pursuing Independent Paths,B*Voluntary-Spot-V Dep-Enhanced - do not u,Bi-Borough Director of Integrated Care,"1,020.88"
14/11/2022,1248563,Pursuing Independent Paths,B*Voluntary-Spot-V Dep-Enhanced - do not u,Bi-Borough Director of Integrated Care,546.9
14/11/2022,1248563,Pursuing Independent Paths,B*Voluntary-Spot-V Dep-Enhanced - do not u,Bi-Borough Director of Integrated Care,583.36
14/11/2022,1248563,Pursuing Independent Paths,B*Voluntary-Spot-V Dep-Enhanced - do not u,Bi-Borough Director of Integrated Care,510.44
14/11/2022,1248563,Pursuing Independent Paths,B*Voluntary-Spot-V Dep-Enhanced - do not u,Bi-Borough Director of Integrated Care,"1,531.32"
14/11/2022,1248563,Pursuing Independent Paths,B*Voluntary-Spot-V Dep-Enhanced - do not u,Bi-Borough Director of Integrated Care,"1,531.32"
14/11/2022,1248563,Pursuing Independent Paths,B*Voluntary-Spot-V Dep-Enhanced - do not u,Bi-Borough Director of Integrated Care,"1,020.88"
14/11/2022,1248563,Pursuing Independent Paths,B*Voluntary-Spot-V Dep-Enhanced - do not u,Bi-Borough Director of Integrated Care,"2,041.76"
14/11/2022,1248563,Pursuing Independent Paths,B*Voluntary-Spot-V Dep-Enhanced - do not u,Bi-Borough Director of Integrated Care,"2,041.76"
14/11/2022,1248563,Pursuing Independent Paths,B*Voluntary-Spot-V Dep-Enhanced - do not u,Bi-Borough Director of Integrated Care,"1,531.32"
14/11/2022,1248563,Pursuing Independent Paths,B*Voluntary-Spot-V Dep-Enhanced - do not u,Bi-Borough Director of Integrated Care,"1,531.32"
14/11/2022,1248563,Pursuing Independent Paths,B*Voluntary-Spot-V Dep-Enhanced - do not u,Bi-Borough Director of Integrated Care,"1,531.32"
12/12/2022,1248563,Pursuing Independent Paths,B*Voluntary-Spot-V Dep-Enhanced - do not u,Bi-Borough Director of Integrated Care,"1,020.88"
12/12/2022,1248563,Pursuing Independent Paths,B*Voluntary-Spot-V Dep-Enhanced - do not u,Bi-Borough Director of Integrated Care,"1,276.10"
12/12/2022,1248563,Pursuing Independent Paths,B*Voluntary-Spot-V Dep-Enhanced - do not u,Bi-Borough Director of Integrated Care,"1,531.32"
12/12/2022,1248563,Pursuing Independent Paths,B*Voluntary-Spot-V Dep-Enhanced - do not u,Bi-Borough Director of Integrated Care,"1,786.54"
12/12/2022,1248563,Pursuing Independent Paths,B*Voluntary-Spot-V Dep-Enhanced - do not u,Bi-Borough Director of Integrated Care,"1,289.32"
12/12/2022,1248563,Pursuing Independent Paths,B*Voluntary-Spot-V Dep-Enhanced - do not u,Bi-Borough Director of Integrated Care,510.44
12/12/2022,1248563,Pursuing Independent Paths,B*Voluntary-Spot-V Dep-Enhanced - do not u,Bi-Borough Director of Integrated Care,"1,020.88"
12/12/2022,1248563,Pursuing Independent Paths,B*Voluntary-Spot-V Dep-Enhanced - do not u,Bi-Borough Director of Integrated Care,"2,552.20"
12/12/2022,1248563,Pursuing Independent Paths,B*Voluntary-Spot-V Dep-Enhanced - do not u,Bi-Borough Director of Integrated Care,"1,531.32"
12/12/2022,1248563,Pursuing Independent Paths,B*Voluntary-Spot-V Dep-Enhanced - do not u,Bi-Borough Director of Integrated Care,"1,531.32"
12/12/2022,1248563,Pursuing Independent Paths,B*Voluntary-Spot-V Dep-Enhanced - do not u,Bi-Borough Director of Integrated Care,"1,531.32"
12/12/2022,1248563,Pursuing Independent Paths,B*Voluntary-Spot-V Dep-Enhanced - do not u,Bi-Borough Director of Integrated Care,510.44
12/12/2022,1248563,Pursuing Independent Paths,B*Voluntary-Spot-V Dep-Enhanced - do not u,Bi-Borough Director of Integrated Care,"1,020.88"
12/12/2022,1248563,Pursuing Independent Paths,B*Voluntary-Spot-V Dep-Enhanced - do not u,Bi-Borough Director of Integrated Care,"1,531.32"
12/12/2022,1248563,Pursuing Independent Paths,B*Voluntary-Spot-V Dep-Enhanced - do not u,Bi-Borough Director of Integrated Care,"1,276.10"
12/12/2022,1248563,Pursuing Independent Paths,B*Voluntary-Spot-V Dep-Enhanced - do not u,Bi-Borough Director of Integrated Care,"2,552.20"
12/12/2022,1248563,Pursuing Independent Paths,B*Voluntary-Spot-V Dep-Enhanced - do not u,Bi-Borough Director of Integrated Care,"1,531.32"
12/12/2022,1248563,Pursuing Independent Paths,B*Voluntary-Spot-V Dep-Enhanced - do not u,Bi-Borough Director of Integrated Care,"1,531.32"
12/12/2022,1248563,Pursuing Independent Paths,B*Voluntary-Spot-V Dep-Enhanced - do not u,Bi-Borough Director of Integrated Care,"1,531.32"
12/12/2022,1248563,Pursuing Independent Paths,B*Voluntary-Spot-V Dep-Enhanced - do not u,Bi-Borough Director of Integrated Care,510.44
12/12/2022,1248563,Pursuing Independent Paths,B*Voluntary-Spot-V Dep-Enhanced - do not u,Bi-Borough Director of Integrated Care,"1,020.88"
12/12/2022,1248563,Pursuing Independent Paths,B*Voluntary-Spot-V Dep-Enhanced - do not u,Bi-Borough Director of Integrated Care,"1,276.10"
12/12/2022,1248563,Pursuing Independent Paths,B*Voluntary-Spot-V Dep-Enhanced - do not u,Bi-Borough Director of Integrated Care,510.44
12/12/2022,1248563,Pursuing Independent Paths,B*Voluntary-Spot-V Dep-Enhanced - do not u,Bi-Borough Director of Integrated Care,"1,252.72"
12/12/2022,1248563,Pursuing Independent Paths,B*Voluntary-Spot-V Dep-Enhanced - do not u,Bi-Borough Director of Integrated Care,510.44
12/12/2022,1248563,Pursuing Independent Paths,B*Voluntary-Spot-V Dep-Enhanced - do not u,Bi-Borough Director of Integrated Care,510.44
12/12/2022,1248563,Pursuing Independent Paths,B*Voluntary-Spot-V Dep-Enhanced - do not u,Bi-Borough Director of Integrated Care,"1,879.08"
12/12/2022,1248563,Pursuing Independent Paths,B*Voluntary-Spot-V Dep-Enhanced - do not u,Bi-Borough Director of Integrated Care,510.44
12/12/2022,1248563,Pursuing Independent Paths,B*Voluntary-Spot-V Dep-Enhanced - do not u,Bi-Borough Director of Integrated Care,"1,020.88"
12/12/2022,1248563,Pursuing Independent Paths,B*Voluntary-Spot-V Dep-Enhanced - do not u,Bi-Borough Director of Integrated Care,546.9
12/12/2022,1248563,Pursuing Independent Paths,B*Voluntary-Spot-V Dep-Enhanced - do not u,Bi-Borough Director of Integrated Care,583.36
12/12/2022,1248563,Pursuing Independent Paths,B*Voluntary-Spot-V Dep-Enhanced - do not u,Bi-Borough Director of Integrated Care,510.44
12/12/2022,1248563,Pursuing Independent Paths,B*Voluntary-Spot-V Dep-Enhanced - do not u,Bi-Borough Director of Integrated Care,"1,531.32"
12/12/2022,1248563,Pursuing Independent Paths,B*Voluntary-Spot-V Dep-Enhanced - do not u,Bi-Borough Director of Integrated Care,"1,531.32"
12/12/2022,1248563,Pursuing Independent Paths,B*Voluntary-Spot-V Dep-Enhanced - do not u,Bi-Borough Director of Integrated Care,"1,020.88"
12/12/2022,1248563,Pursuing Independent Paths,B*Voluntary-Spot-V Dep-Enhanced - do not u,Bi-Borough Director of Integrated Care,"1,531.32"
12/12/2022,1248563,Pursuing Independent Paths,B*Voluntary-Spot-V Dep-Enhanced - do not u,Bi-Borough Director of Integrated Care,"2,041.76"
12/12/2022,1248563,Pursuing Independent Paths,B*Voluntary-Spot-V Dep-Enhanced - do not u,Bi-Borough Director of Integrated Care,"2,041.76"
12/12/2022,1248563,Pursuing Independent Paths,B*Voluntary-Spot-V Dep-Enhanced - do not u,Bi-Borough Director of Integrated Care,"1,531.32"
12/12/2022,1248563,Pursuing Independent Paths,B*Voluntary-Spot-V Dep-Enhanced - do not u,Bi-Borough Director of Integrated Care,"1,531.32"
14/12/2022,1248563,Pursuing Independent Paths,B*Voluntary-Spot-V Dep-Enhanced - do not u,Bi-Borough Director of Integrated Care,"1,531.32"
14/12/2022,1248563,Pursuing Independent Paths,B*Voluntary-Spot-V Dep-Enhanced - do not u,Bi-Borough Director of Integrated Care,"1,531.32"
18/10/2022,1245169,Rcp Residential Care Providers Ltd,,Bi-Borough Director of Integrated Care,"53,313.92"
09/11/2022,1245169,Rcp Residential Care Providers Ltd,,Bi-Borough Director of Integrated Care,"7,707.08"
07/12/2022,1245169,Rcp Residential Care Providers Ltd,,Bi-Borough Director of Integrated Care,"7,707.08"
22/12/2022,1245169,Rcp Residential Care Providers Ltd,,Bi-Borough Director of Integrated Care,"7,707.08"
18/10/2022,1269718,Reliant Care Limited,,Bi-Borough Director of Integrated Care,"7,008.00"
18/10/2022,1269718,Reliant Care Limited,,Bi-Borough Director of Integrated Care,"3,712.00"
18/10/2022,1269718,Reliant Care Limited,,Bi-Borough Director of Integrated Care,"3,712.00"
18/10/2022,1269718,Reliant Care Limited,,Bi-Borough Director of Integrated Care,"5,124.00"
18/10/2022,1269718,Reliant Care Limited,,Bi-Borough Director of Integrated Care,"11,933.60"
09/11/2022,1269718,Reliant Care Limited,,Bi-Borough Director of Integrated Care,"3,712.00"
09/11/2022,1269718,Reliant Care Limited,,Bi-Borough Director of Integrated Care,"3,712.00"
09/11/2022,1269718,Reliant Care Limited,,Bi-Borough Director of Integrated Care,"5,124.00"
09/11/2022,1269718,Reliant Care Limited,,Bi-Borough Director of Integrated Care,"7,008.00"
07/12/2022,1269718,Reliant Care Limited,,Bi-Borough Director of Integrated Care,"7,008.00"
07/12/2022,1269718,Reliant Care Limited,,Bi-Borough Director of Integrated Care,"3,712.00"
07/12/2022,1269718,Reliant Care Limited,,Bi-Borough Director of Integrated Care,"3,712.00"
07/12/2022,1269718,Reliant Care Limited,,Bi-Borough Director of Integrated Care,"5,124.00"
22/12/2022,1269718,Reliant Care Limited,,Bi-Borough Director of Integrated Care,"7,008.00"
22/12/2022,1269718,Reliant Care Limited,,Bi-Borough Director of Integrated Care,"3,712.00"
22/12/2022,1269718,Reliant Care Limited,,Bi-Borough Director of Integrated Care,"3,712.00"
22/12/2022,1269718,Reliant Care Limited,,Bi-Borough Director of Integrated Care,"5,124.00"
05/10/2022,1298287,Residential Care Services Ltd,B*Voluntary-Spot-V Dep-Enhanced - do not u,Bi-Borough Director of Integrated Care,"1,653.84"
05/10/2022,1298287,Residential Care Services Ltd,B*Voluntary-Spot-V Dep-Enhanced - do not u,Bi-Borough Director of Integrated Care,"1,653.84"
05/10/2022,1298287,Residential Care Services Ltd,B*Voluntary-Spot-V Dep-Enhanced - do not u,Bi-Borough Director of Integrated Care,"1,653.84"
05/10/2022,1298287,Residential Care Services Ltd,B*Voluntary-Spot-V Dep-Enhanced - do not u,Bi-Borough Director of Integrated Care,"1,653.84"
11/10/2022,1298287,Residential Care Services Ltd,B*Voluntary-Spot-V Dep-Enhanced - do not u,Bi-Borough Director of Integrated Care,"1,653.84"
11/10/2022,1298287,Residential Care Services Ltd,B*Voluntary-Spot-V Dep-Enhanced - do not u,Bi-Borough Director of Integrated Care,"1,653.84"
11/10/2022,1298287,Residential Care Services Ltd,B*Voluntary-Spot-V Dep-Enhanced - do not u,Bi-Borough Director of Integrated Care,"1,653.84"
11/10/2022,1298287,Residential Care Services Ltd,B*Voluntary-Spot-V Dep-Enhanced - do not u,Bi-Borough Director of Integrated Care,"1,653.84"
14/11/2022,1298287,Residential Care Services Ltd,B*Voluntary-Spot-V Dep-Enhanced - do not u,Bi-Borough Director of Integrated Care,"1,653.84"
31/12/2022,1298287,Residential Care Services Ltd,B*Voluntary-Spot-V Dep-Enhanced - do not u,Bi-Borough Director of Integrated Care,"1,653.84"
31/12/2022,1298287,Residential Care Services Ltd,B*Voluntary-Spot-V Dep-Enhanced - do not u,Bi-Borough Director of Integrated Care,"1,653.84"
05/10/2022,1245316,Respect Care Services Ltd,,Bi-Borough Director of Integrated Care,"1,778.68"
20/10/2022,1245316,Respect Care Services Ltd,,Bi-Borough Director of Integrated Care,"1,778.68"
15/11/2022,1245316,Respect Care Services Ltd,,Bi-Borough Director of Integrated Care,"1,778.68"
22/11/2022,1245316,Respect Care Services Ltd,,Bi-Borough Director of Integrated Care,"1,778.68"
29/11/2022,1245316,Respect Care Services Ltd,,Bi-Borough Director of Integrated Care,"1,885.74"
13/12/2022,1245316,Respect Care Services Ltd,,Bi-Borough Director of Integrated Care,"2,437.23"
18/10/2022,1248843,Sage Care Ltd,,Bi-Borough Director of Integrated Care,518.84
18/10/2022,1248843,Sage Care Ltd,,Bi-Borough Director of Integrated Care,"1,547.22"
18/10/2022,1248843,Sage Care Ltd,,Bi-Borough Director of Integrated Care,574.82
18/10/2022,1248843,Sage Care Ltd,,Bi-Borough Director of Integrated Care,554.45
18/10/2022,1248843,Sage Care Ltd,,Bi-Borough Director of Integrated Care,"1,647.64"
18/10/2022,1248843,Sage Care Ltd,,Bi-Borough Director of Integrated Care,"1,500.31"
28/11/2022,1248843,Sage Care Ltd,,Bi-Borough Director of Integrated Care,611.59
28/11/2022,1248843,Sage Care Ltd,,Bi-Borough Director of Integrated Care,553.22
28/11/2022,1248843,Sage Care Ltd,,Bi-Borough Director of Integrated Care,"1,585.87"
28/11/2022,1248843,Sage Care Ltd,,Bi-Borough Director of Integrated Care,"1,483.82"
28/11/2022,1248843,Sage Care Ltd,,Bi-Borough Director of Integrated Care,515.13
28/11/2022,1248843,Sage Care Ltd,,Bi-Borough Director of Integrated Care,"1,520.33"
12/12/2022,1248843,Sage Care Ltd,,Bi-Borough Director of Integrated Care,551.23
12/12/2022,1248843,Sage Care Ltd,,Bi-Borough Director of Integrated Care,"1,756.47"
12/12/2022,1248843,Sage Care Ltd,,Bi-Borough Director of Integrated Care,"1,625.99"
12/12/2022,1248843,Sage Care Ltd,,Bi-Borough Director of Integrated Care,549.92
12/12/2022,1248843,Sage Care Ltd,,Bi-Borough Director of Integrated Care,"1,611.46"
18/10/2022,1262057,Sense - The National Deafbllind,,Bi-Borough Director of Integrated Care,"4,550.00"
18/10/2022,1262057,Sense - The National Deafbllind,,Bi-Borough Director of Integrated Care,"4,550.00"
09/11/2022,1262057,Sense - The National Deafbllind,,Bi-Borough Director of Integrated Care,"4,550.00"
09/11/2022,1262057,Sense - The National Deafbllind,,Bi-Borough Director of Integrated Care,"4,550.00"
07/12/2022,1262057,Sense - The National Deafbllind,,Bi-Borough Director of Integrated Care,"4,550.00"
07/12/2022,1262057,Sense - The National Deafbllind,,Bi-Borough Director of Integrated Care,"4,550.00"
22/12/2022,1262057,Sense - The National Deafbllind,,Bi-Borough Director of Integrated Care,"4,550.00"
22/12/2022,1262057,Sense - The National Deafbllind,,Bi-Borough Director of Integrated Care,"4,550.00"
18/10/2022,1243536,Sharda Care Ltd,,Bi-Borough Director of Integrated Care,"6,500.00"
09/11/2022,1243536,Sharda Care Ltd,,Bi-Borough Director of Integrated Care,"6,500.00"
07/12/2022,1243536,Sharda Care Ltd,,Bi-Borough Director of Integrated Care,"6,500.00"
22/12/2022,1243536,Sharda Care Ltd,,Bi-Borough Director of Integrated Care,"6,500.00"
18/10/2022,1245566,Shaw Care Uk Ltd,,Bi-Borough Director of Integrated Care,"4,852.00"
18/10/2022,1245566,Shaw Care Uk Ltd,,Bi-Borough Director of Integrated Care,"4,852.00"
09/11/2022,1245566,Shaw Care Uk Ltd,,Bi-Borough Director of Integrated Care,"4,852.00"
09/11/2022,1245566,Shaw Care Uk Ltd,,Bi-Borough Director of Integrated Care,"4,852.00"
07/12/2022,1245566,Shaw Care Uk Ltd,,Bi-Borough Director of Integrated Care,"4,852.00"
07/12/2022,1245566,Shaw Care Uk Ltd,,Bi-Borough Director of Integrated Care,"4,852.00"
22/12/2022,1245566,Shaw Care Uk Ltd,,Bi-Borough Director of Integrated Care,"4,852.00"
22/12/2022,1245566,Shaw Care Uk Ltd,,Bi-Borough Director of Integrated Care,"4,852.00"
18/10/2022,1248935,Southside Partnership,,Bi-Borough Director of Integrated Care,800
18/10/2022,1248935,Southside Partnership,,Bi-Borough Director of Integrated Care,"2,546.68"
18/10/2022,1248935,Southside Partnership,,Bi-Borough Director of Integrated Care,800
18/10/2022,1248935,Southside Partnership,,Bi-Borough Director of Integrated Care,"3,592.80"
09/11/2022,1248935,Southside Partnership,,Bi-Borough Director of Integrated Care,800
09/11/2022,1248935,Southside Partnership,,Bi-Borough Director of Integrated Care,"3,592.80"
09/11/2022,1248935,Southside Partnership,,Bi-Borough Director of Integrated Care,800
09/11/2022,1248935,Southside Partnership,,Bi-Borough Director of Integrated Care,"2,546.68"
07/12/2022,1248935,Southside Partnership,,Bi-Borough Director of Integrated Care,800
07/12/2022,1248935,Southside Partnership,,Bi-Borough Director of Integrated Care,"2,546.68"
07/12/2022,1248935,Southside Partnership,,Bi-Borough Director of Integrated Care,"3,592.80"
07/12/2022,1248935,Southside Partnership,,Bi-Borough Director of Integrated Care,800
22/12/2022,1248935,Southside Partnership,,Bi-Borough Director of Integrated Care,"3,592.80"
22/12/2022,1248935,Southside Partnership,,Bi-Borough Director of Integrated Care,800
22/12/2022,1248935,Southside Partnership,,Bi-Borough Director of Integrated Care,800
22/12/2022,1248935,Southside Partnership,,Bi-Borough Director of Integrated Care,"2,546.68"
05/10/2022,1248940,Special People,B*Voluntary-Spot-V Dep-Enhanced - do not u,Bi-Borough Director of Integrated Care,"1,463.24"
05/10/2022,1248940,Special People,B*Voluntary-Spot-V Dep-Enhanced - do not u,Bi-Borough Director of Integrated Care,"1,229.50"
06/10/2022,1248940,Special People,,Bi-Borough Director of Integrated Care,"1,842.13"
02/11/2022,1248940,Special People,B*Voluntary-Spot-V Dep-Enhanced - do not u,Bi-Borough Director of Integrated Care,688.32
14/11/2022,1248940,Special People,B*Voluntary-Spot-V Dep-Enhanced - do not u,Bi-Borough Director of Integrated Care,"1,793.33"
07/12/2022,1248940,Special People,B*Voluntary-Spot-V Dep-Enhanced - do not u,Bi-Borough Director of Integrated Care,"4,026.56"
18/10/2022,1245620,Spencer & Arlington,,Bi-Borough Director of Integrated Care,"2,576.00"
18/10/2022,1245620,Spencer & Arlington,,Bi-Borough Director of Integrated Care,"6,627.60"
18/10/2022,1245620,Spencer & Arlington,,Bi-Borough Director of Integrated Care,"12,835.20"
18/10/2022,1245620,Spencer & Arlington,,Bi-Borough Director of Integrated Care,"3,724.56"
09/11/2022,1245620,Spencer & Arlington,,Bi-Borough Director of Integrated Care,"3,724.56"
09/11/2022,1245620,Spencer & Arlington,,Bi-Borough Director of Integrated Care,"12,835.20"
07/12/2022,1245620,Spencer & Arlington,,Bi-Borough Director of Integrated Care,"12,835.20"
07/12/2022,1245620,Spencer & Arlington,,Bi-Borough Director of Integrated Care,"3,724.56"
22/12/2022,1245620,Spencer & Arlington,,Bi-Borough Director of Integrated Care,"58,929.00"
22/12/2022,1245620,Spencer & Arlington,,Bi-Borough Director of Integrated Care,"58,929.00"
18/10/2022,1243543,Springlake Care Home Ltd,,Bi-Borough Director of Integrated Care,"6,000.00"
18/10/2022,1243543,Springlake Care Home Ltd,,Bi-Borough Director of Integrated Care,"5,400.00"
18/10/2022,1243543,Springlake Care Home Ltd,,Bi-Borough Director of Integrated Care,"6,800.00"
09/11/2022,1243543,Springlake Care Home Ltd,,Bi-Borough Director of Integrated Care,"6,000.00"
09/11/2022,1243543,Springlake Care Home Ltd,,Bi-Borough Director of Integrated Care,"5,400.00"
09/11/2022,1243543,Springlake Care Home Ltd,,Bi-Borough Director of Integrated Care,"6,800.00"
07/12/2022,1243543,Springlake Care Home Ltd,,Bi-Borough Director of Integrated Care,"5,400.00"
07/12/2022,1243543,Springlake Care Home Ltd,,Bi-Borough Director of Integrated Care,"6,800.00"
07/12/2022,1243543,Springlake Care Home Ltd,,Bi-Borough Director of Integrated Care,"6,000.00"
22/12/2022,1243543,Springlake Care Home Ltd,,Bi-Borough Director of Integrated Care,"6,000.00"
22/12/2022,1243543,Springlake Care Home Ltd,,Bi-Borough Director of Integrated Care,"5,400.00"
22/12/2022,1243543,Springlake Care Home Ltd,,Bi-Borough Director of Integrated Care,"6,800.00"
18/10/2022,1248948,St Davids Care In The Community,,Bi-Borough Director of Integrated Care,"3,440.00"
18/10/2022,1248948,St Davids Care In The Community,,Bi-Borough Director of Integrated Care,"3,132.56"
09/11/2022,1248948,St Davids Care In The Community,,Bi-Borough Director of Integrated Care,"3,440.00"
09/11/2022,1248948,St Davids Care In The Community,,Bi-Borough Director of Integrated Care,"3,132.56"
07/12/2022,1248948,St Davids Care In The Community,,Bi-Borough Director of Integrated Care,"3,132.56"
07/12/2022,1248948,St Davids Care In The Community,,Bi-Borough Director of Integrated Care,"3,440.00"
22/12/2022,1248948,St Davids Care In The Community,,Bi-Borough Director of Integrated Care,"3,132.56"
22/12/2022,1248948,St Davids Care In The Community,,Bi-Borough Director of Integrated Care,"3,440.00"
07/11/2022,1260994,SureCare Chelsea & Fulham,B*Voluntary-Spot-V Dep-Enhanced - do not u,Bi-Borough Director of Integrated Care,994.5
07/11/2022,1260994,SureCare Chelsea & Fulham,B*Voluntary-Spot-V Dep-Enhanced - do not u,Bi-Borough Director of Integrated Care,"2,223.00"
07/11/2022,1260994,SureCare Chelsea & Fulham,B*Voluntary-Spot-V Dep-Enhanced - do not u,Bi-Borough Director of Integrated Care,643.5
25/10/2022,1245825,Sweet Tree Home Care Services,,Bi-Borough Director of Integrated Care,"5,865.29"
25/10/2022,1245825,Sweet Tree Home Care Services,,Bi-Borough Director of Integrated Care,884.3
31/10/2022,1245825,Sweet Tree Home Care Services,,Bi-Borough Director of Integrated Care,"5,488.99"
15/11/2022,1245825,Sweet Tree Home Care Services,,Bi-Borough Director of Integrated Care,"5,532.62"
07/12/2022,1245825,Sweet Tree Home Care Services,,Bi-Borough Director of Integrated Care,"5,439.07"
18/10/2022,1245900,The Grace Eyre Foundation,,Bi-Borough Director of Integrated Care,"4,235.96"
18/10/2022,1245900,The Grace Eyre Foundation,,Bi-Borough Director of Integrated Care,"3,290.16"
09/11/2022,1245900,The Grace Eyre Foundation,,Bi-Borough Director of Integrated Care,"4,235.96"
09/11/2022,1245900,The Grace Eyre Foundation,,Bi-Borough Director of Integrated Care,"3,290.16"
07/12/2022,1245900,The Grace Eyre Foundation,,Bi-Borough Director of Integrated Care,"4,235.96"
07/12/2022,1245900,The Grace Eyre Foundation,,Bi-Borough Director of Integrated Care,"3,290.16"
22/12/2022,1245900,The Grace Eyre Foundation,,Bi-Borough Director of Integrated Care,"3,290.16"
22/12/2022,1245900,The Grace Eyre Foundation,,Bi-Borough Director of Integrated Care,"4,235.96"
18/10/2022,1249156,The Wirral Autistic Society,,Bi-Borough Director of Integrated Care,"5,097.28"
09/11/2022,1249156,The Wirral Autistic Society,,Bi-Borough Director of Integrated Care,"5,097.28"
07/12/2022,1249156,The Wirral Autistic Society,,Bi-Borough Director of Integrated Care,"5,097.28"
22/12/2022,1249156,The Wirral Autistic Society,,Bi-Borough Director of Integrated Care,"5,097.28"
18/10/2022,1246095,Theana Ltd T/a Enlighten Homes,,Bi-Borough Director of Integrated Care,"2,946.00"
18/10/2022,1246095,Theana Ltd T/a Enlighten Homes,,Bi-Borough Director of Integrated Care,"2,946.00"
09/11/2022,1246095,Theana Ltd T/a Enlighten Homes,,Bi-Borough Director of Integrated Care,"2,946.00"
09/11/2022,1246095,Theana Ltd T/a Enlighten Homes,,Bi-Borough Director of Integrated Care,"2,946.00"
07/12/2022,1246095,Theana Ltd T/a Enlighten Homes,,Bi-Borough Director of Integrated Care,"2,946.00"
07/12/2022,1246095,Theana Ltd T/a Enlighten Homes,,Bi-Borough Director of Integrated Care,"2,946.00"
22/12/2022,1246095,Theana Ltd T/a Enlighten Homes,,Bi-Borough Director of Integrated Care,"2,946.00"
22/12/2022,1246095,Theana Ltd T/a Enlighten Homes,,Bi-Borough Director of Integrated Care,"2,946.00"
14/11/2022,1287831,Touchstone Corporate Property Servi,Rent,Bi-Borough Director of Integrated Care,"7,183.44"
14/11/2022,1287831,Touchstone Corporate Property Servi,Rent,Bi-Borough Director of Integrated Care,"5,773.32"
12/12/2022,1287831,Touchstone Corporate Property Servi,Rent,Bi-Borough Director of Integrated Care,"5,773.32"
18/10/2022,1287640,VIVID COMMUNITY CARE LTD,,Bi-Borough Director of Integrated Care,"15,311.52"
09/11/2022,1287640,VIVID COMMUNITY CARE LTD,,Bi-Borough Director of Integrated Care,"15,311.52"
07/12/2022,1287640,VIVID COMMUNITY CARE LTD,,Bi-Borough Director of Integrated Care,"15,311.52"
22/12/2022,1287640,VIVID COMMUNITY CARE LTD,,Bi-Borough Director of Integrated Care,"15,311.52"
18/10/2022,1243552,Vision Homes Association,,Bi-Borough Director of Integrated Care,"7,760.00"
09/11/2022,1243552,Vision Homes Association,,Bi-Borough Director of Integrated Care,"7,760.00"
07/12/2022,1243552,Vision Homes Association,,Bi-Borough Director of Integrated Care,"7,760.00"
22/12/2022,1243552,Vision Homes Association,,Bi-Borough Director of Integrated Care,"7,760.00"
18/10/2022,1243553,Voyage Care (Bridge House),,Bi-Borough Director of Integrated Care,"5,079.20"
18/10/2022,1243553,Voyage Care (Bridge House),,Bi-Borough Director of Integrated Care,"6,958.32"
18/10/2022,1243553,Voyage Care (Bridge House),,Bi-Borough Director of Integrated Care,"7,189.60"
09/11/2022,1243553,Voyage Care (Bridge House),,Bi-Borough Director of Integrated Care,"6,958.32"
09/11/2022,1243553,Voyage Care (Bridge House),,Bi-Borough Director of Integrated Care,"7,189.60"
09/11/2022,1243553,Voyage Care (Bridge House),,Bi-Borough Director of Integrated Care,"5,079.20"
07/12/2022,1243553,Voyage Care (Bridge House),,Bi-Borough Director of Integrated Care,"5,079.20"
07/12/2022,1243553,Voyage Care (Bridge House),,Bi-Borough Director of Integrated Care,"6,958.32"
07/12/2022,1243553,Voyage Care (Bridge House),,Bi-Borough Director of Integrated Care,"7,189.60"
22/12/2022,1243553,Voyage Care (Bridge House),,Bi-Borough Director of Integrated Care,"7,189.60"
22/12/2022,1243553,Voyage Care (Bridge House),,Bi-Borough Director of Integrated Care,"5,079.20"
22/12/2022,1243553,Voyage Care (Bridge House),,Bi-Borough Director of Integrated Care,"6,958.32"
18/10/2022,1243554,Voyage Care (Kenton House),,Bi-Borough Director of Integrated Care,"6,274.76"
09/11/2022,1243554,Voyage Care (Kenton House),,Bi-Borough Director of Integrated Care,"6,274.76"
07/12/2022,1243554,Voyage Care (Kenton House),,Bi-Borough Director of Integrated Care,"7,386.15"
22/12/2022,1243554,Voyage Care (Kenton House),,Bi-Borough Director of Integrated Care,"6,400.24"
11/10/2022,1249291,Westminster Society,Rent,Bi-Borough Director of Integrated Care,"3,440.80"
13/10/2022,1249291,Westminster Society,Rent,Bi-Borough Director of Integrated Care,"7,491.45"
18/10/2022,1249291,Westminster Society,,Bi-Borough Director of Integrated Care,"2,185.92"
18/10/2022,1249291,Westminster Society,,Bi-Borough Director of Integrated Care,"1,133.44"
18/10/2022,1249291,Westminster Society,,Bi-Borough Director of Integrated Care,"3,319.36"
18/10/2022,1249291,Westminster Society,,Bi-Borough Director of Integrated Care,"3,683.68"
18/10/2022,1249291,Westminster Society,,Bi-Borough Director of Integrated Care,"2,914.56"
18/10/2022,1249291,Westminster Society,,Bi-Borough Director of Integrated Care,"5,080.24"
18/10/2022,1249291,Westminster Society,,Bi-Borough Director of Integrated Care,"3,886.08"
18/10/2022,1249291,Westminster Society,,Bi-Borough Director of Integrated Care,"7,270.20"
18/10/2022,1249291,Westminster Society,,Bi-Borough Director of Integrated Care,"2,266.88"
18/10/2022,1249291,Westminster Society,,Bi-Borough Director of Integrated Care,"2,550.24"
18/10/2022,1249291,Westminster Society,,Bi-Borough Director of Integrated Care,"4,533.76"
18/10/2022,1249291,Westminster Society,,Bi-Borough Director of Integrated Care,"5,181.44"
18/10/2022,1249291,Westminster Society,,Bi-Borough Director of Integrated Care,"1,173.92"
18/10/2022,1249291,Westminster Society,,Bi-Borough Director of Integrated Care,"2,833.60"
18/10/2022,1249291,Westminster Society,,Bi-Borough Director of Integrated Care,"2,752.64"
18/10/2022,1249291,Westminster Society,,Bi-Borough Director of Integrated Care,"6,800.64"
18/10/2022,1249291,Westminster Society,,Bi-Borough Director of Integrated Care,"9,779.96"
18/10/2022,1249291,Westminster Society,,Bi-Borough Director of Integrated Care,738.96
18/10/2022,1249291,Westminster Society,,Bi-Borough Director of Integrated Care,"2,266.88"
18/10/2022,1249291,Westminster Society,,Bi-Borough Director of Integrated Care,"9,294.20"
18/10/2022,1249291,Westminster Society,,Bi-Borough Director of Integrated Care,"2,266.88"
18/10/2022,1249291,Westminster Society,,Bi-Borough Director of Integrated Care,738.96
18/10/2022,1249291,Westminster Society,,Bi-Borough Director of Integrated Care,"2,833.60"
18/10/2022,1249291,Westminster Society,,Bi-Borough Director of Integrated Care,738.96
18/10/2022,1249291,Westminster Society,,Bi-Borough Director of Integrated Care,"8,670.80"
18/10/2022,1249291,Westminster Society,,Bi-Borough Director of Integrated Care,"4,128.96"
18/10/2022,1249291,Westminster Society,,Bi-Borough Director of Integrated Care,809.6
18/10/2022,1249291,Westminster Society,,Bi-Borough Director of Integrated Care,"1,133.44"
18/10/2022,1249291,Westminster Society,,Bi-Borough Director of Integrated Care,"4,311.12"
18/10/2022,1249291,Westminster Society,,Bi-Borough Director of Integrated Care,"1,133.44"
18/10/2022,1249291,Westminster Society,,Bi-Borough Director of Integrated Care,554.16
18/10/2022,1249291,Westminster Society,,Bi-Borough Director of Integrated Care,"1,781.12"
18/10/2022,1249291,Westminster Society,,Bi-Borough Director of Integrated Care,"2,428.80"
18/10/2022,1249291,Westminster Society,,Bi-Borough Director of Integrated Care,554.16
18/10/2022,1249291,Westminster Society,,Bi-Borough Director of Integrated Care,"15,700.46"
18/10/2022,1249291,Westminster Society,,Bi-Borough Director of Integrated Care,"5,667.20"
18/10/2022,1249291,Westminster Society,,Bi-Borough Director of Integrated Care,"6,557.76"
18/10/2022,1249291,Westminster Society,,Bi-Borough Director of Integrated Care,"4,541.84"
18/10/2022,1249291,Westminster Society,,Bi-Borough Director of Integrated Care,947.24
18/10/2022,1249291,Westminster Society,,Bi-Borough Director of Integrated Care,554.16
18/10/2022,1249291,Westminster Society,,Bi-Borough Director of Integrated Care,"2,266.88"
18/10/2022,1249291,Westminster Society,,Bi-Borough Director of Integrated Care,"2,024.00"
18/10/2022,1249291,Westminster Society,,Bi-Borough Director of Integrated Care,554.16
18/10/2022,1249291,Westminster Society,,Bi-Borough Director of Integrated Care,"3,116.96"
18/10/2022,1249291,Westminster Society,,Bi-Borough Director of Integrated Care,554.16
18/10/2022,1249291,Westminster Society,,Bi-Borough Director of Integrated Care,"6,233.92"
18/10/2022,1249291,Westminster Society,,Bi-Borough Director of Integrated Care,"1,481.56"
18/10/2022,1249291,Westminster Society,,Bi-Borough Director of Integrated Care,"1,481.56"
18/10/2022,1249291,Westminster Society,,Bi-Borough Director of Integrated Care,647.08
18/10/2022,1249291,Westminster Society,,Bi-Borough Director of Integrated Care,566.72
18/10/2022,1249291,Westminster Society,,Bi-Borough Director of Integrated Care,"4,371.84"
18/10/2022,1249291,Westminster Society,,Bi-Borough Director of Integrated Care,"2,266.88"
18/10/2022,1249291,Westminster Society,,Bi-Borough Director of Integrated Care,"7,594.04"
18/10/2022,1249291,Westminster Society,,Bi-Borough Director of Integrated Care,"2,266.88"
18/10/2022,1249291,Westminster Society,,Bi-Borough Director of Integrated Care,"6,598.24"
18/10/2022,1249291,Westminster Society,,Bi-Borough Director of Integrated Care,947.24
18/10/2022,1249291,Westminster Society,,Bi-Borough Director of Integrated Care,"4,128.96"
18/10/2022,1249291,Westminster Society,,Bi-Borough Director of Integrated Care,"3,238.40"
18/10/2022,1249291,Westminster Society,,Bi-Borough Director of Integrated Care,"2,104.96"
18/10/2022,1249291,Westminster Society,,Bi-Borough Director of Integrated Care,"1,664.88"
18/10/2022,1249291,Westminster Society,,Bi-Borough Director of Integrated Care,"10,039.04"
18/10/2022,1249291,Westminster Society,,Bi-Borough Director of Integrated Care,554.16
18/10/2022,1249291,Westminster Society,,Bi-Borough Director of Integrated Care,"2,266.88"
18/10/2022,1249291,Westminster Society,,Bi-Borough Director of Integrated Care,647.68
18/10/2022,1249291,Westminster Society,,Bi-Borough Director of Integrated Care,"2,509.76"
18/10/2022,1249291,Westminster Society,,Bi-Borough Director of Integrated Care,931.04
18/10/2022,1249291,Westminster Society,,Bi-Borough Director of Integrated Care,"1,867.86"
18/10/2022,1249291,Westminster Society,,Bi-Borough Director of Integrated Care,"3,261.81"
18/10/2022,1249291,Westminster Society,,Bi-Borough Director of Integrated Care,"5,124.76"
18/10/2022,1249291,Westminster Society,,Bi-Borough Director of Integrated Care,"4,541.84"
18/10/2022,1249291,Westminster Society,,Bi-Borough Director of Integrated Care,947.24
18/10/2022,1249291,Westminster Society,,Bi-Borough Director of Integrated Care,"1,208.62"
18/10/2022,1249291,Westminster Society,,Bi-Borough Director of Integrated Care,947.24
18/10/2022,1249291,Westminster Society,,Bi-Borough Director of Integrated Care,"5,084.28"
18/10/2022,1249291,Westminster Society,,Bi-Borough Director of Integrated Care,"2,671.68"
18/10/2022,1249291,Westminster Society,,Bi-Borough Director of Integrated Care,"2,671.68"
18/10/2022,1249291,Westminster Society,,Bi-Borough Director of Integrated Care,"2,347.84"
18/10/2022,1249291,Westminster Society,,Bi-Borough Director of Integrated Care,"1,416.80"
18/10/2022,1249291,Westminster Society,,Bi-Borough Director of Integrated Care,"2,226.40"
18/10/2022,1249291,Westminster Society,,Bi-Borough Director of Integrated Care,"35,926.00"
18/10/2022,1249291,Westminster Society,,Bi-Borough Director of Integrated Care,"5,818.76"
18/10/2022,1249291,Westminster Society,,Bi-Borough Director of Integrated Care,847.47
18/10/2022,1249291,Westminster Society,,Bi-Borough Director of Integrated Care,"4,392.08"
18/10/2022,1249291,Westminster Society,,Bi-Borough Director of Integrated Care,"19,430.40"
18/10/2022,1249291,Westminster Society,,Bi-Borough Director of Integrated Care,"8,553.44"
18/10/2022,1249291,Westminster Society,,Bi-Borough Director of Integrated Care,738.96
18/10/2022,1249291,Westminster Society,,Bi-Borough Director of Integrated Care,554.16
18/10/2022,1249291,Westminster Society,,Bi-Borough Director of Integrated Care,"5,667.20"
18/10/2022,1249291,Westminster Society,,Bi-Borough Director of Integrated Care,"4,533.76"
18/10/2022,1249291,Westminster Society,,Bi-Borough Director of Integrated Care,"1,664.88"
18/10/2022,1249291,Westminster Society,,Bi-Borough Director of Integrated Care,"8,824.64"
18/10/2022,1249291,Westminster Society,,Bi-Borough Director of Integrated Care,"2,995.52"
18/10/2022,1249291,Westminster Society,,Bi-Borough Director of Integrated Care,"2,509.76"
18/10/2022,1249291,Westminster Society,,Bi-Borough Director of Integrated Care,"2,185.92"
18/10/2022,1249291,Westminster Society,,Bi-Borough Director of Integrated Care,566.72
18/10/2022,1249291,Westminster Society,,Bi-Borough Director of Integrated Care,"4,230.16"
18/10/2022,1249291,Westminster Society,,Bi-Borough Director of Integrated Care,"1,133.44"
18/10/2022,1249291,Westminster Society,,Bi-Borough Director of Integrated Care,"1,133.44"
18/10/2022,1249291,Westminster Society,,Bi-Borough Director of Integrated Care,"6,416.08"
18/10/2022,1249291,Westminster Society,,Bi-Borough Director of Integrated Care,647.68
18/10/2022,1249291,Westminster Society,,Bi-Borough Director of Integrated Care,"1,133.44"
18/10/2022,1249291,Westminster Society,,Bi-Borough Director of Integrated Care,647.68
18/10/2022,1249291,Westminster Society,,Bi-Borough Director of Integrated Care,"3,261.81"
18/10/2022,1249291,Westminster Society,,Bi-Borough Director of Integrated Care,"1,867.86"
18/10/2022,1249291,Westminster Society,,Bi-Borough Director of Integrated Care,947.24
18/10/2022,1249291,Westminster Society,,Bi-Borough Director of Integrated Care,"2,266.88"
18/10/2022,1249291,Westminster Society,,Bi-Borough Director of Integrated Care,"1,335.84"
18/10/2022,1249291,Westminster Society,,Bi-Borough Director of Integrated Care,554.16
18/10/2022,1249291,Westminster Society,,Bi-Borough Director of Integrated Care,"3,076.48"
18/10/2022,1249291,Westminster Society,,Bi-Borough Director of Integrated Care,"4,048.00"
18/10/2022,1249291,Westminster Society,,Bi-Borough Director of Integrated Care,"2,497.32"
18/10/2022,1249291,Westminster Society,,Bi-Borough Director of Integrated Care,647.68
18/10/2022,1249291,Westminster Society,,Bi-Borough Director of Integrated Care,947.24
18/10/2022,1249291,Westminster Society,,Bi-Borough Director of Integrated Care,"3,683.68"
18/10/2022,1249291,Westminster Society,,Bi-Borough Director of Integrated Care,947.24
18/10/2022,1249291,Westminster Society,,Bi-Borough Director of Integrated Care,"9,634.24"
18/10/2022,1249291,Westminster Society,,Bi-Borough Director of Integrated Care,"6,687.28"
18/10/2022,1249291,Westminster Society,,Bi-Borough Director of Integrated Care,947.24
18/10/2022,1249291,Westminster Society,,Bi-Borough Director of Integrated Care,"1,208.62"
18/10/2022,1249291,Westminster Society,,Bi-Borough Director of Integrated Care,947.24
18/10/2022,1249291,Westminster Society,,Bi-Borough Director of Integrated Care,"6,865.40"
25/10/2022,1249291,Westminster Society,B*Voluntary-Spot-V Dep-Enhanced - do not u,Bi-Borough Director of Integrated Care,"1,113.20"
25/10/2022,1249291,Westminster Society,B*Voluntary-Spot-V Dep-Enhanced - do not u,Bi-Borough Director of Integrated Care,"1,922.80"
25/10/2022,1249291,Westminster Society,B*Voluntary-Spot-V Dep-Enhanced - do not u,Bi-Borough Director of Integrated Care,"1,416.80"
25/10/2022,1249291,Westminster Society,B*Voluntary-Spot-V Dep-Enhanced - do not u,Bi-Borough Director of Integrated Care,910.8
25/10/2022,1249291,Westminster Society,B*Voluntary-Spot-V Dep-Enhanced - do not u,Bi-Borough Director of Integrated Care,"2,732.40"
25/10/2022,1249291,Westminster Society,B*Voluntary-Spot-V Dep-Enhanced - do not u,Bi-Borough Director of Integrated Care,"1,012.00"
25/10/2022,1249291,Westminster Society,B*Voluntary-Spot-V Dep-Enhanced - do not u,Bi-Borough Director of Integrated Care,"1,619.20"
25/10/2022,1249291,Westminster Society,B*Voluntary-Spot-V Dep-Enhanced - do not u,Bi-Borough Director of Integrated Care,"2,530.00"
25/10/2022,1249291,Westminster Society,B*Voluntary-Spot-V Dep-Enhanced - do not u,Bi-Borough Director of Integrated Care,829.84
25/10/2022,1249291,Westminster Society,B*Voluntary-Spot-V Dep-Enhanced - do not u,Bi-Borough Director of Integrated Care,"1,052.48"
25/10/2022,1249291,Westminster Society,B*Voluntary-Spot-V Dep-Enhanced - do not u,Bi-Borough Director of Integrated Care,890.56
25/10/2022,1249291,Westminster Society,B*Voluntary-Spot-V Dep-Enhanced - do not u,Bi-Borough Director of Integrated Care,728.64
25/10/2022,1249291,Westminster Society,B*Voluntary-Spot-V Dep-Enhanced - do not u,Bi-Borough Director of Integrated Care,809.6
25/10/2022,1249291,Westminster Society,B*Voluntary-Spot-V Dep-Enhanced - do not u,Bi-Borough Director of Integrated Care,"1,315.60"
25/10/2022,1249291,Westminster Society,B*Voluntary-Spot-V Dep-Enhanced - do not u,Bi-Borough Director of Integrated Care,"1,416.80"
25/10/2022,1249291,Westminster Society,B*Voluntary-Spot-V Dep-Enhanced - do not u,Bi-Borough Director of Integrated Care,809.6
25/10/2022,1249291,Westminster Society,B*Voluntary-Spot-V Dep-Enhanced - do not u,Bi-Borough Director of Integrated Care,647.68
25/10/2022,1249291,Westminster Society,B*Voluntary-Spot-V Dep-Enhanced - do not u,Bi-Borough Director of Integrated Care,566.72
25/10/2022,1249291,Westminster Society,B*Voluntary-Spot-V Dep-Enhanced - do not u,Bi-Borough Director of Integrated Care,647.68
25/10/2022,1249291,Westminster Society,B*Voluntary-Spot-V Dep-Enhanced - do not u,Bi-Borough Director of Integrated Care,"3,036.00"
25/10/2022,1249291,Westminster Society,B*Voluntary-Spot-V Dep-Enhanced - do not u,Bi-Borough Director of Integrated Care,809.6
25/10/2022,1249291,Westminster Society,B*Voluntary-Spot-V Dep-Enhanced - do not u,Bi-Borough Director of Integrated Care,809.6
25/10/2022,1249291,Westminster Society,B*Voluntary-Spot-V Dep-Enhanced - do not u,Bi-Borough Director of Integrated Care,607.2
25/10/2022,1249291,Westminster Society,B*Voluntary-Spot-V Dep-Enhanced - do not u,Bi-Borough Director of Integrated Care,506
25/10/2022,1249291,Westminster Society,B*Voluntary-Spot-V Dep-Enhanced - do not u,Bi-Borough Director of Integrated Care,910.8
25/10/2022,1249291,Westminster Society,B*Voluntary-Spot-V Dep-Enhanced - do not u,Bi-Borough Director of Integrated Care,"1,012.00"
25/10/2022,1249291,Westminster Society,B*Voluntary-Spot-V Dep-Enhanced - do not u,Bi-Borough Director of Integrated Care,"1,619.20"
25/10/2022,1249291,Westminster Society,B*Voluntary-Spot-V Dep-Enhanced - do not u,Bi-Borough Director of Integrated Care,708.4
25/10/2022,1249291,Westminster Society,B*Voluntary-Spot-V Dep-Enhanced - do not u,Bi-Borough Director of Integrated Care,"2,185.92"
25/10/2022,1249291,Westminster Society,B*Voluntary-Spot-V Dep-Enhanced - do not u,Bi-Borough Director of Integrated Care,546.48
25/10/2022,1249291,Westminster Society,B*Voluntary-Spot-V Dep-Enhanced - do not u,Bi-Borough Director of Integrated Care,728.64
25/10/2022,1249291,Westminster Society,B*Voluntary-Spot-V Dep-Enhanced - do not u,Bi-Borough Director of Integrated Care,"2,024.00"
25/10/2022,1249291,Westminster Society,B*Voluntary-Spot-V Dep-Enhanced - do not u,Bi-Borough Director of Integrated Care,"2,428.80"
25/10/2022,1249291,Westminster Society,B*Voluntary-Spot-V Dep-Enhanced - do not u,Bi-Borough Director of Integrated Care,647.68
25/10/2022,1249291,Westminster Society,B*Voluntary-Spot-V Dep-Enhanced - do not u,Bi-Borough Director of Integrated Care,"1,133.44"
25/10/2022,1249291,Westminster Society,B*Voluntary-Spot-V Dep-Enhanced - do not u,Bi-Borough Director of Integrated Care,"1,133.44"
25/10/2022,1249291,Westminster Society,B*Voluntary-Spot-V Dep-Enhanced - do not u,Bi-Borough Director of Integrated Care,809.6
25/10/2022,1249291,Westminster Society,B*Voluntary-Spot-V Dep-Enhanced - do not u,Bi-Borough Director of Integrated Care,"1,214.40"
25/10/2022,1249291,Westminster Society,B*Voluntary-Spot-V Dep-Enhanced - do not u,Bi-Borough Director of Integrated Care,647.68
25/10/2022,1249291,Westminster Society,B*Voluntary-Spot-V Dep-Enhanced - do not u,Bi-Borough Director of Integrated Care,"1,538.24"
25/10/2022,1249291,Westminster Society,B*Voluntary-Spot-V Dep-Enhanced - do not u,Bi-Borough Director of Integrated Care,647.68
09/11/2022,1249291,Westminster Society,,Bi-Borough Director of Integrated Care,"4,230.16"
09/11/2022,1249291,Westminster Society,,Bi-Borough Director of Integrated Care,"1,133.44"
09/11/2022,1249291,Westminster Society,,Bi-Borough Director of Integrated Care,"1,133.44"
09/11/2022,1249291,Westminster Society,,Bi-Borough Director of Integrated Care,647.68
09/11/2022,1249291,Westminster Society,,Bi-Borough Director of Integrated Care,647.68
09/11/2022,1249291,Westminster Society,,Bi-Borough Director of Integrated Care,"3,076.48"
09/11/2022,1249291,Westminster Society,,Bi-Borough Director of Integrated Care,947.24
09/11/2022,1249291,Westminster Society,,Bi-Borough Director of Integrated Care,"2,266.88"
09/11/2022,1249291,Westminster Society,,Bi-Borough Director of Integrated Care,"1,335.84"
09/11/2022,1249291,Westminster Society,,Bi-Borough Director of Integrated Care,"3,683.68"
09/11/2022,1249291,Westminster Society,,Bi-Borough Director of Integrated Care,947.24
09/11/2022,1249291,Westminster Society,,Bi-Borough Director of Integrated Care,"4,533.76"
09/11/2022,1249291,Westminster Society,,Bi-Borough Director of Integrated Care,"5,181.44"
09/11/2022,1249291,Westminster Society,,Bi-Borough Director of Integrated Care,"1,173.92"
09/11/2022,1249291,Westminster Society,,Bi-Borough Director of Integrated Care,"2,833.60"
09/11/2022,1249291,Westminster Society,,Bi-Borough Director of Integrated Care,"2,752.64"
09/11/2022,1249291,Westminster Society,,Bi-Borough Director of Integrated Care,"6,800.64"
09/11/2022,1249291,Westminster Society,,Bi-Borough Director of Integrated Care,"2,266.88"
09/11/2022,1249291,Westminster Society,,Bi-Borough Director of Integrated Care,738.96
09/11/2022,1249291,Westminster Society,,Bi-Borough Director of Integrated Care,"9,294.20"
09/11/2022,1249291,Westminster Society,,Bi-Borough Director of Integrated Care,"2,266.88"
09/11/2022,1249291,Westminster Society,,Bi-Borough Director of Integrated Care,738.96
09/11/2022,1249291,Westminster Society,,Bi-Borough Director of Integrated Care,"9,779.96"
09/11/2022,1249291,Westminster Society,,Bi-Borough Director of Integrated Care,"4,128.96"
09/11/2022,1249291,Westminster Society,,Bi-Borough Director of Integrated Care,809.6
09/11/2022,1249291,Westminster Society,,Bi-Borough Director of Integrated Care,"1,133.44"
09/11/2022,1249291,Westminster Society,,Bi-Borough Director of Integrated Care,"4,311.12"
09/11/2022,1249291,Westminster Society,,Bi-Borough Director of Integrated Care,"1,133.44"
09/11/2022,1249291,Westminster Society,,Bi-Borough Director of Integrated Care,"6,679.20"
09/11/2022,1249291,Westminster Society,,Bi-Borough Director of Integrated Care,"5,667.20"
09/11/2022,1249291,Westminster Society,,Bi-Borough Director of Integrated Care,"2,428.80"
09/11/2022,1249291,Westminster Society,,Bi-Borough Director of Integrated Care,554.16
09/11/2022,1249291,Westminster Society,,Bi-Borough Director of Integrated Care,554.16
09/11/2022,1249291,Westminster Society,,Bi-Borough Director of Integrated Care,"1,781.12"
09/11/2022,1249291,Westminster Society,,Bi-Borough Director of Integrated Care,"6,557.76"
09/11/2022,1249291,Westminster Society,,Bi-Borough Director of Integrated Care,947.24
09/11/2022,1249291,Westminster Society,,Bi-Borough Director of Integrated Care,"4,541.84"
09/11/2022,1249291,Westminster Society,,Bi-Borough Director of Integrated Care,"2,024.00"
09/11/2022,1249291,Westminster Society,,Bi-Borough Director of Integrated Care,554.16
09/11/2022,1249291,Westminster Society,,Bi-Borough Director of Integrated Care,"2,266.88"
09/11/2022,1249291,Westminster Society,,Bi-Borough Director of Integrated Care,554.16
09/11/2022,1249291,Westminster Society,,Bi-Borough Director of Integrated Care,"3,116.96"
09/11/2022,1249291,Westminster Society,,Bi-Borough Director of Integrated Care,"6,233.92"
09/11/2022,1249291,Westminster Society,,Bi-Borough Director of Integrated Care,554.16
09/11/2022,1249291,Westminster Society,,Bi-Borough Director of Integrated Care,"1,481.56"
09/11/2022,1249291,Westminster Society,,Bi-Borough Director of Integrated Care,"1,481.56"
09/11/2022,1249291,Westminster Society,,Bi-Borough Director of Integrated Care,566.72
09/11/2022,1249291,Westminster Society,,Bi-Borough Director of Integrated Care,566.72
09/11/2022,1249291,Westminster Society,,Bi-Borough Director of Integrated Care,"4,371.84"
09/11/2022,1249291,Westminster Society,,Bi-Borough Director of Integrated Care,"2,266.88"
09/11/2022,1249291,Westminster Society,,Bi-Borough Director of Integrated Care,"7,594.04"
09/11/2022,1249291,Westminster Society,,Bi-Borough Director of Integrated Care,"2,266.88"
09/11/2022,1249291,Westminster Society,,Bi-Borough Director of Integrated Care,"6,598.24"
09/11/2022,1249291,Westminster Society,,Bi-Borough Director of Integrated Care,947.24
09/11/2022,1249291,Westminster Society,,Bi-Borough Director of Integrated Care,"2,185.92"
09/11/2022,1249291,Westminster Society,,Bi-Borough Director of Integrated Care,"1,133.44"
09/11/2022,1249291,Westminster Society,,Bi-Borough Director of Integrated Care,"2,914.56"
09/11/2022,1249291,Westminster Society,,Bi-Borough Director of Integrated Care,"3,683.68"
09/11/2022,1249291,Westminster Society,,Bi-Borough Director of Integrated Care,"3,319.36"
09/11/2022,1249291,Westminster Society,,Bi-Borough Director of Integrated Care,"3,886.08"
09/11/2022,1249291,Westminster Society,,Bi-Borough Director of Integrated Care,"4,614.72"
09/11/2022,1249291,Westminster Society,,Bi-Borough Director of Integrated Care,"2,266.88"
09/11/2022,1249291,Westminster Society,,Bi-Borough Director of Integrated Care,"7,270.20"
09/11/2022,1249291,Westminster Society,,Bi-Borough Director of Integrated Care,"2,833.60"
09/11/2022,1249291,Westminster Society,,Bi-Borough Director of Integrated Care,"2,833.60"
09/11/2022,1249291,Westminster Society,,Bi-Borough Director of Integrated Care,738.96
09/11/2022,1249291,Westminster Society,,Bi-Borough Director of Integrated Care,"8,670.80"
09/11/2022,1249291,Westminster Society,,Bi-Borough Director of Integrated Care,"4,128.96"
09/11/2022,1249291,Westminster Society,,Bi-Borough Director of Integrated Care,"3,238.40"
09/11/2022,1249291,Westminster Society,,Bi-Borough Director of Integrated Care,"2,104.96"
09/11/2022,1249291,Westminster Society,,Bi-Borough Director of Integrated Care,"1,664.88"
09/11/2022,1249291,Westminster Society,,Bi-Borough Director of Integrated Care,"10,039.04"
09/11/2022,1249291,Westminster Society,,Bi-Borough Director of Integrated Care,554.16
09/11/2022,1249291,Westminster Society,,Bi-Borough Director of Integrated Care,"2,266.88"
09/11/2022,1249291,Westminster Society,,Bi-Borough Director of Integrated Care,647.68
09/11/2022,1249291,Westminster Society,,Bi-Borough Director of Integrated Care,"2,509.76"
09/11/2022,1249291,Westminster Society,,Bi-Borough Director of Integrated Care,931.04
09/11/2022,1249291,Westminster Society,,Bi-Borough Director of Integrated Care,"3,076.48"
09/11/2022,1249291,Westminster Society,,Bi-Borough Director of Integrated Care,"5,124.76"
09/11/2022,1249291,Westminster Society,,Bi-Borough Director of Integrated Care,"4,541.84"
09/11/2022,1249291,Westminster Society,,Bi-Borough Director of Integrated Care,947.24
09/11/2022,1249291,Westminster Society,,Bi-Borough Director of Integrated Care,"5,084.28"
09/11/2022,1249291,Westminster Society,,Bi-Borough Director of Integrated Care,947.24
09/11/2022,1249291,Westminster Society,,Bi-Borough Director of Integrated Care,"2,671.68"
09/11/2022,1249291,Westminster Society,,Bi-Borough Director of Integrated Care,"2,671.68"
09/11/2022,1249291,Westminster Society,,Bi-Borough Director of Integrated Care,"2,347.84"
09/11/2022,1249291,Westminster Society,,Bi-Borough Director of Integrated Care,"18,853.56"
09/11/2022,1249291,Westminster Society,,Bi-Borough Director of Integrated Care,"3,278.88"
09/11/2022,1249291,Westminster Society,,Bi-Borough Director of Integrated Care,"1,416.80"
09/11/2022,1249291,Westminster Society,,Bi-Borough Director of Integrated Care,"5,667.20"
09/11/2022,1249291,Westminster Society,,Bi-Borough Director of Integrated Care,947.24
09/11/2022,1249291,Westminster Society,,Bi-Borough Director of Integrated Care,"4,392.08"
09/11/2022,1249291,Westminster Society,,Bi-Borough Director of Integrated Care,"8,553.44"
09/11/2022,1249291,Westminster Society,,Bi-Borough Director of Integrated Care,738.96
09/11/2022,1249291,Westminster Society,,Bi-Borough Director of Integrated Care,"2,833.60"
09/11/2022,1249291,Westminster Society,,Bi-Borough Director of Integrated Care,554.16
09/11/2022,1249291,Westminster Society,,Bi-Borough Director of Integrated Care,"5,667.20"
09/11/2022,1249291,Westminster Society,,Bi-Borough Director of Integrated Care,554.16
09/11/2022,1249291,Westminster Society,,Bi-Borough Director of Integrated Care,"3,076.48"
09/11/2022,1249291,Westminster Society,,Bi-Borough Director of Integrated Care,"4,048.00"
09/11/2022,1249291,Westminster Society,,Bi-Borough Director of Integrated Care,"1,664.88"
09/11/2022,1249291,Westminster Society,,Bi-Borough Director of Integrated Care,647.68
09/11/2022,1249291,Westminster Society,,Bi-Borough Director of Integrated Care,947.24
09/11/2022,1249291,Westminster Society,,Bi-Borough Director of Integrated Care,"6,687.28"
09/11/2022,1249291,Westminster Society,,Bi-Borough Director of Integrated Care,947.24
09/11/2022,1249291,Westminster Society,,Bi-Borough Director of Integrated Care,"6,865.40"
09/11/2022,1249291,Westminster Society,,Bi-Borough Director of Integrated Care,947.24
09/11/2022,1249291,Westminster Society,,Bi-Borough Director of Integrated Care,"9,634.24"
09/11/2022,1249291,Westminster Society,,Bi-Borough Director of Integrated Care,"4,533.76"
09/11/2022,1249291,Westminster Society,,Bi-Borough Director of Integrated Care,"1,664.88"
09/11/2022,1249291,Westminster Society,,Bi-Borough Director of Integrated Care,"8,824.64"
09/11/2022,1249291,Westminster Society,,Bi-Borough Director of Integrated Care,"2,509.76"
09/11/2022,1249291,Westminster Society,,Bi-Borough Director of Integrated Care,"2,995.52"
09/11/2022,1249291,Westminster Society,,Bi-Borough Director of Integrated Care,"2,185.92"
09/11/2022,1249291,Westminster Society,,Bi-Borough Director of Integrated Care,566.72
09/11/2022,1249291,Westminster Society,,Bi-Borough Director of Integrated Care,"6,416.08"
09/11/2022,1249291,Westminster Society,,Bi-Borough Director of Integrated Care,"1,133.44"
10/11/2022,1249291,Westminster Society,Rent,Bi-Borough Director of Integrated Care,"7,491.45"
14/11/2022,1249291,Westminster Society,Rent,Bi-Borough Director of Integrated Care,"12,524.94"
14/11/2022,1249291,Westminster Society,Rent,Bi-Borough Director of Integrated Care,"11,844.78"
14/11/2022,1249291,Westminster Society,Rent,Bi-Borough Director of Integrated Care,"9,592.23"
14/11/2022,1249291,Westminster Society,Rent,Bi-Borough Director of Integrated Care,"7,491.45"
07/12/2022,1249291,Westminster Society,,Bi-Borough Director of Integrated Care,"4,128.96"
07/12/2022,1249291,Westminster Society,,Bi-Borough Director of Integrated Care,"3,238.40"
07/12/2022,1249291,Westminster Society,,Bi-Borough Director of Integrated Care,"3,284.67"
07/12/2022,1249291,Westminster Society,,Bi-Borough Director of Integrated Care,554.16
07/12/2022,1249291,Westminster Society,,Bi-Borough Director of Integrated Care,"10,039.04"
07/12/2022,1249291,Westminster Society,,Bi-Borough Director of Integrated Care,"1,664.88"
07/12/2022,1249291,Westminster Society,,Bi-Borough Director of Integrated Care,"2,266.88"
07/12/2022,1249291,Westminster Society,,Bi-Borough Director of Integrated Care,647.68
07/12/2022,1249291,Westminster Society,,Bi-Borough Director of Integrated Care,"2,509.76"
07/12/2022,1249291,Westminster Society,,Bi-Borough Director of Integrated Care,931.04
07/12/2022,1249291,Westminster Society,,Bi-Borough Director of Integrated Care,"3,076.48"
07/12/2022,1249291,Westminster Society,,Bi-Borough Director of Integrated Care,"5,124.76"
07/12/2022,1249291,Westminster Society,,Bi-Borough Director of Integrated Care,947.24
07/12/2022,1249291,Westminster Society,,Bi-Borough Director of Integrated Care,"4,541.84"
07/12/2022,1249291,Westminster Society,,Bi-Borough Director of Integrated Care,947.24
07/12/2022,1249291,Westminster Society,,Bi-Borough Director of Integrated Care,"5,084.28"
07/12/2022,1249291,Westminster Society,,Bi-Borough Director of Integrated Care,"2,671.68"
07/12/2022,1249291,Westminster Society,,Bi-Borough Director of Integrated Care,"2,671.68"
07/12/2022,1249291,Westminster Society,,Bi-Borough Director of Integrated Care,"2,347.84"
07/12/2022,1249291,Westminster Society,,Bi-Borough Director of Integrated Care,"6,517.28"
07/12/2022,1249291,Westminster Society,,Bi-Borough Director of Integrated Care,"1,133.44"
07/12/2022,1249291,Westminster Society,,Bi-Borough Director of Integrated Care,"1,416.80"
07/12/2022,1249291,Westminster Society,,Bi-Borough Director of Integrated Care,"5,667.20"
07/12/2022,1249291,Westminster Society,,Bi-Borough Director of Integrated Care,947.24
07/12/2022,1249291,Westminster Society,,Bi-Borough Director of Integrated Care,"4,392.08"
07/12/2022,1249291,Westminster Society,,Bi-Borough Director of Integrated Care,"8,553.44"
07/12/2022,1249291,Westminster Society,,Bi-Borough Director of Integrated Care,738.96
07/12/2022,1249291,Westminster Society,,Bi-Borough Director of Integrated Care,"2,833.60"
07/12/2022,1249291,Westminster Society,,Bi-Borough Director of Integrated Care,554.16
07/12/2022,1249291,Westminster Society,,Bi-Borough Director of Integrated Care,"5,667.20"
07/12/2022,1249291,Westminster Society,,Bi-Borough Director of Integrated Care,"4,533.76"
07/12/2022,1249291,Westminster Society,,Bi-Borough Director of Integrated Care,"1,664.88"
07/12/2022,1249291,Westminster Society,,Bi-Borough Director of Integrated Care,"8,824.64"
07/12/2022,1249291,Westminster Society,,Bi-Borough Director of Integrated Care,"2,995.52"
07/12/2022,1249291,Westminster Society,,Bi-Borough Director of Integrated Care,"2,509.76"
07/12/2022,1249291,Westminster Society,,Bi-Borough Director of Integrated Care,"2,185.92"
07/12/2022,1249291,Westminster Society,,Bi-Borough Director of Integrated Care,566.72
07/12/2022,1249291,Westminster Society,,Bi-Borough Director of Integrated Care,"4,230.16"
07/12/2022,1249291,Westminster Society,,Bi-Borough Director of Integrated Care,"1,133.44"
07/12/2022,1249291,Westminster Society,,Bi-Borough Director of Integrated Care,"6,416.08"
07/12/2022,1249291,Westminster Society,,Bi-Borough Director of Integrated Care,"1,133.44"
07/12/2022,1249291,Westminster Society,,Bi-Borough Director of Integrated Care,647.68
07/12/2022,1249291,Westminster Society,,Bi-Borough Director of Integrated Care,"1,133.44"
07/12/2022,1249291,Westminster Society,,Bi-Borough Director of Integrated Care,647.68
07/12/2022,1249291,Westminster Society,,Bi-Borough Director of Integrated Care,"3,076.48"
07/12/2022,1249291,Westminster Society,,Bi-Borough Director of Integrated Care,"2,266.88"
07/12/2022,1249291,Westminster Society,,Bi-Borough Director of Integrated Care,947.24
07/12/2022,1249291,Westminster Society,,Bi-Borough Director of Integrated Care,"1,335.84"
07/12/2022,1249291,Westminster Society,,Bi-Borough Director of Integrated Care,947.24
07/12/2022,1249291,Westminster Society,,Bi-Borough Director of Integrated Care,"3,683.68"
07/12/2022,1249291,Westminster Society,,Bi-Borough Director of Integrated Care,554.16
07/12/2022,1249291,Westminster Society,,Bi-Borough Director of Integrated Care,"3,076.48"
07/12/2022,1249291,Westminster Society,,Bi-Borough Director of Integrated Care,"1,664.88"
07/12/2022,1249291,Westminster Society,,Bi-Borough Director of Integrated Care,"4,048.00"
07/12/2022,1249291,Westminster Society,,Bi-Borough Director of Integrated Care,647.68
07/12/2022,1249291,Westminster Society,,Bi-Borough Director of Integrated Care,947.24
07/12/2022,1249291,Westminster Society,,Bi-Borough Director of Integrated Care,"9,634.24"
07/12/2022,1249291,Westminster Society,,Bi-Borough Director of Integrated Care,947.24
07/12/2022,1249291,Westminster Society,,Bi-Borough Director of Integrated Care,"6,687.28"
07/12/2022,1249291,Westminster Society,,Bi-Borough Director of Integrated Care,947.24
07/12/2022,1249291,Westminster Society,,Bi-Borough Director of Integrated Care,"6,865.40"
07/12/2022,1249291,Westminster Society,,Bi-Borough Director of Integrated Care,"2,185.92"
07/12/2022,1249291,Westminster Society,,Bi-Borough Director of Integrated Care,"1,133.44"
07/12/2022,1249291,Westminster Society,,Bi-Borough Director of Integrated Care,"3,319.36"
07/12/2022,1249291,Westminster Society,,Bi-Borough Director of Integrated Care,"3,683.68"
07/12/2022,1249291,Westminster Society,,Bi-Borough Director of Integrated Care,"2,914.56"
07/12/2022,1249291,Westminster Society,,Bi-Borough Director of Integrated Care,"4,614.72"
07/12/2022,1249291,Westminster Society,,Bi-Borough Director of Integrated Care,"3,886.08"
07/12/2022,1249291,Westminster Society,,Bi-Borough Director of Integrated Care,"2,266.88"
07/12/2022,1249291,Westminster Society,,Bi-Borough Director of Integrated Care,"7,270.20"
07/12/2022,1249291,Westminster Society,,Bi-Borough Director of Integrated Care,"2,833.60"
07/12/2022,1249291,Westminster Society,,Bi-Borough Director of Integrated Care,"4,533.76"
07/12/2022,1249291,Westminster Society,,Bi-Borough Director of Integrated Care,"5,181.44"
07/12/2022,1249291,Westminster Society,,Bi-Borough Director of Integrated Care,"1,173.92"
07/12/2022,1249291,Westminster Society,,Bi-Borough Director of Integrated Care,"2,833.60"
07/12/2022,1249291,Westminster Society,,Bi-Borough Director of Integrated Care,"2,752.64"
07/12/2022,1249291,Westminster Society,,Bi-Borough Director of Integrated Care,"6,800.64"
07/12/2022,1249291,Westminster Society,,Bi-Borough Director of Integrated Care,"2,266.88"
07/12/2022,1249291,Westminster Society,,Bi-Borough Director of Integrated Care,738.96
07/12/2022,1249291,Westminster Society,,Bi-Borough Director of Integrated Care,"9,779.96"
07/12/2022,1249291,Westminster Society,,Bi-Borough Director of Integrated Care,"2,266.88"
07/12/2022,1249291,Westminster Society,,Bi-Borough Director of Integrated Care,738.96
07/12/2022,1249291,Westminster Society,,Bi-Borough Director of Integrated Care,"9,294.20"
07/12/2022,1249291,Westminster Society,,Bi-Borough Director of Integrated Care,"2,833.60"
07/12/2022,1249291,Westminster Society,,Bi-Borough Director of Integrated Care,738.96
07/12/2022,1249291,Westminster Society,,Bi-Borough Director of Integrated Care,"8,670.80"
07/12/2022,1249291,Westminster Society,,Bi-Borough Director of Integrated Care,"4,128.96"
07/12/2022,1249291,Westminster Society,,Bi-Borough Director of Integrated Care,809.6
07/12/2022,1249291,Westminster Society,,Bi-Borough Director of Integrated Care,"1,133.44"
07/12/2022,1249291,Westminster Society,,Bi-Borough Director of Integrated Care,"4,311.12"
07/12/2022,1249291,Westminster Society,,Bi-Borough Director of Integrated Care,"1,133.44"
07/12/2022,1249291,Westminster Society,,Bi-Borough Director of Integrated Care,"1,781.12"
07/12/2022,1249291,Westminster Society,,Bi-Borough Director of Integrated Care,554.16
07/12/2022,1249291,Westminster Society,,Bi-Borough Director of Integrated Care,554.16
07/12/2022,1249291,Westminster Society,,Bi-Borough Director of Integrated Care,"2,428.80"
07/12/2022,1249291,Westminster Society,,Bi-Borough Director of Integrated Care,"6,557.76"
07/12/2022,1249291,Westminster Society,,Bi-Borough Director of Integrated Care,947.24
07/12/2022,1249291,Westminster Society,,Bi-Borough Director of Integrated Care,"4,541.84"
07/12/2022,1249291,Westminster Society,,Bi-Borough Director of Integrated Care,"2,266.88"
07/12/2022,1249291,Westminster Society,,Bi-Borough Director of Integrated Care,554.16
07/12/2022,1249291,Westminster Society,,Bi-Borough Director of Integrated Care,"2,024.00"
07/12/2022,1249291,Westminster Society,,Bi-Borough Director of Integrated Care,554.16
07/12/2022,1249291,Westminster Society,,Bi-Borough Director of Integrated Care,"3,116.96"
07/12/2022,1249291,Westminster Society,,Bi-Borough Director of Integrated Care,"6,233.92"
07/12/2022,1249291,Westminster Society,,Bi-Borough Director of Integrated Care,554.16
07/12/2022,1249291,Westminster Society,,Bi-Borough Director of Integrated Care,"1,481.56"
07/12/2022,1249291,Westminster Society,,Bi-Borough Director of Integrated Care,"1,481.56"
07/12/2022,1249291,Westminster Society,,Bi-Borough Director of Integrated Care,566.72
07/12/2022,1249291,Westminster Society,,Bi-Borough Director of Integrated Care,566.72
07/12/2022,1249291,Westminster Society,,Bi-Borough Director of Integrated Care,"2,266.88"
07/12/2022,1249291,Westminster Society,,Bi-Borough Director of Integrated Care,"4,371.84"
07/12/2022,1249291,Westminster Society,,Bi-Borough Director of Integrated Care,"2,266.88"
07/12/2022,1249291,Westminster Society,,Bi-Borough Director of Integrated Care,"7,594.04"
07/12/2022,1249291,Westminster Society,,Bi-Borough Director of Integrated Care,947.24
07/12/2022,1249291,Westminster Society,,Bi-Borough Director of Integrated Care,"6,598.24"
08/12/2022,1249291,Westminster Society,Rent,Bi-Borough Director of Integrated Care,"11,405.49"
08/12/2022,1249291,Westminster Society,Rent,Bi-Borough Director of Integrated Care,"11,453.52"
21/12/2022,1249291,Westminster Society,,Bi-Borough Director of Integrated Care,"2,185.92"
21/12/2022,1249291,Westminster Society,,Bi-Borough Director of Integrated Care,"1,133.44"
21/12/2022,1249291,Westminster Society,,Bi-Borough Director of Integrated Care,"3,319.36"
21/12/2022,1249291,Westminster Society,,Bi-Borough Director of Integrated Care,"3,683.68"
21/12/2022,1249291,Westminster Society,,Bi-Borough Director of Integrated Care,"2,914.56"
21/12/2022,1249291,Westminster Society,,Bi-Borough Director of Integrated Care,"9,634.24"
21/12/2022,1249291,Westminster Society,,Bi-Borough Director of Integrated Care,947.24
21/12/2022,1249291,Westminster Society,,Bi-Borough Director of Integrated Care,"6,687.28"
21/12/2022,1249291,Westminster Society,,Bi-Borough Director of Integrated Care,947.24
21/12/2022,1249291,Westminster Society,,Bi-Borough Director of Integrated Care,947.24
21/12/2022,1249291,Westminster Society,,Bi-Borough Director of Integrated Care,"6,865.40"
21/12/2022,1249291,Westminster Society,,Bi-Borough Director of Integrated Care,"4,614.72"
21/12/2022,1249291,Westminster Society,,Bi-Borough Director of Integrated Care,"3,886.08"
21/12/2022,1249291,Westminster Society,,Bi-Borough Director of Integrated Care,"2,266.88"
21/12/2022,1249291,Westminster Society,,Bi-Borough Director of Integrated Care,"7,270.20"
21/12/2022,1249291,Westminster Society,,Bi-Borough Director of Integrated Care,"2,833.60"
21/12/2022,1249291,Westminster Society,,Bi-Borough Director of Integrated Care,"5,019.52"
21/12/2022,1249291,Westminster Society,,Bi-Borough Director of Integrated Care,"5,181.44"
21/12/2022,1249291,Westminster Society,,Bi-Borough Director of Integrated Care,"1,173.92"
21/12/2022,1249291,Westminster Society,,Bi-Borough Director of Integrated Care,"2,833.60"
21/12/2022,1249291,Westminster Society,,Bi-Borough Director of Integrated Care,"2,752.64"
21/12/2022,1249291,Westminster Society,,Bi-Borough Director of Integrated Care,"6,800.64"
21/12/2022,1249291,Westminster Society,,Bi-Borough Director of Integrated Care,738.96
21/12/2022,1249291,Westminster Society,,Bi-Borough Director of Integrated Care,"9,779.96"
21/12/2022,1249291,Westminster Society,,Bi-Borough Director of Integrated Care,"2,266.88"
21/12/2022,1249291,Westminster Society,,Bi-Borough Director of Integrated Care,"2,266.88"
21/12/2022,1249291,Westminster Society,,Bi-Borough Director of Integrated Care,738.96
21/12/2022,1249291,Westminster Society,,Bi-Borough Director of Integrated Care,"9,294.20"
21/12/2022,1249291,Westminster Society,,Bi-Borough Director of Integrated Care,"2,833.60"
21/12/2022,1249291,Westminster Society,,Bi-Borough Director of Integrated Care,738.96
21/12/2022,1249291,Westminster Society,,Bi-Borough Director of Integrated Care,"8,670.80"
21/12/2022,1249291,Westminster Society,,Bi-Borough Director of Integrated Care,"4,128.96"
21/12/2022,1249291,Westminster Society,,Bi-Borough Director of Integrated Care,"1,133.44"
21/12/2022,1249291,Westminster Society,,Bi-Borough Director of Integrated Care,"13,156.00"
21/12/2022,1249291,Westminster Society,,Bi-Borough Director of Integrated Care,"1,133.44"
21/12/2022,1249291,Westminster Society,,Bi-Borough Director of Integrated Care,"1,133.44"
21/12/2022,1249291,Westminster Society,,Bi-Borough Director of Integrated Care,554.16
21/12/2022,1249291,Westminster Society,,Bi-Borough Director of Integrated Care,"1,781.12"
21/12/2022,1249291,Westminster Society,,Bi-Borough Director of Integrated Care,"2,428.80"
21/12/2022,1249291,Westminster Society,,Bi-Borough Director of Integrated Care,554.16
21/12/2022,1249291,Westminster Society,,Bi-Borough Director of Integrated Care,"6,557.76"
21/12/2022,1249291,Westminster Society,,Bi-Borough Director of Integrated Care,947.24
21/12/2022,1249291,Westminster Society,,Bi-Borough Director of Integrated Care,"4,541.84"
21/12/2022,1249291,Westminster Society,,Bi-Borough Director of Integrated Care,554.16
21/12/2022,1249291,Westminster Society,,Bi-Borough Director of Integrated Care,"2,266.88"
21/12/2022,1249291,Westminster Society,,Bi-Borough Director of Integrated Care,554.16
21/12/2022,1249291,Westminster Society,,Bi-Borough Director of Integrated Care,"2,024.00"
21/12/2022,1249291,Westminster Society,,Bi-Borough Director of Integrated Care,"3,116.96"
21/12/2022,1249291,Westminster Society,,Bi-Borough Director of Integrated Care,554.16
21/12/2022,1249291,Westminster Society,,Bi-Borough Director of Integrated Care,"6,233.92"
21/12/2022,1249291,Westminster Society,,Bi-Borough Director of Integrated Care,"1,481.56"
21/12/2022,1249291,Westminster Society,,Bi-Borough Director of Integrated Care,"1,481.56"
21/12/2022,1249291,Westminster Society,,Bi-Borough Director of Integrated Care,566.72
21/12/2022,1249291,Westminster Society,,Bi-Borough Director of Integrated Care,566.72
21/12/2022,1249291,Westminster Society,,Bi-Borough Director of Integrated Care,"2,266.88"
21/12/2022,1249291,Westminster Society,,Bi-Borough Director of Integrated Care,"4,371.84"
21/12/2022,1249291,Westminster Society,,Bi-Borough Director of Integrated Care,"2,266.88"
21/12/2022,1249291,Westminster Society,,Bi-Borough Director of Integrated Care,"7,594.04"
21/12/2022,1249291,Westminster Society,,Bi-Borough Director of Integrated Care,"6,598.24"
21/12/2022,1249291,Westminster Society,,Bi-Borough Director of Integrated Care,947.24
21/12/2022,1249291,Westminster Society,,Bi-Borough Director of Integrated Care,"4,128.96"
21/12/2022,1249291,Westminster Society,,Bi-Borough Director of Integrated Care,"3,238.40"
21/12/2022,1249291,Westminster Society,,Bi-Borough Director of Integrated Care,"3,076.48"
21/12/2022,1249291,Westminster Society,,Bi-Borough Director of Integrated Care,"1,664.88"
21/12/2022,1249291,Westminster Society,,Bi-Borough Director of Integrated Care,"10,039.04"
21/12/2022,1249291,Westminster Society,,Bi-Borough Director of Integrated Care,554.16
21/12/2022,1249291,Westminster Society,,Bi-Borough Director of Integrated Care,"2,266.88"
21/12/2022,1249291,Westminster Society,,Bi-Borough Director of Integrated Care,647.68
21/12/2022,1249291,Westminster Society,,Bi-Borough Director of Integrated Care,"2,509.76"
21/12/2022,1249291,Westminster Society,,Bi-Borough Director of Integrated Care,931.04
21/12/2022,1249291,Westminster Society,,Bi-Borough Director of Integrated Care,"3,076.48"
21/12/2022,1249291,Westminster Society,,Bi-Borough Director of Integrated Care,"5,124.76"
21/12/2022,1249291,Westminster Society,,Bi-Borough Director of Integrated Care,947.24
21/12/2022,1249291,Westminster Society,,Bi-Borough Director of Integrated Care,"4,541.84"
21/12/2022,1249291,Westminster Society,,Bi-Borough Director of Integrated Care,947.24
21/12/2022,1249291,Westminster Society,,Bi-Borough Director of Integrated Care,"5,084.28"
21/12/2022,1249291,Westminster Society,,Bi-Borough Director of Integrated Care,"2,671.68"
21/12/2022,1249291,Westminster Society,,Bi-Borough Director of Integrated Care,"2,671.68"
21/12/2022,1249291,Westminster Society,,Bi-Borough Director of Integrated Care,"2,347.84"
21/12/2022,1249291,Westminster Society,,Bi-Borough Director of Integrated Care,"6,517.28"
21/12/2022,1249291,Westminster Society,,Bi-Borough Director of Integrated Care,"1,133.44"
21/12/2022,1249291,Westminster Society,,Bi-Borough Director of Integrated Care,"1,416.80"
21/12/2022,1249291,Westminster Society,,Bi-Borough Director of Integrated Care,"5,667.20"
21/12/2022,1249291,Westminster Society,,Bi-Borough Director of Integrated Care,947.24
21/12/2022,1249291,Westminster Society,,Bi-Borough Director of Integrated Care,"4,392.08"
21/12/2022,1249291,Westminster Society,,Bi-Borough Director of Integrated Care,"8,553.44"
21/12/2022,1249291,Westminster Society,,Bi-Borough Director of Integrated Care,738.96
21/12/2022,1249291,Westminster Society,,Bi-Borough Director of Integrated Care,"2,833.60"
21/12/2022,1249291,Westminster Society,,Bi-Borough Director of Integrated Care,"4,533.76"
21/12/2022,1249291,Westminster Society,,Bi-Borough Director of Integrated Care,"8,824.64"
21/12/2022,1249291,Westminster Society,,Bi-Borough Director of Integrated Care,"1,664.88"
21/12/2022,1249291,Westminster Society,,Bi-Borough Director of Integrated Care,"2,995.52"
21/12/2022,1249291,Westminster Society,,Bi-Borough Director of Integrated Care,"2,509.76"
21/12/2022,1249291,Westminster Society,,Bi-Borough Director of Integrated Care,"2,185.92"
21/12/2022,1249291,Westminster Society,,Bi-Borough Director of Integrated Care,566.72
21/12/2022,1249291,Westminster Society,,Bi-Borough Director of Integrated Care,"4,230.16"
21/12/2022,1249291,Westminster Society,,Bi-Borough Director of Integrated Care,"1,133.44"
21/12/2022,1249291,Westminster Society,,Bi-Borough Director of Integrated Care,"6,416.08"
21/12/2022,1249291,Westminster Society,,Bi-Borough Director of Integrated Care,"1,133.44"
21/12/2022,1249291,Westminster Society,,Bi-Borough Director of Integrated Care,647.68
21/12/2022,1249291,Westminster Society,,Bi-Borough Director of Integrated Care,"1,133.44"
21/12/2022,1249291,Westminster Society,,Bi-Borough Director of Integrated Care,647.68
21/12/2022,1249291,Westminster Society,,Bi-Borough Director of Integrated Care,554.16
21/12/2022,1249291,Westminster Society,,Bi-Borough Director of Integrated Care,"5,667.20"
21/12/2022,1249291,Westminster Society,,Bi-Borough Director of Integrated Care,"3,076.48"
21/12/2022,1249291,Westminster Society,,Bi-Borough Director of Integrated Care,947.24
21/12/2022,1249291,Westminster Society,,Bi-Borough Director of Integrated Care,"2,266.88"
21/12/2022,1249291,Westminster Society,,Bi-Borough Director of Integrated Care,"1,335.84"
21/12/2022,1249291,Westminster Society,,Bi-Borough Director of Integrated Care,947.24
21/12/2022,1249291,Westminster Society,,Bi-Borough Director of Integrated Care,"3,683.68"
21/12/2022,1249291,Westminster Society,,Bi-Borough Director of Integrated Care,554.16
21/12/2022,1249291,Westminster Society,,Bi-Borough Director of Integrated Care,"3,076.48"
21/12/2022,1249291,Westminster Society,,Bi-Borough Director of Integrated Care,"4,048.00"
21/12/2022,1249291,Westminster Society,,Bi-Borough Director of Integrated Care,"1,664.88"
21/12/2022,1249291,Westminster Society,,Bi-Borough Director of Integrated Care,647.68
29/12/2022,1249291,Westminster Society,Rent,Bi-Borough Director of Integrated Care,"4,351.60"
29/12/2022,1249291,Westminster Society,Rent,Bi-Borough Director of Integrated Care,"2,530.00"
18/10/2022,1246224,Whitmore Vale Housing Association,,Bi-Borough Director of Integrated Care,"3,688.80"
09/11/2022,1246224,Whitmore Vale Housing Association,,Bi-Borough Director of Integrated Care,"3,688.80"
07/12/2022,1246224,Whitmore Vale Housing Association,,Bi-Borough Director of Integrated Care,"3,688.80"
22/12/2022,1246224,Whitmore Vale Housing Association,,Bi-Borough Director of Integrated Care,"3,688.80"
18/10/2022,1243566,Yarrow Housing Ltd,,Bi-Borough Director of Integrated Care,"1,816.64"
18/10/2022,1243566,Yarrow Housing Ltd,,Bi-Borough Director of Integrated Care,"1,816.64"
18/10/2022,1243566,Yarrow Housing Ltd,,Bi-Borough Director of Integrated Care,"7,297.56"
18/10/2022,1243566,Yarrow Housing Ltd,,Bi-Borough Director of Integrated Care,"7,851.20"
18/10/2022,1243566,Yarrow Housing Ltd,,Bi-Borough Director of Integrated Care,"4,886.32"
18/10/2022,1243566,Yarrow Housing Ltd,,Bi-Borough Director of Integrated Care,"1,686.72"
18/10/2022,1243566,Yarrow Housing Ltd,,Bi-Borough Director of Integrated Care,"1,686.72"
18/10/2022,1243566,Yarrow Housing Ltd,,Bi-Borough Director of Integrated Care,"8,301.92"
18/10/2022,1243566,Yarrow Housing Ltd,,Bi-Borough Director of Integrated Care,"3,889.16"
18/10/2022,1243566,Yarrow Housing Ltd,,Bi-Borough Director of Integrated Care,"5,550.80"
27/10/2022,1243566,Yarrow Housing Ltd,,Bi-Borough Director of Integrated Care,"7,921.20"
09/11/2022,1243566,Yarrow Housing Ltd,,Bi-Borough Director of Integrated Care,"7,851.20"
09/11/2022,1243566,Yarrow Housing Ltd,,Bi-Borough Director of Integrated Care,"4,886.32"
09/11/2022,1243566,Yarrow Housing Ltd,,Bi-Borough Director of Integrated Care,"1,686.72"
09/11/2022,1243566,Yarrow Housing Ltd,,Bi-Borough Director of Integrated Care,"1,686.72"
09/11/2022,1243566,Yarrow Housing Ltd,,Bi-Borough Director of Integrated Care,"3,889.16"
09/11/2022,1243566,Yarrow Housing Ltd,,Bi-Borough Director of Integrated Care,"8,301.92"
09/11/2022,1243566,Yarrow Housing Ltd,,Bi-Borough Director of Integrated Care,"5,550.80"
09/11/2022,1243566,Yarrow Housing Ltd,,Bi-Borough Director of Integrated Care,"9,628.00"
09/11/2022,1243566,Yarrow Housing Ltd,,Bi-Borough Director of Integrated Care,"1,816.64"
09/11/2022,1243566,Yarrow Housing Ltd,,Bi-Borough Director of Integrated Care,"1,816.64"
09/11/2022,1243566,Yarrow Housing Ltd,,Bi-Borough Director of Integrated Care,"7,297.56"
24/11/2022,1243566,Yarrow Housing Ltd,,Bi-Borough Director of Integrated Care,"7,921.20"
07/12/2022,1243566,Yarrow Housing Ltd,,Bi-Borough Director of Integrated Care,"5,550.80"
07/12/2022,1243566,Yarrow Housing Ltd,,Bi-Borough Director of Integrated Care,"9,628.00"
07/12/2022,1243566,Yarrow Housing Ltd,,Bi-Borough Director of Integrated Care,"1,816.64"
07/12/2022,1243566,Yarrow Housing Ltd,,Bi-Borough Director of Integrated Care,"1,816.64"
07/12/2022,1243566,Yarrow Housing Ltd,,Bi-Borough Director of Integrated Care,"7,297.56"
07/12/2022,1243566,Yarrow Housing Ltd,,Bi-Borough Director of Integrated Care,"7,851.20"
07/12/2022,1243566,Yarrow Housing Ltd,,Bi-Borough Director of Integrated Care,"4,886.32"
07/12/2022,1243566,Yarrow Housing Ltd,,Bi-Borough Director of Integrated Care,"1,686.72"
07/12/2022,1243566,Yarrow Housing Ltd,,Bi-Borough Director of Integrated Care,"1,686.72"
07/12/2022,1243566,Yarrow Housing Ltd,,Bi-Borough Director of Integrated Care,"8,301.92"
07/12/2022,1243566,Yarrow Housing Ltd,,Bi-Borough Director of Integrated Care,"3,889.16"
21/12/2022,1243566,Yarrow Housing Ltd,,Bi-Borough Director of Integrated Care,"7,921.20"
22/12/2022,1243566,Yarrow Housing Ltd,,Bi-Borough Director of Integrated Care,"7,851.20"
22/12/2022,1243566,Yarrow Housing Ltd,,Bi-Borough Director of Integrated Care,"4,886.32"
22/12/2022,1243566,Yarrow Housing Ltd,,Bi-Borough Director of Integrated Care,"1,686.72"
22/12/2022,1243566,Yarrow Housing Ltd,,Bi-Borough Director of Integrated Care,"1,686.72"
22/12/2022,1243566,Yarrow Housing Ltd,,Bi-Borough Director of Integrated Care,"8,301.92"
22/12/2022,1243566,Yarrow Housing Ltd,,Bi-Borough Director of Integrated Care,"3,889.16"
22/12/2022,1243566,Yarrow Housing Ltd,,Bi-Borough Director of Integrated Care,"5,550.80"
22/12/2022,1243566,Yarrow Housing Ltd,,Bi-Borough Director of Integrated Care,"9,628.00"
22/12/2022,1243566,Yarrow Housing Ltd,,Bi-Borough Director of Integrated Care,"1,816.64"
22/12/2022,1243566,Yarrow Housing Ltd,,Bi-Borough Director of Integrated Care,"1,816.64"
22/12/2022,1243566,Yarrow Housing Ltd,,Bi-Borough Director of Integrated Care,"7,297.56"
17/11/2022,1249317,Zocalo Ltd T/as Bluebird Care,,Bi-Borough Director of Integrated Care,"3,402.00"
17/11/2022,1249317,Zocalo Ltd T/as Bluebird Care,,Bi-Borough Director of Integrated Care,"1,224.79"
24/11/2022,1249317,Zocalo Ltd T/as Bluebird Care,Hire of Accommodation and Facilities,Bi-Borough Director of Integrated Care,"8,081.25"
07/12/2022,1249317,Zocalo Ltd T/as Bluebird Care,,Bi-Borough Director of Integrated Care,"3,897.00"
07/12/2022,1249317,Zocalo Ltd T/as Bluebird Care,,Bi-Borough Director of Integrated Care,"1,982.58"
08/12/2022,1249317,Zocalo Ltd T/as Bluebird Care,,Bi-Borough Director of Integrated Care,"3,780.00"
17/10/2022,1249318,Zodiac Arts Ltd,B*Voluntary-Spot-V Dep-Enhanced - do not u,Bi-Borough Director of Integrated Care,715.5
18/10/2022,1249318,Zodiac Arts Ltd,B*Voluntary-Spot-V Dep-Enhanced - do not u,Bi-Borough Director of Integrated Care,715.5
28/11/2022,1249318,Zodiac Arts Ltd,B*Voluntary-Spot-V Dep-Enhanced - do not u,Bi-Borough Director of Integrated Care,715.5
21/12/2022,1249318,Zodiac Arts Ltd,B*Voluntary-Spot-V Dep-Enhanced - do not u,Bi-Borough Director of Integrated Care,715
17/10/2022,1249020,Steven Carnaby Associates Ltd,Training related expenditure,Bi-Borough Director of Integrated Care,850
27/10/2022,1249020,Steven Carnaby Associates Ltd,Training related expenditure,Bi-Borough Director of Integrated Care,850
11/11/2022,1283054,Ede's,Equipment,Bi-Borough Director of Integrated Care,"1,246.71"
10/11/2022,1248227,Ogilvie Fleet,HTM / Other Vehicle - Hire Charges,Bi-Borough Director of Integrated Care,509.04
02/12/2022,1248227,Ogilvie Fleet,HTM / Other Vehicle - Hire Charges,Bi-Borough Director of Integrated Care,923.24
18/10/2022,1249079,The Appropriate Adult Service Ltd,Training related expenditure,Bi-Borough Director of Integrated Care,"1,115.63"
13/12/2022,1249079,The Appropriate Adult Service Ltd,Training related expenditure,Bi-Borough Director of Integrated Care,"1,530.00"
19/12/2022,1249079,The Appropriate Adult Service Ltd,Training related expenditure,Bi-Borough Director of Integrated Care,"1,243.13"
18/10/2022,1248618,Riverside Echg,,Bi-Borough Director of Integrated Care,"1,381.92"
09/11/2022,1248618,Riverside Echg,,Bi-Borough Director of Integrated Care,"1,381.92"
07/12/2022,1248618,Riverside Echg,,Bi-Borough Director of Integrated Care,"1,381.92"
22/12/2022,1248618,Riverside Echg,,Bi-Borough Director of Integrated Care,"1,381.92"
22/12/2022,D000000016,PERSONAL PAYMENTS,,Bi-Borough Director of Integrated Care,"5,000.00"
18/10/2022,1247852,Look Ahead Care and Support Ltd,,Bi-Borough Director of Integrated Care,"1,256.64"
18/10/2022,1247852,Look Ahead Care and Support Ltd,,Bi-Borough Director of Integrated Care,842.28
18/10/2022,1247852,Look Ahead Care and Support Ltd,,Bi-Borough Director of Integrated Care,955.56
18/10/2022,1247852,Look Ahead Care and Support Ltd,,Bi-Borough Director of Integrated Care,897.92
18/10/2022,1247852,Look Ahead Care and Support Ltd,,Bi-Borough Director of Integrated Care,955.56
18/10/2022,1247852,Look Ahead Care and Support Ltd,,Bi-Borough Director of Integrated Care,"1,256.64"
18/10/2022,1247852,Look Ahead Care and Support Ltd,,Bi-Borough Director of Integrated Care,842.28
18/10/2022,1247852,Look Ahead Care and Support Ltd,,Bi-Borough Director of Integrated Care,"1,413.00"
09/11/2022,1247852,Look Ahead Care and Support Ltd,,Bi-Borough Director of Integrated Care,842.28
09/11/2022,1247852,Look Ahead Care and Support Ltd,,Bi-Borough Director of Integrated Care,"1,224.50"
09/11/2022,1247852,Look Ahead Care and Support Ltd,,Bi-Borough Director of Integrated Care,955.56
09/11/2022,1247852,Look Ahead Care and Support Ltd,,Bi-Borough Director of Integrated Care,897.92
09/11/2022,1247852,Look Ahead Care and Support Ltd,,Bi-Borough Director of Integrated Care,955.56
09/11/2022,1247852,Look Ahead Care and Support Ltd,,Bi-Borough Director of Integrated Care,"1,413.00"
09/11/2022,1247852,Look Ahead Care and Support Ltd,,Bi-Borough Director of Integrated Care,"1,256.64"
09/11/2022,1247852,Look Ahead Care and Support Ltd,,Bi-Borough Director of Integrated Care,842.28
09/11/2022,1247852,Look Ahead Care and Support Ltd,,Bi-Borough Director of Integrated Care,"1,256.64"
07/12/2022,1247852,Look Ahead Care and Support Ltd,,Bi-Borough Director of Integrated Care,"1,256.64"
07/12/2022,1247852,Look Ahead Care and Support Ltd,,Bi-Borough Director of Integrated Care,"1,371.44"
07/12/2022,1247852,Look Ahead Care and Support Ltd,,Bi-Borough Director of Integrated Care,842.28
07/12/2022,1247852,Look Ahead Care and Support Ltd,,Bi-Borough Director of Integrated Care,955.56
07/12/2022,1247852,Look Ahead Care and Support Ltd,,Bi-Borough Director of Integrated Care,897.92
07/12/2022,1247852,Look Ahead Care and Support Ltd,,Bi-Borough Director of Integrated Care,955.56
07/12/2022,1247852,Look Ahead Care and Support Ltd,,Bi-Borough Director of Integrated Care,"1,256.64"
07/12/2022,1247852,Look Ahead Care and Support Ltd,,Bi-Borough Director of Integrated Care,842.28
07/12/2022,1247852,Look Ahead Care and Support Ltd,,Bi-Borough Director of Integrated Care,"1,413.00"
22/12/2022,1247852,Look Ahead Care and Support Ltd,,Bi-Borough Director of Integrated Care,955.56
22/12/2022,1247852,Look Ahead Care and Support Ltd,,Bi-Borough Director of Integrated Care,897.92
22/12/2022,1247852,Look Ahead Care and Support Ltd,,Bi-Borough Director of Integrated Care,955.56
22/12/2022,1247852,Look Ahead Care and Support Ltd,,Bi-Borough Director of Integrated Care,"1,256.64"
22/12/2022,1247852,Look Ahead Care and Support Ltd,,Bi-Borough Director of Integrated Care,842.28
22/12/2022,1247852,Look Ahead Care and Support Ltd,,Bi-Borough Director of Integrated Care,"1,413.00"
22/12/2022,1247852,Look Ahead Care and Support Ltd,,Bi-Borough Director of Integrated Care,"1,256.64"
22/12/2022,1247852,Look Ahead Care and Support Ltd,,Bi-Borough Director of Integrated Care,"1,371.44"
22/12/2022,1247852,Look Ahead Care and Support Ltd,,Bi-Borough Director of Integrated Care,842.28
18/10/2022,1248618,Riverside Echg,,Bi-Borough Director of Integrated Care,"1,236.28"
18/10/2022,1248618,Riverside Echg,,Bi-Borough Director of Integrated Care,"1,008.00"
18/10/2022,1248618,Riverside Echg,,Bi-Borough Director of Integrated Care,"1,233.48"
18/10/2022,1248618,Riverside Echg,,Bi-Borough Director of Integrated Care,688.24
09/11/2022,1248618,Riverside Echg,,Bi-Borough Director of Integrated Care,"1,059.08"
09/11/2022,1248618,Riverside Echg,,Bi-Borough Director of Integrated Care,"1,233.48"
09/11/2022,1248618,Riverside Echg,,Bi-Borough Director of Integrated Care,"1,008.00"
09/11/2022,1248618,Riverside Echg,,Bi-Borough Director of Integrated Care,"1,236.28"
09/11/2022,1248618,Riverside Echg,,Bi-Borough Director of Integrated Care,688.24
07/12/2022,1248618,Riverside Echg,,Bi-Borough Director of Integrated Care,"1,065.40"
07/12/2022,1248618,Riverside Echg,,Bi-Borough Director of Integrated Care,"1,236.28"
07/12/2022,1248618,Riverside Echg,,Bi-Borough Director of Integrated Care,"1,008.00"
07/12/2022,1248618,Riverside Echg,,Bi-Borough Director of Integrated Care,"1,233.48"
07/12/2022,1248618,Riverside Echg,,Bi-Borough Director of Integrated Care,688.24
07/12/2022,1248618,Riverside Echg,,Bi-Borough Director of Integrated Care,"1,059.08"
22/12/2022,1248618,Riverside Echg,,Bi-Borough Director of Integrated Care,"1,236.28"
22/12/2022,1248618,Riverside Echg,,Bi-Borough Director of Integrated Care,"1,008.00"
22/12/2022,1248618,Riverside Echg,,Bi-Borough Director of Integrated Care,"1,233.48"
22/12/2022,1248618,Riverside Echg,,Bi-Borough Director of Integrated Care,688.24
22/12/2022,1248618,Riverside Echg,,Bi-Borough Director of Integrated Care,"1,059.08"
18/10/2022,1245584,Single Homeless Project,,Bi-Borough Director of Integrated Care,"1,531.40"
18/10/2022,1245584,Single Homeless Project,,Bi-Borough Director of Integrated Care,"1,076.92"
18/10/2022,1245584,Single Homeless Project,,Bi-Borough Director of Integrated Care,"1,531.36"
09/11/2022,1245584,Single Homeless Project,,Bi-Borough Director of Integrated Care,"1,531.40"
09/11/2022,1245584,Single Homeless Project,,Bi-Borough Director of Integrated Care,"1,076.92"
09/11/2022,1245584,Single Homeless Project,,Bi-Borough Director of Integrated Care,"1,531.36"
07/12/2022,1245584,Single Homeless Project,,Bi-Borough Director of Integrated Care,"1,531.36"
07/12/2022,1245584,Single Homeless Project,,Bi-Borough Director of Integrated Care,"1,531.40"
07/12/2022,1245584,Single Homeless Project,,Bi-Borough Director of Integrated Care,"1,076.92"
22/12/2022,1245584,Single Homeless Project,,Bi-Borough Director of Integrated Care,"1,531.40"
22/12/2022,1245584,Single Homeless Project,,Bi-Borough Director of Integrated Care,"1,076.92"
22/12/2022,1245584,Single Homeless Project,,Bi-Borough Director of Integrated Care,"1,531.36"
22/12/2022,1245584,Single Homeless Project,,Bi-Borough Director of Integrated Care,"2,891.28"
18/10/2022,1245636,St Mungos Broadway (Grants &,,Bi-Borough Director of Integrated Care,"1,426.80"
18/10/2022,1245636,St Mungos Broadway (Grants &,,Bi-Borough Director of Integrated Care,"1,450.96"
18/10/2022,1245636,St Mungos Broadway (Grants &,,Bi-Borough Director of Integrated Care,"1,356.90"
18/10/2022,1245636,St Mungos Broadway (Grants &,,Bi-Borough Director of Integrated Care,"1,573.40"
18/10/2022,1245636,St Mungos Broadway (Grants &,,Bi-Borough Director of Integrated Care,"1,120.28"
09/11/2022,1245636,St Mungos Broadway (Grants &,,Bi-Borough Director of Integrated Care,"1,426.80"
09/11/2022,1245636,St Mungos Broadway (Grants &,,Bi-Borough Director of Integrated Care,"1,450.96"
09/11/2022,1245636,St Mungos Broadway (Grants &,,Bi-Borough Director of Integrated Care,"1,573.40"
09/11/2022,1245636,St Mungos Broadway (Grants &,,Bi-Borough Director of Integrated Care,"1,120.28"
07/12/2022,1245636,St Mungos Broadway (Grants &,,Bi-Borough Director of Integrated Care,"1,120.28"
07/12/2022,1245636,St Mungos Broadway (Grants &,,Bi-Borough Director of Integrated Care,"1,426.80"
07/12/2022,1245636,St Mungos Broadway (Grants &,,Bi-Borough Director of Integrated Care,"1,450.96"
07/12/2022,1245636,St Mungos Broadway (Grants &,,Bi-Borough Director of Integrated Care,"1,573.40"
22/12/2022,1245636,St Mungos Broadway (Grants &,,Bi-Borough Director of Integrated Care,"1,450.96"
22/12/2022,1245636,St Mungos Broadway (Grants &,,Bi-Borough Director of Integrated Care,"1,573.40"
22/12/2022,1245636,St Mungos Broadway (Grants &,,Bi-Borough Director of Integrated Care,"1,120.28"
22/12/2022,1245636,St Mungos Broadway (Grants &,,Bi-Borough Director of Integrated Care,"1,426.80"
09/12/2022,1245728,Cnwl Nhs Foundation Trust (Use,Agency Staff,Bi-Borough Director of Integrated Care,"2,529.67"
09/12/2022,1245728,Cnwl Nhs Foundation Trust (Use,Agency Staff,Bi-Borough Director of Integrated Care,"2,509.43"
18/10/2022,1255843,A.I. Care Services Ltd,,Bi-Borough Director of Integrated Care,922.9
15/11/2022,1255843,A.I. Care Services Ltd,,Bi-Borough Director of Integrated Care,973.24
12/12/2022,1255843,A.I. Care Services Ltd,,Bi-Borough Director of Integrated Care,"1,049.61"
17/10/2022,1245929,The Regard Partnership Ltd,B*Voluntary-Spot-V Dep-Enhanced - do not u,Bi-Borough Director of Integrated Care,"1,848.00"
18/10/2022,1245929,The Regard Partnership Ltd,B*Voluntary-Spot-V Dep-Enhanced - do not u,Bi-Borough Director of Integrated Care,"1,848.00"
02/11/2022,1246011,Art4Space,B*Voluntary-Spot-V Dep-Enhanced - do not u,Bi-Borough Director of Integrated Care,"1,300.00"
31/12/2022,1246011,Art4Space,B*Voluntary-Spot-V Dep-Enhanced - do not u,Bi-Borough Director of Integrated Care,"1,250.00"
31/12/2022,1246011,Art4Space,B*Voluntary-Spot-V Dep-Enhanced - do not u,Bi-Borough Director of Integrated Care,"1,250.00"
31/12/2022,1246011,Art4Space,B*Voluntary-Spot-V Dep-Enhanced - do not u,Bi-Borough Director of Integrated Care,"1,250.00"
31/12/2022,1246011,Art4Space,B*Voluntary-Spot-V Dep-Enhanced - do not u,Bi-Borough Director of Integrated Care,"1,250.00"
31/12/2022,1246011,Art4Space,B*Voluntary-Spot-V Dep-Enhanced - do not u,Bi-Borough Director of Integrated Care,"1,250.00"
31/12/2022,1246011,Art4Space,B*Voluntary-Spot-V Dep-Enhanced - do not u,Bi-Borough Director of Integrated Care,"1,250.00"
18/10/2022,1243931,Ashbourne Healthcare Services,,Bi-Borough Director of Integrated Care,"3,658.04"
18/10/2022,1243931,Ashbourne Healthcare Services,,Bi-Borough Director of Integrated Care,"1,409.52"
31/10/2022,1243931,Ashbourne Healthcare Services,,Bi-Borough Director of Integrated Care,"1,476.64"
31/10/2022,1243931,Ashbourne Healthcare Services,,Bi-Borough Director of Integrated Care,939.68
07/11/2022,1243931,Ashbourne Healthcare Services,,Bi-Borough Director of Integrated Care,"1,174.60"
07/11/2022,1243931,Ashbourne Healthcare Services,,Bi-Borough Director of Integrated Care,939.68
07/11/2022,1243931,Ashbourne Healthcare Services,,Bi-Borough Director of Integrated Care,939.68
07/11/2022,1243931,Ashbourne Healthcare Services,,Bi-Borough Director of Integrated Care,"3,498.63"
10/11/2022,1243931,Ashbourne Healthcare Services,,Bi-Borough Director of Integrated Care,"3,314.05"
15/11/2022,1243931,Ashbourne Healthcare Services,,Bi-Borough Director of Integrated Care,"1,443.08"
28/12/2022,1243931,Ashbourne Healthcare Services,,Bi-Borough Director of Integrated Care,"1,369.83"
18/10/2022,1271022,BONZA CARE LTD,,Bi-Borough Director of Integrated Care,"2,180.00"
18/10/2022,1271022,BONZA CARE LTD,,Bi-Borough Director of Integrated Care,"2,180.00"
18/10/2022,1271022,BONZA CARE LTD,,Bi-Borough Director of Integrated Care,"2,171.43"
18/10/2022,1271022,BONZA CARE LTD,,Bi-Borough Director of Integrated Care,"1,684.00"
09/11/2022,1271022,BONZA CARE LTD,,Bi-Borough Director of Integrated Care,"2,180.00"
09/11/2022,1271022,BONZA CARE LTD,,Bi-Borough Director of Integrated Care,"2,180.00"
09/11/2022,1271022,BONZA CARE LTD,,Bi-Borough Director of Integrated Care,"1,684.00"
07/12/2022,1271022,BONZA CARE LTD,,Bi-Borough Director of Integrated Care,"2,180.00"
07/12/2022,1271022,BONZA CARE LTD,,Bi-Borough Director of Integrated Care,"2,180.00"
07/12/2022,1271022,BONZA CARE LTD,,Bi-Borough Director of Integrated Care,"1,684.00"
22/12/2022,1271022,BONZA CARE LTD,,Bi-Borough Director of Integrated Care,"2,180.00"
22/12/2022,1271022,BONZA CARE LTD,,Bi-Borough Director of Integrated Care,"2,180.00"
22/12/2022,1271022,BONZA CARE LTD,,Bi-Borough Director of Integrated Care,"1,684.00"
31/10/2022,1246247,Blitz Home Environmental Cleaning,,Bi-Borough Director of Integrated Care,600
14/11/2022,1246247,Blitz Home Environmental Cleaning,,Bi-Borough Director of Integrated Care,"1,800.00"
17/10/2022,1246261,Brent Wandsworth & Westminster,B*Voluntary-Spot-V Dep-Enhanced - do not u,Bi-Borough Director of Integrated Care,971.9
18/10/2022,1246261,Brent Wandsworth & Westminster,B*Voluntary-Spot-V Dep-Enhanced - do not u,Bi-Borough Director of Integrated Care,971.9
14/11/2022,1246261,Brent Wandsworth & Westminster,B*Voluntary-Spot-V Dep-Enhanced - do not u,Bi-Borough Director of Integrated Care,841.15
30/11/2022,1246262,Brent Wandsworth & Westminster,B*Voluntary-Spot-V Dep-Enhanced - do not u,Bi-Borough Director of Integrated Care,540
30/11/2022,1246262,Brent Wandsworth & Westminster,B*Voluntary-Spot-V Dep-Enhanced - do not u,Bi-Borough Director of Integrated Care,780
30/11/2022,1246262,Brent Wandsworth & Westminster,B*Voluntary-Spot-V Dep-Enhanced - do not u,Bi-Borough Director of Integrated Care,540
30/11/2022,1246262,Brent Wandsworth & Westminster,B*Voluntary-Spot-V Dep-Enhanced - do not u,Bi-Borough Director of Integrated Care,600
21/12/2022,1246261,Brent Wandsworth & Westminster,B*Voluntary-Spot-V Dep-Enhanced - do not u,Bi-Borough Director of Integrated Care,958.68
21/12/2022,1246261,Brent Wandsworth & Westminster,B*Voluntary-Spot-V Dep-Enhanced - do not u,Bi-Borough Director of Integrated Care,709.51
23/12/2022,1246262,Brent Wandsworth & Westminster,B*Voluntary-Spot-V Dep-Enhanced - do not u,Bi-Borough Director of Integrated Care,540
23/12/2022,1246262,Brent Wandsworth & Westminster,B*Voluntary-Spot-V Dep-Enhanced - do not u,Bi-Borough Director of Integrated Care,840
23/12/2022,1246262,Brent Wandsworth & Westminster,B*Voluntary-Spot-V Dep-Enhanced - do not u,Bi-Borough Director of Integrated Care,540
29/12/2022,1246262,Brent Wandsworth & Westminster,B*Voluntary-Spot-V Dep-Enhanced - do not u,Bi-Borough Director of Integrated Care,720
18/10/2022,1247482,PERSONAL PAYMENTS,,Bi-Borough Director of Integrated Care,833.28
09/11/2022,1247482,PERSONAL PAYMENTS,,Bi-Borough Director of Integrated Care,833.28
07/12/2022,1247482,PERSONAL PAYMENTS,,Bi-Borough Director of Integrated Care,833.28
22/12/2022,1247482,PERSONAL PAYMENTS,,Bi-Borough Director of Integrated Care,833.28
18/10/2022,1246321,Camphill Village Trust,,Bi-Borough Director of Integrated Care,"1,159.40"
09/11/2022,1246321,Camphill Village Trust,,Bi-Borough Director of Integrated Care,"1,159.40"
07/12/2022,1246321,Camphill Village Trust,,Bi-Borough Director of Integrated Care,"1,159.40"
22/12/2022,1246321,Camphill Village Trust,,Bi-Borough Director of Integrated Care,"1,159.40"
09/11/2022,1299671,Clear Sight Care Ltd,,Bi-Borough Director of Integrated Care,"3,201.71"
15/11/2022,1299671,Clear Sight Care Ltd,,Bi-Borough Director of Integrated Care,"3,201.71"
07/12/2022,1299671,Clear Sight Care Ltd,,Bi-Borough Director of Integrated Care,"1,724.00"
07/12/2022,1299671,Clear Sight Care Ltd,,Bi-Borough Director of Integrated Care,"1,724.00"
22/12/2022,1299671,Clear Sight Care Ltd,,Bi-Borough Director of Integrated Care,"1,724.00"
22/12/2022,1299671,Clear Sight Care Ltd,,Bi-Borough Director of Integrated Care,"1,724.00"
06/10/2022,1246581,Clearup Solutions Limited,,Bi-Borough Director of Integrated Care,600
17/10/2022,1246581,Clearup Solutions Limited,,Bi-Borough Director of Integrated Care,650
17/10/2022,1246581,Clearup Solutions Limited,,Bi-Borough Director of Integrated Care,685
18/10/2022,1246581,Clearup Solutions Limited,,Bi-Borough Director of Integrated Care,650
18/10/2022,1246581,Clearup Solutions Limited,,Bi-Borough Director of Integrated Care,685
21/11/2022,1246581,Clearup Solutions Limited,,Bi-Borough Director of Integrated Care,"1,385.00"
21/12/2022,1246581,Clearup Solutions Limited,,Bi-Borough Director of Integrated Care,780
21/12/2022,1246581,Clearup Solutions Limited,,Bi-Borough Director of Integrated Care,"1,485.00"
21/12/2022,1246581,Clearup Solutions Limited,,Bi-Borough Director of Integrated Care,750
25/10/2022,1244190,Clouds End Services Ltd,,Bi-Borough Director of Integrated Care,660
26/10/2022,1244190,Clouds End Services Ltd,,Bi-Borough Director of Integrated Care,"1,200.00"
07/12/2022,1244190,Clouds End Services Ltd,,Bi-Borough Director of Integrated Care,"1,100.00"
20/12/2022,1244190,Clouds End Services Ltd,,Bi-Borough Director of Integrated Care,"1,100.00"
18/10/2022,1246602,Community Housing Therapy,,Bi-Borough Director of Integrated Care,"1,940.00"
09/11/2022,1246602,Community Housing Therapy,,Bi-Borough Director of Integrated Care,"1,940.00"
07/12/2022,1246602,Community Housing Therapy,,Bi-Borough Director of Integrated Care,"1,940.00"
22/12/2022,1246602,Community Housing Therapy,,Bi-Borough Director of Integrated Care,"1,940.00"
18/10/2022,1268176,Conquest Care and Support,,Bi-Borough Director of Integrated Care,"1,208.16"
08/11/2022,1268176,Conquest Care and Support,,Bi-Borough Director of Integrated Care,"1,564.74"
07/12/2022,1268176,Conquest Care and Support,,Bi-Borough Director of Integrated Care,"1,743.44"
22/12/2022,1301212,Diverse Services Ltd,,Bi-Borough Director of Integrated Care,"3,217.86"
18/10/2022,1259597,Ethica Services LTD,,Bi-Borough Director of Integrated Care,"1,132.38"
14/11/2022,1259597,Ethica Services LTD,,Bi-Borough Director of Integrated Care,536.96
14/11/2022,1259597,Ethica Services LTD,,Bi-Borough Director of Integrated Care,"1,174.32"
12/12/2022,1259597,Ethica Services LTD,,Bi-Borough Director of Integrated Care,"1,245.19"
07/11/2022,1252498,Field Court Chambers,Legal Costs,Bi-Borough Director of Integrated Care,850
18/10/2022,1247257,Health Vision Uk,,Bi-Borough Director of Integrated Care,660.86
18/10/2022,1247257,Health Vision Uk,,Bi-Borough Director of Integrated Care,968.49
18/10/2022,1247257,Health Vision Uk,,Bi-Borough Director of Integrated Care,511.09
18/10/2022,1247257,Health Vision Uk,,Bi-Borough Director of Integrated Care,518.84
18/10/2022,1247257,Health Vision Uk,,Bi-Borough Director of Integrated Care,554.41
18/10/2022,1247257,Health Vision Uk,,Bi-Borough Director of Integrated Care,"1,037.68"
18/10/2022,1247257,Health Vision Uk,,Bi-Borough Director of Integrated Care,"1,481.94"
18/10/2022,1247257,Health Vision Uk,,Bi-Borough Director of Integrated Care,662.11
18/10/2022,1247257,Health Vision Uk,,Bi-Borough Director of Integrated Care,556.1
18/10/2022,1247257,Health Vision Uk,,Bi-Borough Director of Integrated Care,"1,554.98"
18/10/2022,1247257,Health Vision Uk,,Bi-Borough Director of Integrated Care,574.74
14/11/2022,1247257,Health Vision Uk,,Bi-Borough Director of Integrated Care,656.85
14/11/2022,1247257,Health Vision Uk,,Bi-Borough Director of Integrated Care,964.17
14/11/2022,1247257,Health Vision Uk,,Bi-Borough Director of Integrated Care,507.58
14/11/2022,1247257,Health Vision Uk,,Bi-Borough Director of Integrated Care,518.84
14/11/2022,1247257,Health Vision Uk,,Bi-Borough Director of Integrated Care,"1,037.68"
14/11/2022,1247257,Health Vision Uk,,Bi-Borough Director of Integrated Care,"1,435.92"
14/11/2022,1247257,Health Vision Uk,,Bi-Borough Director of Integrated Care,656.22
14/11/2022,1247257,Health Vision Uk,,Bi-Borough Director of Integrated Care,"1,527.19"
14/11/2022,1247257,Health Vision Uk,,Bi-Borough Director of Integrated Care,776.51
08/12/2022,1247257,Health Vision Uk,,Bi-Borough Director of Integrated Care,677.58
08/12/2022,1247257,Health Vision Uk,,Bi-Borough Director of Integrated Care,677.58
08/12/2022,1247257,Health Vision Uk,,Bi-Borough Director of Integrated Care,822.59
08/12/2022,1247257,Health Vision Uk,,Bi-Borough Director of Integrated Care,511.31
08/12/2022,1247257,Health Vision Uk,,Bi-Borough Director of Integrated Care,744.03
08/12/2022,1247257,Health Vision Uk,,Bi-Borough Director of Integrated Care,"1,051.57"
08/12/2022,1247257,Health Vision Uk,,Bi-Borough Director of Integrated Care,549.92
08/12/2022,1247257,Health Vision Uk,,Bi-Borough Director of Integrated Care,549.92
08/12/2022,1247257,Health Vision Uk,,Bi-Borough Director of Integrated Care,"1,099.84"
08/12/2022,1247257,Health Vision Uk,,Bi-Borough Director of Integrated Care,706.39
08/12/2022,1247257,Health Vision Uk,,Bi-Borough Director of Integrated Care,"1,649.76"
05/10/2022,1282613,I Support Behaviour LTD,B*Voluntary-Spot-V Dep-Enhanced - do not u,Bi-Borough Director of Integrated Care,"1,235.00"
22/12/2022,1300210,Instant Care Solutions Ltd,,Bi-Borough Director of Integrated Care,"1,696.43"
22/12/2022,1300210,Instant Care Solutions Ltd,,Bi-Borough Director of Integrated Care,"1,696.43"
18/10/2022,1247526,Integrity Care and Support Ltd,,Bi-Borough Director of Integrated Care,"1,121.68"
18/10/2022,1247526,Integrity Care and Support Ltd,,Bi-Borough Director of Integrated Care,"1,101.65"
18/10/2022,1247526,Integrity Care and Support Ltd,,Bi-Borough Director of Integrated Care,"1,201.80"
14/11/2022,1247526,Integrity Care and Support Ltd,,Bi-Borough Director of Integrated Care,500.75
14/11/2022,1247526,Integrity Care and Support Ltd,,Bi-Borough Director of Integrated Care,"1,061.59"
05/12/2022,1247526,Integrity Care and Support Ltd,,Bi-Borough Director of Integrated Care,"1,257.29"
17/11/2022,1256893,Kapital Care WCC,,Bi-Borough Director of Integrated Care,939.68
17/11/2022,1256893,Kapital Care WCC,,Bi-Borough Director of Integrated Care,"1,879.36"
22/11/2022,1256893,Kapital Care WCC,,Bi-Borough Director of Integrated Care,604.08
22/11/2022,1256893,Kapital Care WCC,,Bi-Borough Director of Integrated Care,"1,678.00"
23/11/2022,1256893,Kapital Care WCC,,Bi-Borough Director of Integrated Care,939.68
05/12/2022,1256893,Kapital Care WCC,,Bi-Borough Director of Integrated Care,965.11
08/12/2022,1256893,Kapital Care WCC,,Bi-Borough Director of Integrated Care,996.24
18/11/2022,1295680,Liberty Carers Ltd,,Bi-Borough Director of Integrated Care,"1,790.80"
18/11/2022,1295680,Liberty Carers Ltd,,Bi-Borough Director of Integrated Care,"1,672.00"
12/12/2022,1245693,London Borough Of Hammersmith &,Payments to Other Local Authorities,Bi-Borough Director of Integrated Care,"1,915.00"
15/11/2022,1247650,London Care Ltd,,Bi-Borough Director of Integrated Care,645.15
15/11/2022,1247650,London Care Ltd,,Bi-Borough Director of Integrated Care,510.91
15/11/2022,1247650,London Care Ltd,,Bi-Borough Director of Integrated Care,"1,607.23"
